{"text_format":"1","workbook":"xlsx","n_sheets":14,"sheets":["Naglowek","Wniosek","RAPORT","Arkusz finansowy"," Wniosek o pożyczkę","Oświadczenia wnioskodawcy","Oświadczenia ","Analiza finansowa Ryczałt","Analiza fimamsowa PKPiR","Plan przepływów pieniężnych UK","Rachunek przepływów pieniężnych","Analiza finansowa PK","Oświadczenie przetw. danych","Pomocnicze"],"not_rendered":{"charts":0,"images":5,"macros":1,"external_links":2,"defined_names":17,"comments":1,"pivot_tables":0},"unopened":[],"bounds":{"document_bytes":16777216,"sheet_cells":100000,"rows_first":2000,"rows_last":500,"rows_between":2000,"halvings":0,"cell_chars":16384,"cell_head_chars":4096},"cells_cut":0,"cells_raw":0,"read":"whole","date_system":"1900"}

{"sheet":"Naglowek","index":0,"n_rows":17,"n_cols":1,"rows_kept":17,"cut":false,"hidden":true,"merged":[]}
["Bank:"]
["Numer wniosku:"]
["Data złożenia wniosku:"]
[]
["Pełna nazwa klienta/Imię i nazwisko:"]
["KRS / CEIDG:"]
["REGON:"]
["NIP:"]
[]
["Liczba wnioskowanych udzieleń:"]
["Liczba wnioskowanych zmian:"]
[]
[]
[]
[]
[]
["Przyciski sterujące:"]

{"sheet":"Wniosek","index":1,"n_rows":268,"n_cols":9,"rows_kept":268,"cut":false,"hidden":true,"merged":[[128,3,128,7],[129,3,129,7],[130,3,130,7],[131,3,131,7],[132,3,132,7],[133,3,133,7],[93,0,93,2],[103,3,103,5],[100,0,100,2],[100,3,100,8],[98,0,98,8],[94,0,94,2],[92,3,92,4],[95,5,95,6],[95,7,95,8],[95,3,95,4],[88,0,88,2],[88,3,88,4],[89,0,89,2],[89,3,89,4],[90,0,90,2],[90,3,90,4],[91,0,91,2],[91,3,91,4],[92,0,92,2],[184,0,184,1],[179,0,179,1],[180,0,180,1],[181,0,181,1],[182,0,182,1],[183,0,183,1],[174,0,174,8],[175,0,175,1],[176,0,176,1],[177,0,177,1],[178,0,178,1],[172,0,172,8],[173,0,173,8],[116,3,116,5],[116,7,116,8],[108,0,108,2],[108,3,108,8],[153,6,153,8],[143,6,143,8],[144,6,144,8],[145,6,145,8],[144,0,144,5],[136,3,136,8],[120,5,120,6],[113,0,113,2],[147,0,147,8],[149,0,149,8],[121,7,121,8],[122,0,122,2],[122,3,122,8],[120,7,120,8],[140,0,140,2],[140,3,140,4],[140,5,140,6],[140,7,140,8],[142,0,142,8],[99,0,99,2],[137,0,137,2],[137,3,137,4],[138,7,138,8],[135,0,135,8],[136,0,136,2],[103,7,103,8],[107,3,107,5],[107,7,107,8],[106,0,106,8],[111,0,111,8],[99,3,99,5],[99,7,99,8],[107,0,107,2],[120,3,120,4],[102,0,102,8],[103,0,103,2],[104,0,104,2],[104,3,104,8],[126,0,129,2],[130,0,133,2],[126,3,126,7],[127,3,127,7],[170,0,170,8],[169,0,169,8],[155,0,155,8],[156,0,156,8],[157,0,159,4],[139,0,139,2],[139,3,139,4],[139,5,139,6],[139,7,139,8],[160,0,160,4],[161,0,161,4],[162,0,162,4],[157,5,157,7],[150,0,150,3],[151,0,151,3],[152,0,152,3],[153,0,153,3],[150,6,150,8],[151,6,151,8],[152,6,152,8],[166,0,166,8],[168,0,168,8],[163,0,163,4],[164,0,164,4],[26,0,26,2],[23,7,23,8],[26,3,26,8],[29,3,29,8],[41,5,41,6],[41,7,41,8],[25,3,25,8],[30,0,30,2],[30,3,30,5],[40,0,40,2],[30,7,30,8],[31,7,31,8],[33,0,33,2],[34,0,34,2],[35,0,35,2],[39,5,39,6],[39,7,39,8],[23,3,23,5],[32,3,32,5],[28,3,28,8],[32,6,32,8],[40,5,40,6],[40,7,40,8],[24,3,24,8],[250,0,250,4],[250,5,250,6],[250,7,250,8],[251,0,251,4],[251,5,251,6],[251,7,251,8],[241,0,241,4],[241,5,241,6],[241,7,241,8],[245,0,245,4],[245,5,245,6],[245,7,245,8],[246,0,246,4],[246,5,246,6],[246,7,246,8],[243,7,243,8],[244,0,244,4],[244,5,244,6],[244,7,244,8],[249,0,249,4],[249,5,249,6],[249,7,249,8],[248,0,248,4],[248,5,248,6],[264,0,264,3],[259,0,259,8],[260,0,260,2],[260,3,260,8],[261,0,261,2],[261,3,261,8],[262,0,262,2],[262,5,262,8],[252,0,252,4],[252,5,252,6],[252,7,252,8],[254,0,254,8],[257,0,257,3],[257,5,257,8],[263,0,263,2],[263,3,263,8],[231,0,231,8],[232,0,232,8],[234,0,234,4],[234,5,234,6],[234,7,234,8],[235,0,235,4],[235,5,235,6],[235,7,235,8],[237,0,237,4],[237,5,237,6],[237,7,237,8],[227,0,227,1],[227,7,227,8],[228,0,228,1],[228,7,228,8],[229,0,229,1],[229,7,229,8],[224,0,224,1],[224,7,224,8],[225,0,225,1],[225,7,225,8],[226,0,226,1],[226,7,226,8],[220,0,220,8],[221,0,221,1],[221,7,221,8],[222,0,222,1],[222,7,222,8],[223,0,223,1],[223,7,223,8],[218,0,218,1],[218,3,218,4],[218,7,218,8],[219,0,219,1],[219,3,219,4],[219,7,219,8],[216,0,216,1],[216,3,216,4],[216,7,216,8],[217,0,217,1],[217,3,217,4],[217,7,217,8],[214,0,214,1],[214,3,214,4],[214,7,214,8],[215,0,215,1],[215,3,215,4],[215,7,215,8],[212,0,212,1],[212,3,212,4],[212,7,212,8],[213,0,213,1],[213,3,213,4],[213,7,213,8],[208,0,208,2],[208,3,208,8],[209,0,209,2],[209,3,209,8],[210,0,210,8],[211,0,211,1],[211,3,211,4],[211,7,211,8],[199,0,199,4],[199,5,199,8],[197,0,198,8],[203,0,203,8],[204,0,204,8],[205,0,205,2],[205,3,205,8],[206,0,206,8],[207,0,207,2],[207,3,207,8],[200,0,200,4],[201,0,201,4],[202,0,202,4],[200,5,200,8],[201,5,201,8],[202,5,202,8],[165,0,165,8],[95,0,95,2],[36,5,36,6],[36,7,36,8],[137,5,137,6],[137,7,137,8],[138,0,138,2],[138,3,138,4],[138,5,138,6],[123,0,123,2],[123,3,123,8],[124,0,124,2],[124,3,124,8],[125,0,125,2],[125,3,125,8],[83,0,83,2],[72,0,72,8],[74,0,74,2],[86,0,86,2],[86,3,86,4],[87,0,87,2],[42,3,42,4],[56,0,56,2],[39,3,39,4],[16,0,16,2],[16,3,16,8],[17,0,17,2],[17,3,17,8],[18,0,18,2],[18,3,18,8],[114,3,114,8],[22,0,22,8],[24,0,24,2],[25,0,25,2],[27,0,27,2],[28,0,28,2],[29,0,29,2],[31,0,31,2],[32,0,32,2],[20,0,20,8],[31,3,31,5],[23,0,23,2],[42,5,42,6],[27,3,27,8],[38,0,38,2],[38,3,38,4],[39,0,39,2],[56,3,56,5],[5,0,5,8],[7,0,7,2],[7,3,7,8],[13,0,13,2],[14,0,14,2],[14,3,14,8],[15,0,15,2],[15,3,15,8],[8,0,8,2],[8,3,8,8],[9,0,9,2],[9,3,9,8],[10,0,10,2],[10,3,10,8],[13,3,13,5],[13,7,13,8],[11,0,11,2],[12,0,12,2],[11,3,11,8],[12,3,12,8],[55,7,55,8],[56,7,56,8],[48,3,48,5],[48,7,48,8],[37,5,37,6],[37,7,37,8],[38,5,38,6],[47,0,47,8],[49,0,49,2],[49,3,49,8],[51,0,51,2],[51,3,51,8],[54,0,54,2],[54,3,54,8],[41,0,41,2],[41,3,41,4],[42,0,42,2],[43,0,43,2],[43,3,43,4],[42,7,42,8],[43,5,43,6],[43,7,43,8],[62,3,62,4],[63,0,63,2],[63,3,63,4],[64,0,64,2],[64,3,64,4],[67,3,67,4],[68,0,68,2],[40,3,40,4],[48,0,48,2],[44,0,44,2],[44,3,44,4],[45,0,45,2],[45,3,45,4],[50,0,50,2],[50,3,50,8],[52,0,52,2],[52,3,52,8],[53,0,53,2],[53,3,53,8],[44,5,44,6],[44,7,44,8],[45,5,45,6],[45,7,45,8],[67,7,67,8],[79,0,79,2],[81,0,81,2],[82,0,82,2],[82,3,82,5],[85,0,85,2],[84,0,84,2],[79,3,79,8],[57,0,57,2],[57,3,57,5],[66,7,66,8],[61,0,61,2],[65,0,65,2],[65,3,65,4],[76,0,76,2],[76,3,76,8],[80,0,80,2],[65,5,65,6],[65,7,65,8],[66,5,66,6],[66,0,66,2],[66,3,66,4],[67,0,67,2],[61,3,61,4],[62,0,62,2],[69,0,69,2],[69,3,69,4],[70,0,70,2],[70,3,70,4],[75,0,75,2],[75,3,75,8],[78,3,78,8],[70,5,70,6],[70,7,70,8],[73,0,73,2],[78,0,78,2],[77,0,77,2],[77,3,77,8],[73,3,73,5],[73,7,73,8],[69,5,69,6],[69,7,69,8],[82,6,82,8],[74,3,74,8],[81,7,81,8],[86,5,86,6],[86,7,86,8],[93,5,93,6],[93,7,93,8],[94,5,94,6],[94,7,94,8],[93,3,93,4],[92,5,92,6],[92,7,92,8],[80,7,80,8],[87,5,87,6],[87,7,87,8],[88,5,88,6],[88,7,88,8],[89,5,89,6],[89,7,89,8],[90,5,90,6],[90,7,90,8],[91,5,91,6],[91,7,91,8],[81,3,81,5],[87,3,87,4],[94,3,94,4],[38,7,38,8],[37,0,37,2],[37,3,37,4],[36,0,36,2],[36,3,36,4],[55,0,55,2],[55,3,55,5],[80,3,80,5],[57,6,57,8],[58,0,58,2],[59,0,59,2],[60,0,60,2],[61,5,61,6],[61,7,61,8],[68,5,68,6],[68,7,68,8],[62,5,62,6],[68,3,68,4],[62,7,62,8],[63,5,63,6],[63,7,63,8],[64,5,64,6],[64,7,64,8],[67,5,67,6],[186,0,186,8],[113,3,113,8],[114,0,114,2],[117,0,117,2],[118,0,118,2],[118,3,118,4],[118,5,118,6],[118,7,118,8],[115,0,115,2],[116,0,116,2],[115,3,115,8],[117,3,117,8],[121,0,121,2],[121,3,121,4],[121,5,121,6],[119,0,119,2],[119,3,119,4],[119,5,119,6],[119,7,119,8],[120,0,120,2],[145,0,145,5],[143,0,143,5],[248,7,248,8],[236,0,236,4],[236,5,236,6],[236,7,236,8],[240,0,240,4],[240,5,240,6],[240,7,240,8],[247,0,247,4],[247,5,247,6],[247,7,247,8],[238,0,238,4],[239,0,239,4],[239,5,239,6],[239,7,239,8],[242,0,242,4],[242,5,242,6],[242,7,242,8],[243,0,243,4],[243,5,243,6],[238,5,238,6],[238,7,238,8],[187,5,187,6],[188,5,188,6],[189,5,189,6],[190,5,190,6],[191,5,191,6],[192,5,192,6],[193,5,193,6],[194,5,194,6],[195,5,195,6],[187,0,187,3],[188,0,188,3],[189,0,189,3],[190,0,190,3],[191,0,191,3],[192,0,192,3],[193,0,193,3],[194,0,194,3],[195,0,195,3]]}
[]
[null,null,null,null,"NR WNIOSKU: "]
[]
[]
[]
["DANE TELEADRESOWE"]
[]
["Pełna nazwa/Imię i nazwisko"]
["Adres siedziby"]
["Miejsce prowadzenia działalności "]
["KRS / CEIDG"]
["REGON"]
["NIP"]
["Forma prawna",null,null,null,null,null,"Komentarz"]
["Struktura własności"]
["Rok rozpoczęcia działalności "]
["Główna działalność wg PKD",null,null,"Wybierz..."]
["Numer telefonu kontaktowego"]
["Adres e-mail"]
[]
["INFORMACJA O WNIOSKOWANEJ TRANSAKCJI"]
[]
["WNIOSKOWANY PRODUKT I"]
["Wnioskowany produkt kredytowy",null,null,null,null,null,"Komentarz"]
["Kwota (w PLN)"]
["Waluta",null,null,"PLN"]
["Słownie"]
["Cel finansowania"]
["Okres kredytowania (w miesiącach)"]
["Karencja w spłacie kapitału (mies.)"]
["Spłata kapitału",null,null,null,null,null,"Komentarz"]
["Spłata odsetek",null,null,null,null,null,"Komentarz"]
["Postawienie kredytu do dyspozycji"]
["Transza",null,null,"I","II","III","IV","V","VI"]
["Data (dd-mm-rrrr)"]
["Kwota (w PLN)"]
["Rodzaj proponowanego zabezpieczenia",null,null,"Przedmiot/Komentarz",null,"Wartość zabezpieczenia\n(w PLN)",null,"Obciążenie (w PLN)"]
["Wybierz..."]
[]
[]
[]
[]
[]
[]
[]
[]
[]
["WNIOSKOWANY PRODUKT II"]
["Wnioskowany produkt kredytowy",null,null,null,null,null,"Komentarz"]
["Kwota (w PLN)"]
["Waluta",null,null,"PLN"]
["Słownie"]
["Cel finansowania"]
["Okres kredytowania (w miesiącach)"]
["Karencja w spłacie kapitału (mies.)"]
["Spłata kapitału",null,null,null,null,null,"Komentarz"]
["Spłata odsetek",null,null,null,null,null,"Komentarz"]
["Postawienie kredytu do dyspozycji"]
["Transza",null,null,"I","II","III","IV","V","VI"]
["Data (dd-mm-rrrr)"]
["Kwota (w PLN)"]
["Rodzaj proponowanego zabezpieczenia",null,null,"Przedmiot/Komentarz",null,"Wartość zabezpieczenia\n(w PLN)",null,"Obciążenie (w PLN)"]
["Wybierz..."]
[]
[]
[]
[]
[]
[]
[]
[]
[]
["WNIOSKOWANY PRODUKT III"]
["Wnioskowany produkt kredytowy",null,null,null,null,null,"Komentarz:"]
["Kwota (w PLN)"]
["Waluta",null,null,"PLN"]
["Słownie"]
["Cel finansowania"]
["Okres kredytowania (w miesiącach)"]
["Karencja w spłacie kapitału (mies.)"]
["Spłata kapitału",null,null,null,null,null,"Komentarz"]
["Spłata odsetek",null,null,null,null,null,"Komentarz"]
["Postawienie kredytu do dyspozycji"]
["Transza",null,null,"I","II","III","IV","V","VI"]
["Data (dd-mm-rrrr)"]
["Kwota (w PLN)"]
["Rodzaj proponowanego zabezpieczenia",null,null,"Przedmiot/Komentarz",null,"Wartość zabezpieczenia\n(w PLN)",null,"Obciążenie (w PLN)"]
["Wybierz..."]
[]
[]
[]
[]
[]
[]
[]
[]
[]
[]
["WNIOSKOWANA ZMIANA PRODUKTU I"]
["Zmieniany produkt kredytowy",null,null,null,null,null,"Komentarz"]
["Zmiana warunków dotyczy"]
[]
["WNIOSKOWANA ZMIANA PRODUKTU II"]
["Zmieniany produkt kredytowy",null,null,null,null,null,"Komentarz"]
["Zmiana warunków dotyczy"]
[]
["WNIOSKOWANA ZMIANA PRODUKTU III"]
["Zmieniany produkt kredytowy",null,null,null,null,null,"Komentarz"]
["Zmiana warunków dotyczy"]
[]
[]
["INFORMACJA O WNIOSKODAWCY"]
[]
[]
["Czy firma działa na bazie koncesji/licencji? ",null,null,"Wybierz..."]
["Rodzaj prowadzonej księgowości",null,null,"Wybierz..."]
["Kto prowadzi księgowość",null,null,"Wybierz...",null,null,"Komentarz"]
["Forma własności głównego miejsca prowadzenia działalności",null,null,"Wybierz..."]
["Wartość nieruchomości firmy\n(w PLN) Uwaga! Nie należy powielać nieruchomości wykazanych w Oświadczeniu majątkowym",null,null,null,null,"Obciążenie\n(w PLN)"]
["Wartość środków transportu firmy\n(w PLN) Uwaga! Nie należy powielać środków transportu wykanych w Oświadczeniu majątkowym",null,null,null,null,"Obciążenie\n(w PLN)"]
["Wartość maszyn i urządzeń firmy\n(w PLN) Uwaga! Nie należy powielać maszyn i urządzeń wykazanych w oświadczeniu majątkowym",null,null,null,null,"Obciążenie\n(w PLN)"]
[]
["Liczba współwłaścicieli/wspólników "]
["Liczba odrębnych gospodarstw domowych "]
["Liczba osób zatrudnionych w firmie w przeliczeniu na pełne etaty na koniec ostatniego roku obrachunkowego"]
["Opis prowadzonej działalności"]
["Główni dostawcy\n(wymienić 3 najważniejszych - nazwa)",null,null,"Krótka charakterystyka dostawcy, forma rozliczeń, terminy płatności",null,null,null,null,"Udział % w dostawach"]
[]
[]
[]
["Główni odbiorcy\n(wymienić 3 najważniejszych - nazwa)",null,null,"Krótka charakterystyka odbiorcy, forma rozliczeń, terminy płatności",null,null,null,null,"Udział % w sprzedaży"]
[]
[]
[]
[]
["INFORMACJA O PODMIOTACH POWIĄZANYCH"]
["Czy występują podmioty powiązane?",null,null,"Wybierz..."]
["Pełna nazwa podmiotu powiązanego",null,null,"Rodzaj powiązania",null,"REGON",null,"PESEL"]
[]
[]
[]
[]
["GŁÓWNA OSOBA ZARZĄDZAJĄCA (lub właściciel jeśli pełni funkcję zarządzającego)"]
["Imię i nazwisko",null,null,null,null,null,"Doświadczenie w branży (w latach)"]
[]
[]
[]
["INFORMACJA O ZOBOWIĄZANIACH PUBLICZNO-PRAWNYCH "]
[]
["Występują zaległości:"]
["1) wobec Urzędu Skarbowego z tytułu podatków lub innych należności publicznoprawnych:",null,null,null,"Wybierz...","Komentarz"]
["2) wobec Zakładu Ubezpieczeń Społecznych/KRUS:",null,null,null,"Wybierz...","Komentarz"]
["3) wobec innych instytucji finansowych (banki, instytucje leasingowe itp.):",null,null,null,"Wybierz...","Komentarz"]
["4) czy wobec Pani/Pana/Państwa tyczy się postępowanie cywilne, egzekucyjne, karne, karne, skarbowe lub upadłościowe:",null,null,null,"Wybierz...","Komentarz"]
[]
["INFORMACJA FINANSOWA "]
["Dane finansowe w PLN* (wymagane wypełnienie pół, gdy brak danych w złożonych załącznikach do niniejszego wniosku)"]
["Okresy\n\nNa przykład:\n- Poprzedni rok obrachunkowy: 2017,\n- Ostatni rok obrachunkowy: 2018,\n- Okres bieżący: 31.08.2019,\n- Prognoza: 31.12.2019",null,null,null,null,"Wykonanie",null,null,"Prognoza"]
[null,null,null,null,null,"Poprzedni rok obrachun-\nkowy","Ostatni rok obrachun-\nkowy","Okres bieżący","Prognoza**"]
[]
["Przychody ogółem/przychody ze sprzedaży*** "]
["Amortyzacja** "]
["Zysk/strata brutto\n(po uwzględnieniu składek ZUS właściciela oraz odsetek od kredytów i rat kapitałowo - odsetkowych leasingu)"]
["Należności handlowe przeterminowane powyżej 60 dni"]
["Zobowiązania handlowe przeterminowane powyżej 60 dni"]
["* weryfikacja ostatniego roku obrachunkowego na podstawie sprawozdania finansowego dla podmiotów prowadzących pełną księgowość, PIT 36 wraz załącznikiem B dla podmiotów prowadzących KPiR, PIT 28 dla podmiotów objętych ryczałtem ewidencjonowanym\n** jeżeli dotyczy\n*** dla pełnej księgowości przychody ze sprzedaży, dla pozostałych form przychody ogółem"]
["Oświadczam, że w kolejnych latach kredytowania, firma planuje wypracować wynik finansowy na poziomie roku ..... (sporządzenie prognozy jest wymagane tylko w przypadku, gdy różnica w poziomie przychodów lub wyniku finansowego będzie większa niż 15% w stosunku do roku wykonania, będącego podstawą odniesienia. W takiej sytuacji prognozę należy sporządzić dla okresu, w którym planowany jest najwyższy spadek przychodów lub najniższy poziom wyniku brutto)."]
[null,null,null,{"$f":"IFERROR((I161/F161),\"nie można wyliczyć\")","v":"nie można wyliczyć"},{"$f":"IFERROR((I163/F163),\"nie można wyliczyć\")","v":"nie można wyliczyć"},{"$f":"IFERROR((G161/F161),\"nie można wyliczyć\")","v":"nie można wyliczyć"},{"$f":"IFERROR((I161/G161),\"nie można wyliczyć\")","v":"nie można wyliczyć"},{"$f":"IFERROR((G163/F163),\"nie można wyliczyć\")","v":"nie można wyliczyć"},{"$f":"IFERROR((I163/G163),\"nie można wyliczyć\")","v":"nie można wyliczyć"}]
["KOMENTARZ WNIOSKODAWCY NT. SYTUACJI EKONOMICZNO-FINANSOWEJ FIRMY"]
[{"$f":"IFERROR(IF(OR(ABS(F168)<0.9,ABS(F168)>1.1,ABS(G168)<0.9,ABS(G168)>1.1,ABS(D168)<0.9,ABS(D168)>1.1,ABS(E168)<0.9,ABS(E168)>1.1,ABS(H168)<0.9,ABS(H168)>1.1,ABS(I168)<0.9,ABS(I168)>1.1,ABS(H164)<>0,ABS(H165)<>0),\"KOMENTARZ WYMAGANY - ZMIANY WIĘKSZE NIŻ 10% LUB WYSTĄPIŁY PRZETERMINOWANIA\",\"ZMIANY PRZYCHODÓW I ZYSKÓW MNIEJSZE NIŻ 10%\"),\"KOMENTARZ WYMAGANY - BRAK PEŁNYCH DANYCH FINANSOWYCH\")","v":"KOMENTARZ WYMAGANY - BRAK PEŁNYCH DANYCH FINANSOWYCH"}]
["(OBOWIĄZKOWO NALEŻY WYJAŚNIĆ PRZYCZYNY ZMIAN O WIĘCEJ NIŻ 10% ODNOSZĄC SIĘ DO WSZYSTKICH POWYŻSZYCH OKRESÓW)\n\nPoniżej przykładowe komentarze: \n- wzrost przychodów spowodowany jest pozyskaniem w 2018r. nowego odbiorcy na produkty oferowane przez firmę, \n- spadek przychodów w 2018r. w stosunku do 2017r. wynika z utraty ważnego kontrahenta,\n- niższy poziom przychodów ze sprzedaży w okresie bieżącym wynika z sezonowości prowadzonej działalności, czego potwierdzeniem są przychody osiągnięte w analogicznym okresie roku ubiegłego (……. tys. PLN),\n- wzrost amortyzacji w bieżącym okresie wynika z zakupu samochodu, amortyzowanego w okresie 5 lat, \n- spadek poziomu amortyzacji w 2018r. spowodowany był sprzedażą w lutym 2018r.nie w pełni zamortyzowanej maszyny, która nie jest już firmie potrzebna w związku z częściową zmianą profilu prowadzonej działalności, \n- należności przeterminowane powyżej 60 dni w kwocie 5 tys. PLN nie stanowią zagrożenia dla płynności finansowej,\n- zobowiązania przeterminowane ....\n- spadek zysku brutto w bieżącym okresie wynika z sezonowości prowadzonej działalności (branża budowlana). Analogiczna sytuacja występowała w ubiegłym roku."]
[]
["WSPÓŁPRACA Z INNYMI BANKAMI I INSTYTUCJAMI FINANSOWYMI"]
["Zobowiązania w innych bankach i instytucjach finansowychz tytułu prowadzonej działalności gospodarczej \n(w tym kredyty konsorcjalne w części dotyczącej Banku konsorcjanta) "]
["1) produkty kredytowe – stan na dzień złożenia wniosku o produkt kredytowy"]
["Nazwa banku/instytucji\nfinansowej",null,"Rodzaj produktu","Kwota przyznanego kredytu/\nlimitu\n(w PLN)","Kwota kapitału pozostająca do spłaty\n(w PLN)","Okres kredytowania do\n(miesiąc, rok)","Suma rat kapitałowych\nna najbliższe \n12 m-cy\n(w PLN)\n","Oprocentowa-nie łączne: stawka bazowa + marża","Rodzaj zabezpiecze-\nnia"]
[]
[]
[]
[]
[]
[]
[]
[]
[]
[]
["2) produkty leasingowe – stan na dzień złożenia wniosku o produkt kredytowy"]
["Nazwa firmy leasingowej",null,null,null,"Rodzaj leasingu\n(operacyjny/ finansowy)","Kwota pozostająca do spłaty z tytułu leasingu łącznie z kwotą wykupu z w PLN (netto)",null,"Suma rat leasingu na najbliższe 12 m-cy w PLN (netto)","Okres leasingu do \n(miesiąc, rok)"]
[]
[]
[]
[]
[]
[]
[]
[]
[]
["INFORMACJA NA TEMAT USTAWOWEJ WSPÓLNOŚCI MAJĄTKOWEJ\nW przypadku kilku wspólników wymagane jest złożenie stosownych oświadczeń przez każdego z nich. Wypełniane w przypadku osób fizycznych prowadzących działalność gospodarczą, spółek cywilnych osób fizycznych oraz osób fizycznych będących wspólnikami/ udziałowcami spółek osobowych i kapitałowych w przypadku, gdy będą występowali w roli poręczycieli)"]
[]
["Imię i nazwisko",null,null,null,null,"Ustawowa wspólność majątkowa"]
["xxx",null,null,null,null,"Wybierz..."]
["xxx",null,null,null,null,"Wybierz..."]
["xxx",null,null,null,null,"Wybierz..."]
["Dalsze dane wypełnia Wnioskodawca (Właściciel). W przypadku braku rozdzielności majątkowej ze współmałżonkiem obligatoryjne podanie informacji dotyczących firmy)."]
["2. AKTUALNA SYTUACJA RODZINNA WNIOSKODAWCY:"]
["Ilość osób w gospodarstwie domowym"]
["3. DOCHODY SPOZA FIRMY:"]
["Źródło dochodów:",null,null,"Miesięczny dochód netto (PLN)"]
[]
[]
["4. MAJĄTEK OSOBISTY:"]
["Wyszczególnienie",null,"Rok budowy/produkcji","Aktualna wartość rynkowa (PLN)",null,"Rodzaj obciążenia (np. hipoteka, zastaw, przewła-\nszczenie)","Łączna kwota obciążenia (PLN)","Wierzyciel"]
[]
[]
[]
[]
[]
[]
[]
[]
["5. ZOBOWIĄZANIA OSOBISTE W INNYCH BANKACH I INSTYTUCJACH FINANSOWYCH (np. pożyczek/kredytów hipotecznych dla osób fizycznych, innych kredytów konsumpcyjnych) – stan na dzień złożenia wniosku o produkt kredytowy:"]
["Nazwa banku/instytucji finansowej",null,"Rodzaj produktu","Kwota przyznanego kredytu/limitu (w PLN)","Kwota pozostająca do spłaty (w PLN)","Termin spłaty całkowitej (miesiąc, rok)\n","Suma rat kapitałowo-odsetkowych na najbliższe 12 miesięcy\n(w PLN)","Rodzaj zabezpieczenia"]
[]
[]
[]
[]
[]
[]
[]
[]
[]
["OŚWIADCZENIA"]
["1. Nazwa Banku…….. (dalej Bank) informuje, że:\n1) Pana/Pani/Państwa dane mogą być udostępniane przez Bank, bankom Spółdzielczej Grupy Bankowej w celu zawarcia i wykonania umowy konsorcjum bankowego lub zawarcia umowy cesji wierzytelności;\n2) Udostępnienie danych jest dobrowolne, jednakże ich podanie warunkuje zawarcie i realizację umowy;\n3) Podstawa prawna:\na) art. 105 i 105a Ustawy z dnia 29 sierpnia 1997 r. Prawo bankowe; \nb) art. 24 ust. 1 ustawy z dnia 9 kwietnia 2010 r. o udostępnieniu informacji gospodarczych i wymianie danych gospodarczych."]
["wypełniając poniższą tabelę należy wpisać, zgodnie ze stanem faktycznym odpowiedzi TAK, NIE, NIE DOTYCZY"]
["Oświadczenia i upoważnienia",null,null,null,null,"Wnioskodawca",null,"Współwnioskodawca/\nWspółmałżonek*"]
["1) Wyrażam dobrowolną zgodę na otrzymywanie informacji handlowych i informacji marketingowych, w szczególności o promocjach, konkursach i loteriach oraz nowych i aktualnych produktach Banku za pośrednictwem: "]
["a) poczty elektronicznej na podany przeze mnie adres mailowy ",null,null,null,null,"Wybierz...",null,"Wybierz..."]
["b) kontaktu telefonicznego, wiadomości sms i mms, na podany przeze mnie numer telefonu ",null,null,null,null,"Wybierz...",null,"Wybierz..."]
["2) Wyrażam dobrowolną zgodę na przetwarzanie przez Bank moich danych osobowych w celu prowadzenia marketingu produktów własnych po okresie obowiązywania umowy zawartej przez mnie z Bankiem.\nPrzyjmuję do wiadomości, że każda z wyżej wymienionych zgód może być przez mnie w dowolnym momencie bezpłatnie cofnięta, bez jakichkolwiek negatywnych konsekwencji. Wycofanie zgody nie wpływa na zgodność z prawem przetwarzania, którego dokonano na podstawie zgody przed jej wycofaniem.",null,null,null,null,"Wybierz...",null,"Wybierz..."]
["3) Upoważniam Bank, na podstawie art. 24 ust. 1 Ustawy z dnia 9 kwietnia 2010 r. o udostępnieniu informacji gospodarczych i wymianie danych gospodarczych do:"]
["a) wystąpienia do Krajowego Rejestru Długów Biura Informacji Gospodarczej S.A. o ujawnienie informacji gospodarczych o moich zobowiązaniach;",null,null,null,null,"Wybierz...",null,"Wybierz..."]
["b) wystąpienia za pośrednictwem Biura Informacji Kredytowej S.A. z siedzibą w Warszawie do biur informacji gospodarczej o ujawnienie informacji gospodarczych dotyczących moich zobowiązań.",null,null,null,null,"Wybierz...",null,"Wybierz..."]
["4) Upoważniam Bank do bezpośrednich kontaktów z wykonawcą operatu/-ów nieruchomości w celu wyjaśnienia ewentualnych wątpliwości wynikłych w następstwie weryfikacji operatu/-ów przez Bank ",null,null,null,null,"Wybierz...",null,"Wybierz..."]
["5) Oświadczam, iż zostałem poinformowany, że w przypadku przedłożenia fałszywych dokumentów lub informacji, zebrane informacje bank może przekazać do Systemu Dokumenty Zastrzeżone, którego administratorem jest Związek Banków Polskich.",null,null,null,null,"Wybierz...",null,"Wybierz..."]
["6) Oświadczam, iż zostałem poinformowany, iż za rozpatrzenie wniosku Bank pobiera prowizje wstępną w wysokości określonej w obowiązującej Taryfie prowizji i opłat, która jest naliczana na poczet prowizji przygotowawczej w przypadku pozytywnego rozpatrzenia wniosku a nie jest zwracana przez Bank w przypadku decyzji negatywnej.",null,null,null,null,"Wybierz...",null,"Wybierz..."]
["7) Oświadczam, iż informacje dostępne w przeglądarkach internetowych mających zastosowanie do mojej sytuacji prawnej CEiDG, GUS (e-Regon), e-KRS są aktualne i zgodne z obecnym stanem faktycznym",null,null,null,null,"Wybierz...",null,"Wybierz..."]
["8) Oświadczam/y, że na podstawie art. 104 ust. 3 ustawy prawo bankowe, wyrażam/y zgodę na udostępnienie przez bank informacji podanych w niniejszym wniosku oraz załączonych do tego wniosku dokumentów finansowych niżej wymienionym podmiotom. Udostępnione dane będą przetwarzane celem przygotowania oraz złożenia oferty dotyczącej produktów i usług oferowanych przez wskazane podmioty oraz w celu prowadzenia działalności marketingowej przez te podmioty a w przypadku banków spółdzielczych również udzielenia kredytu w konsorcjum z Bankiem. "]
["a) SGB Leasing sp. z o. o. z siedzibą ul. Bolesława Krzywoustego 3, 61-144 Poznań",null,null,null,null,"Wybierz...",null,"Wybierz..."]
["b) banki Spółdzielczej Grupy Bankowej",null,null,null,null,"Wybierz...",null,"Wybierz..."]
["c) Concordia Polska TUW, WTUŻiR Concordia Capital S.A. z siedzibą ul. S. Małachowskiego 10, 61-129 Poznań",null,null,null,null,"Wybierz...",null,"Wybierz..."]
["9) Oświadczam, iż zostałem poinformowany o możliwości odwołania w dowolnym czasie zgód, o których mowa w pkt. 8 bez konieczności podawania przyczyny",null,null,null,null,"Wybierz...",null,"Wybierz..."]
["10) Oświadczam, iż otrzymałam/em klauzulę informacyjną administratora danych osobowych.",null,null,null,null,"Wybierz...",null,"Wybierz..."]
["11) Oświadczam, iż otrzymałam/em klauzulę informacyjną BIK",null,null,null,null,"Wybierz...",null,"Wybierz..."]
[]
["2. Oświadczam, że jestem/nie jestem* członkiem Banku oraz, że jestem/nie jestem* powiązany kapitałowo lub Organizacyjnie z członkiem Banku, Zarządu, Rady Nadzorczej lub osobą zajmującą stanowisko kierownicze w Banku lub z jednostką powiązaną z nimi kapitałowo lub organizacyjnie.\n\n3. Oświadczam pod rygorem odpowiedzialności przewidzianej w art. 297 Kodeksu karnego, że informacje podane przeze mnie we Wniosku są zgodne z obecnym stanem faktycznym. Wyrażam zgodę na sprawdzenie przez Bank podanych informacji.\n\n4. Wnioskodawca oświadcza, że w przypadku braku możliwości złożenia w Banku oryginału dokumentu wymaganego dla przeprowadzenia analizy kredytowej, prześle niezwłocznie w formie \ne-maila skan oryginału dokumentu lub przekaże kserokopię dokumentu. Wnioskodawca oświadcza, że skany oraz kserokopie dokumentów przekazane do Banku będą zgodne z oryginałem i aktualne pod rygorem odpowiedzialności karnej wynikającej m. in. z art. 297 § 1 ustawy z dnia 6.04.1997r. Kodeks karny. Na każde żądanie Banku Wnioskodawca zobowiązuje się niezwłocznie złożyć w Banku oryginał dokumentu uprzednio przekazanego w formie skanu. "]
[]
[]
["miejscowość, data",null,null,null,null,"pieczęć i podpis/y wnioskodawcy/ów/współmałżonka"]
[]
["WYPEŁNIA PRACOWNIK BANKU"]
["Oddział Banku"]
["Data złożenia wniosku"]
["Wniosek kompletny",null,null,null,"Komentarz:"]
["Data złożenia kompletnego wniosku"]
["Pieczątka i podpis pracownika przyjmującego wniosek"]
[]
[]
["* niepotrzebne usunąć"]

{"sheet":"RAPORT","index":2,"n_rows":264,"n_cols":4,"rows_kept":264,"cut":false,"hidden":true,"merged":[[17,0,17,1],[2,0,2,2],[5,0,5,2],[7,0,7,2],[15,0,15,2],[55,0,55,1],[20,0,20,1],[23,0,23,1],[26,0,26,2],[28,0,28,1],[31,0,31,1],[34,0,34,1],[37,0,37,2],[42,0,42,2],[44,0,44,1],[47,0,47,1],[50,0,50,2],[39,0,39,1],[120,0,120,1],[58,0,58,1],[61,2,62,2],[72,0,72,1],[75,0,75,1],[78,2,79,2],[89,0,89,1],[92,0,92,1],[95,2,96,2],[106,0,106,1],[109,0,109,1],[118,0,118,1],[155,0,155,1],[160,0,160,1],[152,0,152,1],[123,0,123,1],[132,0,132,1],[134,0,134,1],[137,0,137,1],[146,0,146,1],[148,0,148,1],[154,0,154,1],[159,0,159,1]]}
[null,null,"Załącznik nr …………."]
[]
["„Proces Uproszczony BS” – zaangażowanie łączne do 200.000,00 PLN"]
[]
[]
[]
[]
["I. Dane Wnioskodawcy"]
[]
["Pełna nazwa"]
["KRS / CEIDG"]
["REGON"]
["NIP"]
["Współpraca z Bankiem (rok)"]
[]
["II. Informacja o prowadzonej działalności "]
[]
["I. Czy prowadzona działalność wymaga koncesji/pozwoleń?"]
["Komentarz:"]
[]
["II. Czy Klient przewiduje jakieś zmiany w profilu prowadzonej działalności?"]
["Komentarz:"]
[]
["III. Czy Klient posiada podmioty powiązane?\nW przypadku odpowiedzi TAK ocena wpływu podmiotu powiązanego na Wnioskodawcę."]
["Komentarz:"]
[]
["III. Współpraca z bankami / instytucjami finansowymi"]
[]
["I. Czy na rachunku bieżącym prowadzonym w Banku występowała nieprawidłowa obsługa, zajęcia egzekucyjne oraz spadek obrotów?"]
["Komentarz:"]
[]
["II. Czy dokonano weryfikacji terminowości regulowania zobowiązań wobec  ZUS/US/innych instytucji uprzywilejowanych?"]
[{"$f":"IF(C32=\"Tak\",\"Na jakiej podstawie dokonano weryfikacji?\",IF(C32=\"Nie\",\"Dlaczego nie dokonano weryfikacji?\",\"                                        \n                                                                                                                         \"))","v":"                                        \n                                                                                                                         "}]
[]
["III. Czy weryfikacja Klienta w bazach zewnętrznych BIK/KRD/MIG/inne jest negatywna?"]
["Komentarz:"]
[]
["IV. Ocena sytuacji finansowej oraz zdolności kredytowej /w załączniku/"]
[]
["I. Czy na podstawie przeprowadzonej analizy Klient posiada zdolność kredytową?"]
["Komentarz:"]
[]
["V. Ocena zabezpieczenia"]
[]
["I. Czy proponowane zabezpieczenie jest wystarczające?"]
["Komentarz:"]
[]
["II. Czy wnioskowana transakcja podlega rekomendacji S?\nRekomendacja wydana przez Komisję Nadzoru Finansowego dotycząca dobrych praktyk w zakresie zarządzania ekspozycjami kredytowymi finansującymi nieruchomości oraz zabezpieczonymi hipotecznie lub gdzie docelowym zabezpieczeniem będzie hipoteka."]
["Komentarz:"]
[]
["VI. Warunki wnioskowanego produktu / wnioskowanej zmiany"]
[]
["Zaangażowanie kredytowe \nw Banku (w PLN łącznie z wnioskowanym oraz podmiotami powiązanymi)"]
["Aktualna grupa ryzyka"]
["Proponowana grupa ryzyka"]
["Warunki niestandardowe/odstępstwa od wnioskowanego produktu/wnioskowanej zmiany"]
["Komentarz:"]
[]
["WNIOSKOWANY PRODUKT I"]
["Rodzaj produktu"]
["Cel finansowania"]
["Kwota"]
["Waluta","PLN"]
["Okres kredytowania\n(w miesiącach)"]
["Sposób uruchomienia"]
["Spłata kapitału"]
["Spłata odsetek"]
["Oprocentowanie\n(stopa + marża)"]
["Prowizje"]
["Zabezpieczenia"]
["Warunki uruchomienia wnioskowanego produktu"]
["Warunki dodatkowe udzielenia produktu"]
["Powyższe warunki zostały uzgodnione z klientem"]
["Komentarz:"]
[]
["WNIOSKOWANY PRODUKT II"]
["Rodzaj produktu"]
["Cel finansowania"]
["Kwota"]
["Waluta","PLN"]
["Okres kredytowania\n(w miesiącach)"]
["Sposób uruchomienia"]
["Spłata kapitału"]
["Spłata odsetek"]
["Oprocentowanie\n(stopa + marża)"]
["Prowizje"]
["Zabezpieczenia"]
["Warunki uruchomienia wnioskowanego produktu"]
["Warunki dodatkowe udzielenia produktu"]
["Powyższe warunki zostały uzgodnione z klientem"]
["Komentarz:"]
[]
["WNIOSKOWANY PRODUKT III"]
["Rodzaj produktu"]
["Cel finansowania"]
["Kwota"]
["Waluta","PLN"]
["Okres kredytowania\n(w miesiącach)"]
["Sposób uruchomienia"]
["Spłata kapitału"]
["Spłata odsetek"]
["Oprocentowanie\n(stopa + marża)"]
["Prowizje"]
["Zabezpieczenia"]
["Warunki uruchomienia wnioskowanego produktu"]
["Warunki dodatkowe udzielenia produktu"]
["Powyższe warunki zostały uzgodnione z klientem"]
["Komentarz:"]
[]
["WNIOSKOWANA ZMIANA I"]
["Rodzaj produktu"]
["Numer umowy kredytowej \ni data zawarcia"]
["Aktualna kwota pozostająca do spłaty i waluta"]
["Termin spłaty"]
["Zmiana warunków dotyczy"]
["Uzasadnienie zmiany warunków"]
["Aktualnie brzmiący zapis, zgodnie z umową o kredyt"]
["Wnioskowana zmiana \ni proponowany zapis"]
["Pozostałe warunki umowy kredytowej nr ... pozostają bez zmian"]
["Warunki wprowadzenia wnioskowanej zmiany"]
["Powyższe warunki zostały uzgodnione z klientem"]
["Komentarz:"]
[]
["WNIOSKOWANA ZMIANA II"]
["Rodzaj produktu"]
["Numer umowy kredytowej\ni data zawarcia"]
["Aktualna kwota pozostająca do spłaty i waluta"]
["Termin spłaty"]
["Zmiana warunków dotyczy"]
["Uzasadnienie zmiany warunków"]
["Aktualnie brzmiący zapis, zgodnie z umową o kredyt"]
["Wnioskowana zmiana\ni proponowany zapis"]
["Pozostałe warunki umowy kredytowej nr ... pozostają bez zmian"]
["Warunki wprowadzenia wnioskowanej zmiany"]
["Powyższe warunki zostały uzgodnione z klientem"]
["Komentarz:"]
[]
["WNIOSKOWANA ZMIANA III"]
["Rodzaj produktu"]
["Numer umowy kredytowej\ni data zawarcia"]
["Aktualna kwota pozostająca do spłaty i waluta"]
["Termin spłaty"]
["Zmiana warunków dotyczy"]
["Uzasadnienie zmiany warunków"]
["Aktualnie brzmiący zapis, zgodnie z umową o kredyt"]
["Wnioskowana zmiana\ni proponowany zapis"]
["Pozostałe warunki umowy kredytowej nr ... pozostają bez zmian"]
["Warunki wprowadzenia wnioskowanej zmiany"]
["Powyższe warunki zostały uzgodnione z klientem"]
["Komentarz:"]
[]
[]
["VII. Rekomendacja/decyzja"]
[]
["Rekomendacja negatywna / pozytywna*"]
[]
["Imię i nazwisko rekomendującego wraz z datą i pieczątką funkcyjną"]
[]
[]
["Decyzja negatywna / pozytywna*"]
[]
["Imię i nazwisko podejmującego decyzję wraz z datą i pieczątką funkcyjną"]
[]
["* niepotrzebne usunąć"]
[]
[]
[]
[]
[]
[]
[]
[]
[]
[]
[]
[]
[]
[]
[]
[]
[]
[]
[]
[]
[]
[]
[]
[]
[]
[]
[]
[]
[]
[]
[]
[]
[]
[]
[]
[]
[]
[]
[]
[]
[]
[]
[]
[]
[]
[]
[]
[]
[]
[]
[]
[]
[]
[]
[]
[]
[]
[]
[]
[]
[]
[]
[]
[]
[]
[]
[]
[]
[]
[]
[]
[]
[]
[]
[]
[]
[]
[]
[]
[]
[]
[]
[]
[]
[]
[]
[]
[]
[]
[]
[]
[]
[]
[]
[]
[]
[null,null,null,"Wybierz..."]
[]
[]
[null,null,null,"Wybierz..."]

{"sheet":"Arkusz finansowy","index":3,"n_rows":65,"n_cols":5,"rows_kept":65,"cut":false,"hidden":true,"merged":[[58,3,58,4],[59,3,59,4],[60,3,60,4],[63,0,63,4],[64,0,65,0],[64,1,65,4],[61,3,61,4],[57,3,57,4],[0,0,0,4],[2,0,2,4],[4,0,4,4],[53,0,53,4],[56,0,56,4],[10,0,10,4],[27,0,27,4],[54,0,54,4],[37,2,37,4],[7,1,7,4],[8,1,8,4]]}
["Załącznik nr ……… do …………………………………"]
[]
["OCENA FINANSOWA \nzaangażowanie Banku do 100 tys. PLN"]
[]
["Dane finansowe (w PLN):"]
[null,"ZAŁĄCZNIK DO RAPORTU KREDYTOWEGO WRAZ Z KARTĄ PRZEWODNIĄ"]
[]
["Pełna nazwa/Imię i nazwisko"]
["KRS/REGON/NIP"]
[]
["I. DANE FINANSOWE"]
["Wyszczególnienie (w PLN)","Poprzedni rok obrachunkowy","Ostatni rok obrachunkowy","Okres bieżacy","Prognoza*"]
["OKRES:"]
["I. PRZYCHODY OGÓŁEM/PRZYCHODY ZE SPRZEDAŻY"]
["II. ZYSK/STRATA Z DZIAŁALNOŚCI (BRUTTO): \n(po uwzględnieniu składek ZUS właściciela oraz odsetek od kredytów i leasingu finansowego oraz rat kapitałowo-odsetkowych leasingu operacyjnego)"]
["Amortyzacja (+)"]
["Korekta wyniku o pozycje jednorazowe (+/-)"]
["Korekta z tytułu trendu (-)"]
["(X) SKORYGOWANY WYNIK (BRUTTO)",null,{"$f":"C15+C16+C17-ABS(C18)","v":0},null,{"$f":"E15+E16","v":0}]
["Należności handlowe przeterminowane powyżej 60 dni "]
["Zobowiązania handlowe przeterninowane powyżej 60 dni "]
["Dynamika przychodów\n(Obrót w roku analizowanym/obrót w roku poprzednim) x100\n[w %]",null,{"$f":"IFERROR((C14/B14),\"nie można wyliczyć\")","v":"nie można wyliczyć"},null,{"$f":"IFERROR((E14/C14),\"nie można wyliczyć\")","v":"nie można wyliczyć"}]
["Dynamika zysku(/straty) brutto\n(Zysk(/strata) brutto w roku analizowanym/Zysk(/strata) brutto w roku poprzednim) x100 [w %]",null,{"$f":"IFERROR((C15/B15), \"nie można wyliczyć\")","v":"nie można wyliczyć"},null,{"$f":"IFERROR((E15/C15), \"nie można wyliczyć\")","v":"nie można wyliczyć"}]
["Rentowność brutto\n(Zysk(strata) brutto/Przychody razem) x100 [w %]",{"$f":"IFERROR((B15/B14), \"nie można wyliczyć\")","v":"nie można wyliczyć"},{"$f":"IFERROR((C15/C14), \"nie można wyliczyć\")","v":"nie można wyliczyć"},{"$f":"IFERROR((D15/D14), \"nie można wyliczyć\")","v":"nie można wyliczyć"},{"$f":"IFERROR((E15/E14), \"nie można wyliczyć\")","v":"nie można wyliczyć"}]
["Zaangażowanie z tytułu kredytów krótko- i długoterminowych oraz leasingu finansowego w Banku oraz w innych Bankach i instytucjach finansowych"]
["Wskaźnik zadłużenia\n(Zaangażowanie z tytułu kredytów krótko- i długoterminowych oraz leasingu finansowego w Banku oraz w innych Bankach i instytucjach finansowych/wynik brutto z działalności + amortyzacja)",null,{"$f":"IFERROR(((D25)/(C15+C16)),\"nie można wyliczyć\")","v":"nie można wyliczyć"},null,{"$f":"IFERROR((E25/(E15+E16)),\"nie można wyliczyć\")","v":"nie można wyliczyć"}]
[null,null,{"$f":"IF(C26>5,\"wskaźnik przekroczył wartość 5\",\"wskaźnik spełniony\")","v":"wskaźnik przekroczył wartość 5"},null,{"$f":"IF(E26>5,\"wskaźnik przekroczył wartość 5\",\"wskaźnik spełniony\")","v":"wskaźnik przekroczył wartość 5"}]
["II. ZDOLNOŚĆ DO SPŁATY W PRZYPADKU UBIEGANIA SIĘ KLIENTA O INNY PRODUKT NIŻ KRB"]
["Spłaty w ciągu następnych 12 m-cy/roku największego obciążenia"]
["A. Spłata kredytów funkcjonujących w Banku:\n(dotyczy tylko kapiatału kredytów spłacanych w ratach)",{"$f":"B31+B32","v":0}]
["1. Kapitał od kredytów inwestycyjnych"]
["2. Kapitał od kredytów obrotowo-inwestycyjnych"]
["B. Spłata kredytów w innych bankach:\n(dotyczy tylko kapiatału kredytów spłacanych w ratach)",{"$f":"B34+B35+B36","v":0}]
["1. Kapitał od kredytów inwestycyjnych",null,{"$f":"SUMIF(Wniosek!C177:G185,\"inwestycyjny\",Wniosek!G177:G185)","v":0}]
["2. Kapitał od kredytów obrotowo-inwestycyjnych",null,{"$f":"SUMIF(Wniosek!C177:G185,\"obrotowo-inwestycyjny\",Wniosek!G177:G185)","v":0}]
["3. Kapitał od leasingu finansowego",null,{"$f":"SUMIF(Wniosek!E189:H196,\"finansowy\",Wniosek!H189:H196)","v":0}]
["C. Spłata wnioskowanych kredytów w Banku: \n(odsetki tylko jeżeli następuje wzrost zaangażowania Klienta)- odsetki tylko od zwiększonego zaangażowania",{"$f":"B38+B39","v":0}]
["1. Kapitał i odsetki od kredytów inwestycyjnych**"]
["2. Odsetki od zwiększonej kwoty kredytu obrotowego (z wyjątkiem KRB)**"]
[]
["Spłaty razem (Y)=A+B+C",{"$f":"B30+B33+B37","v":0}]
["D. Koszty utrzymania rodziny (-)\n(jeżeli klient nie posiada innych adekwatnych źródeł utrzymania rodziny)\ndochody z innych źródeł nie mogą być niższe od kosztów utrzymania rodziny; w przecwinym wypadku całą kwotę kosztów utrzymania należy uwzględnić w tabeli  "]
["E. Kapitał i odsetki od kredytów osobistych (-)\n(jeżeli są spłacane z tej działalności gospodarczej)\nw przypadku, gdy kredyty te są splacane z innych źródeł, dochody z tych źródeł nie mogą być niższe od łącznej sumy rat kapitałowo-odsetkowych; w przecwinym wypadku całą kwotę rat kapitałowo-odsetkowych należy uwzględnić w tabeli"]
["Nadwyżka/deficyt środków przed spłatą kredytów obrotowych dla ostatniego okresu obrachunkowego",{"$f":"C19-B41-B42-B43","v":0}]
["Nadwyżka/deficyt środków przed spłatą kredytów obrotowych dla danych objętych prognozą",{"$f":"E19-B41-B42-B43","v":0}]
[]
["III. ZDOLNOŚĆ DO SPŁATY W PRZYPADKU UBIEGANIA SIĘ KLIENTA O KRB"]
["Zaangażowanie z tytułu kredytów w rachunku bieżącym \nw naszym Banku, łącznie z kredytem wnioskowanym"]
["Zaangażowanie z tytułu kredytów w rachunku bieżącym \nw innych bankach"]
["Średniomiesięczne obroty z okresu ostatnich 12 miesięcy \nw Banku"]
["Wskaźnik przychodów",{"$f":"IFERROR((B48+B49)/C14,\"Nie można wyliczyć\")","v":"Nie można wyliczyć"},{"$f":"IF(B51>0.2,\"wskaźnik przekroczył wartość 20%\",\"wskaźnik spełniony\")","v":"wskaźnik przekroczył wartość 20%"}]
["Wskaźnik obrotów \n(Średniomiesięczne obroty z okresu ostatnich 12 miesięcy w Banku)*2 ",{"$f":"IFERROR(B48/B50,\"Nie można wyliczyć\")","v":"Nie można wyliczyć"},{"$f":"IF(B52>2,\"wskaźnik przekroczył wartość 200%\",\"wskaźnik spełniony\")","v":"wskaźnik przekroczył wartość 200%"}]
[]
["* Jeżeli będzie wymagana. Prognoza sporządzana dla okresu, w którym widoczny będzie całkowity efekt finansowy kredytowanego przedsięwzięcia"]
["**Jeżeli ekspozycja kredytowa podlega zapisom Rekomendacji \"S\" , należy uwzględnić wzrost oprocenowania (bufor) o 1.p.p. dla kredytów do 5 lat, o 2,5 p.p. dla kredytów powyżej 5 lat"]
[]
["IV. ANALIZA FINANSOWA (dotyczy wszystkich okresów wskazanych w pkt I)"]
["1. Stwierdzono wzrost/spadek przychodów o min. 10%:",{"$f":"IFERROR(IF(OR(ABS(C22)<0.9,ABS(C22)>1.1,ABS(E22)<0.9,ABS(E22)>1.1),\"Tak\",\"Nie\"),\"Nie można wyliczyć\")","v":"Nie można wyliczyć"},"Komentarz:"]
["2. Stwierdzono wzrost/spadek rentowności o min. 10%:",{"$f":"IFERROR(IF(OR(((ABS(C24-B24))/B24)>=0.1,((ABS(E24-C24))/C24)>=0.1),\"Tak\",\"Nie\"),\"Nie można wyliczyć\")","v":"Nie można wyliczyć"},"Komentarz:"]
["3. Występują zobowiązania handlowe/należności handlowe przeterminowane powyżej 60 dni:",{"$f":"IF(OR(ABS(D20)<>0,ABS(D21)<>0),\"Tak\",\"Nie\")","v":"Nie"},"Komentarz:"]
["4. Stwierdzono wysoki poziom zadłużenia:",{"$f":"IF(OR($C$26=\"nie można wyliczyć\",$E$26=\"nie można wyliczyć\"),\"Nie można wyliczyć\",IF(OR($C$26>5,$E$26>5),\"Tak\",\"Nie\"))","v":"Nie można wyliczyć"},"Komentarz:"]
["5. Występują inne aspekty oceny sytuacji ekonomiczno-finansowej wymagające komentarza:","Wybierz...","Komentarz:"]
[]
["Dane osoby sporządzającej/rekomendującej w zakresie analizy ekonomiczno-finansowej"]
["Imię i nazwisko\nStempel funkcyjny"]

{"sheet":" Wniosek o pożyczkę","index":4,"n_rows":288,"n_cols":9,"rows_kept":288,"cut":false,"hidden":false,"merged":[[125,0,125,8],[130,0,130,8],[268,0,268,4],[268,5,268,6],[268,7,268,8],[270,0,270,8],[273,0,273,3],[273,5,273,8],[266,0,266,4],[266,5,266,6],[266,7,266,8],[261,0,261,4],[261,5,261,6],[261,7,261,8],[259,0,259,4],[259,5,259,6],[259,7,259,8],[267,0,267,4],[267,5,267,6],[267,7,267,8],[263,0,263,4],[263,5,263,6],[263,7,263,8],[264,0,264,4],[284,0,284,2],[284,3,284,8],[285,0,285,3],[280,0,280,8],[281,0,281,2],[281,3,281,8],[282,0,282,2],[282,3,282,8],[283,0,283,2],[283,5,283,8],[264,5,264,6],[264,7,264,8],[265,0,265,4],[262,0,262,4],[258,0,258,4],[258,5,258,6],[258,7,258,8],[255,5,255,6],[255,7,255,8],[256,0,256,4],[256,5,256,6],[256,7,256,8],[260,0,260,4],[260,5,260,6],[260,7,260,8],[255,0,255,4],[236,0,236,1],[236,7,236,8],[237,0,237,1],[237,7,237,8],[239,0,239,1],[239,7,239,8],[257,0,257,4],[257,5,257,6],[257,7,257,8],[244,3,244,8],[244,0,244,2],[241,0,241,2],[242,0,242,2],[243,0,243,2],[240,0,240,8],[241,3,241,8],[242,3,242,8],[243,3,243,8],[251,0,251,4],[251,5,251,6],[251,7,251,8],[252,0,252,4],[253,0,253,4],[253,5,253,6],[233,0,233,1],[233,7,233,8],[234,0,234,1],[234,7,234,8],[235,0,235,1],[235,7,235,8],[229,0,229,8],[230,0,230,1],[230,7,230,8],[231,0,231,1],[231,7,231,8],[232,0,232,1],[232,7,232,8],[228,0,228,1],[228,3,228,4],[228,7,228,8],[225,0,225,1],[225,3,225,4],[225,7,225,8],[226,0,226,1],[226,3,226,4],[226,7,226,8],[224,0,224,1],[224,3,224,4],[224,7,224,8],[222,0,222,1],[222,3,222,4],[222,7,222,8],[227,0,227,1],[227,3,227,4],[227,7,227,8],[213,0,213,8],[214,0,214,2],[214,3,214,8],[215,0,215,8],[216,0,216,2],[216,3,216,8],[223,0,223,1],[223,3,223,4],[223,7,223,8],[221,0,221,1],[221,3,221,4],[221,7,221,8],[217,0,217,2],[217,3,217,8],[218,0,218,2],[218,3,218,8],[219,0,219,8],[220,0,220,1],[220,3,220,4],[220,7,220,8],[206,5,206,6],[212,0,212,8],[200,5,200,6],[201,5,201,6],[202,5,202,6],[203,5,203,6],[208,0,209,8],[210,0,210,2],[211,0,211,2],[210,3,210,5],[211,3,211,5],[210,6,210,8],[211,6,211,8],[197,0,197,8],[192,0,192,1],[193,0,193,1],[194,0,194,1],[195,0,195,1],[199,5,199,6],[198,5,198,6],[204,5,204,6],[205,5,205,6],[187,0,187,8],[188,0,188,8],[189,0,189,1],[190,0,190,1],[191,0,191,1],[175,0,175,3],[175,4,175,6],[175,7,175,8],[176,0,176,3],[176,4,176,6],[176,7,176,8],[177,0,177,3],[177,4,177,6],[177,7,177,8],[178,0,178,3],[178,4,178,6],[178,7,178,8],[172,0,172,3],[170,0,170,3],[186,0,186,8],[170,7,170,8],[171,4,171,6],[172,4,172,6],[173,4,173,6],[171,7,171,8],[172,7,172,8],[173,7,173,8],[167,0,167,3],[167,4,167,6],[167,7,167,8],[168,0,168,3],[169,0,169,3],[168,4,168,6],[169,4,169,6],[168,7,168,8],[169,7,169,8],[154,6,154,8],[155,0,155,5],[155,6,155,8],[162,0,162,3],[162,6,162,8],[163,0,163,3],[163,6,163,8],[165,0,165,8],[166,0,166,8],[141,0,141,2],[141,3,141,4],[141,5,141,6],[141,7,141,8],[138,0,138,2],[138,3,138,4],[138,5,138,6],[138,7,138,8],[139,0,139,2],[139,3,139,4],[139,5,139,6],[139,7,139,8],[121,3,121,4],[119,0,119,2],[119,3,119,8],[140,0,140,2],[140,3,140,4],[140,5,140,6],[140,7,140,8],[136,0,136,8],[137,0,137,2],[137,3,137,8],[124,0,124,2],[124,3,124,8],[126,0,129,2],[131,0,134,2],[126,3,126,7],[131,3,131,7],[132,3,132,7],[133,3,133,7],[134,3,134,7],[127,3,127,7],[128,3,128,7],[129,3,129,7],[122,3,122,4],[120,0,122,2],[118,3,118,8],[116,0,116,2],[116,3,116,4],[116,5,116,6],[116,7,116,8],[117,0,117,2],[117,3,117,4],[117,5,117,6],[117,7,117,8],[120,3,120,4],[120,5,120,8],[111,0,111,2],[111,3,111,8],[112,0,112,2],[113,0,113,2],[113,3,113,8],[112,3,112,8],[105,0,105,2],[105,3,105,8],[107,0,107,8],[109,0,109,2],[109,3,109,8],[110,0,110,2],[110,3,110,8],[114,0,114,2],[114,3,114,4],[114,5,114,6],[114,7,114,8],[115,0,115,2],[115,3,115,4],[115,5,115,6],[115,7,115,8],[118,0,118,2],[101,0,101,2],[101,3,101,8],[103,0,103,8],[104,0,104,2],[104,3,104,8],[97,0,97,2],[97,3,97,8],[99,0,99,8],[100,0,100,2],[92,0,92,2],[92,3,92,4],[92,5,92,6],[92,7,92,8],[95,0,95,8],[96,0,96,2],[96,3,96,8],[100,3,100,8],[90,0,90,2],[90,3,90,4],[90,5,90,6],[90,7,90,8],[91,0,91,2],[91,3,91,4],[91,5,91,6],[91,7,91,8],[89,0,89,2],[89,3,89,4],[89,5,89,6],[89,7,89,8],[86,0,86,2],[86,3,86,4],[86,5,86,6],[86,7,86,8],[87,0,87,2],[87,3,87,4],[87,5,87,6],[87,7,87,8],[84,0,84,2],[84,3,84,4],[84,5,84,6],[84,7,84,8],[85,0,85,2],[85,3,85,4],[85,5,85,6],[85,7,85,8],[88,0,88,2],[88,3,88,4],[88,5,88,6],[88,7,88,8],[80,0,80,2],[81,0,81,2],[82,0,82,2],[83,0,83,2],[83,3,83,4],[83,5,83,6],[78,0,78,2],[79,0,79,2],[79,3,79,5],[79,6,79,8],[78,3,78,8],[83,7,83,8],[75,0,75,2],[75,3,75,8],[76,0,76,2],[76,3,76,8],[77,0,77,2],[72,0,72,2],[72,3,72,8],[73,0,73,2],[73,3,73,8],[74,0,74,2],[74,3,74,8],[77,3,77,8],[69,0,69,8],[70,0,70,2],[71,0,71,2],[71,3,71,8],[66,0,66,2],[66,3,66,4],[66,5,66,6],[66,7,66,8],[67,0,67,2],[67,3,67,4],[67,5,67,6],[67,7,67,8],[70,3,70,8],[64,0,64,2],[64,3,64,4],[64,5,64,6],[64,7,64,8],[65,0,65,2],[65,3,65,4],[65,5,65,6],[65,7,65,8],[62,0,62,2],[62,3,62,4],[62,5,62,6],[62,7,62,8],[63,0,63,2],[63,3,63,4],[63,5,63,6],[63,7,63,8],[60,0,60,2],[60,3,60,4],[60,5,60,6],[60,7,60,8],[61,0,61,2],[61,3,61,4],[61,5,61,6],[61,7,61,8],[58,0,58,2],[58,3,58,4],[58,5,58,6],[58,7,58,8],[59,0,59,2],[59,3,59,4],[59,5,59,6],[59,7,59,8],[54,0,54,2],[54,3,54,5],[54,6,54,8],[55,0,55,2],[56,0,56,2],[57,0,57,2],[52,0,52,2],[53,0,53,2],[52,3,52,8],[53,3,53,8],[44,0,44,8],[45,0,45,2],[45,3,45,8],[49,0,49,2],[49,3,49,8],[50,0,50,2],[50,3,50,8],[51,0,51,2],[51,3,51,8],[46,0,46,2],[46,3,46,8],[47,0,47,2],[47,3,47,8],[48,0,48,2],[48,3,48,8],[42,0,42,2],[42,3,42,4],[42,5,42,6],[42,7,42,8],[39,0,39,2],[39,3,39,4],[39,5,39,6],[39,7,39,8],[40,0,40,2],[40,3,40,4],[40,5,40,6],[40,7,40,8],[37,0,37,2],[37,3,37,4],[37,5,37,6],[37,7,37,8],[38,0,38,2],[38,3,38,4],[38,5,38,6],[38,7,38,8],[41,0,41,2],[41,3,41,4],[41,5,41,6],[41,7,41,8],[27,0,27,2],[27,3,27,8],[30,3,30,4],[30,7,30,8],[33,0,33,2],[34,0,34,2],[35,0,35,2],[36,0,36,2],[36,3,36,4],[36,5,36,6],[31,0,31,2],[32,0,32,2],[32,3,32,5],[36,7,36,8],[31,3,31,8],[29,0,29,2],[29,3,29,8],[30,0,30,2],[18,3,18,8],[23,3,23,8],[14,0,14,2],[14,3,14,8],[15,0,15,2],[15,3,15,8],[10,0,10,2],[10,3,10,8],[11,0,11,2],[11,3,11,8],[12,0,12,2],[12,3,12,8],[13,3,13,8],[5,0,5,8],[7,0,7,2],[7,3,7,8],[8,0,8,2],[8,3,8,8],[9,0,9,2],[9,3,9,8],[13,0,13,2],[28,0,28,2],[28,3,28,8],[25,0,25,2],[25,3,25,8],[26,0,26,2],[26,3,26,8],[20,0,20,8],[22,0,22,8],[23,0,23,2],[24,0,24,2],[24,3,24,8],[16,0,16,2],[16,3,16,8],[17,0,17,2],[17,3,17,8],[18,0,18,2],[148,0,150,2],[148,3,148,4],[148,5,148,8],[149,3,149,4],[150,3,150,4],[238,0,238,2],[238,3,238,5],[238,6,238,8],[179,0,179,3],[179,4,179,6],[179,7,179,8],[173,0,173,3],[171,0,171,3],[170,4,170,6],[157,0,157,8],[159,0,159,8],[160,0,160,3],[160,6,160,8],[161,0,161,3],[161,6,161,8],[152,0,152,8],[153,0,153,5],[153,6,153,8],[154,0,154,5],[253,7,253,8],[254,0,254,4],[252,5,252,6],[252,7,252,8],[246,0,246,8],[247,0,247,8],[249,0,249,4],[249,5,249,6],[249,7,249,8],[250,0,250,4],[250,5,250,6],[250,7,250,8],[254,5,254,6],[254,7,254,8]]}
[]
[]
[]
[null,null,null,null,"WNIOSEK o pożyczkę nr …........................ z dnia…........................."]
[]
["DANE TELEADRESOWE"]
[]
["Pełna nazwa/Nazwa firmy/Imię i Nazwisko"]
["Adres siedziby"]
["Stałe miejsce wykonywania działalności "]
["KRS "]
["REGON"]
["NIP"]
["Forma prawna"]
["Struktura własności"]
["Data rozpoczęcia działalności gospodarczej"]
["Główna działalność wg PKD"]
["Dodatkowa działalność wg PKD"]
["Numer telefonu kontaktowego/ adres e-mail:"]
[]
["INFORMACJA O WNIOSKOWANEJ TRANSAKCJI"]
[]
["WNIOSKOWANY PRODUKT "]
["Wnioskowany produkt kredytowy"]
["Kwota (w PLN)"]
["Waluta",null,null,"PLN"]
["Słownie"]
["Cel finansowania"]
["Okres kredytowania (w miesiącach)"]
["Karencja w spłacie kapitału (mies.)"]
["Spłata kapitału",null,null,null,null,"w dniu:"]
["Spłata odsetek"]
["Postawienie pożyczki do dyspozycji"]
["Transza",null,null,"I","II","III","IV","V","VI"]
["Data (dd-mm-rrrr)"]
["Kwota (w PLN)"]
["Rodzaj proponowanego zabezpieczenia",null,null,"Przedmiot/Komentarz/ Nr KW",null,"Wartość zabezpieczenia\n(w PLN)",null,"Obciążenie (w PLN)"]
[]
[]
[]
[]
[]
[]
[]
["WNIOSKOWANY PRODUKT II"]
["Wnioskowany produkt kredytowy"]
["Kwota (w PLN)"]
["Waluta",null,null,"PLN"]
["Słownie"]
["Cel finansowania"]
["Okres kredytowania (w miesiącach)"]
["Karencja w spłacie kapitału (mies.)"]
["Spłata kapitału"]
["Spłata odsetek"]
["Postawienie kredytu do dyspozycji",null,null,"W transzach"]
["Transza",null,null,"I","II","III","IV","V","VI"]
["Data (dd-mm-rrrr)"]
["Kwota (w PLN)"]
["Rodzaj proponowanego zabezpieczenia",null,null,"Przedmiot/Komentarz",null,"Wartość zabezpieczenia\n(w PLN)",null,"Obciążenie (w PLN)"]
["Wybierz..."]
[]
[]
[]
[]
[]
[]
[]
[]
[]
["WNIOSKOWANY PRODUKT III"]
["Wnioskowany produkt kredytowy"]
["Kwota (w PLN)"]
["Waluta",null,null,"PLN"]
["Słownie"]
["Cel finansowania"]
["Okres kredytowania (w miesiącach)"]
["Karencja w spłacie kapitału (mies.)"]
["Spłata kapitału"]
["Spłata odsetek"]
["Postawienie kredytu do dyspozycji"]
["Transza",null,null,"I","II","III","IV","V","VI"]
["Data (dd-mm-rrrr)"]
["Kwota (w PLN)"]
["Rodzaj proponowanego zabezpieczenia",null,null,"Przedmiot/Komentarz",null,"Wartość zabezpieczenia\n(w PLN)",null,"Obciążenie (w PLN)"]
["Wybierz..."]
[]
[]
[]
[]
[]
[]
[]
[]
[]
[]
["WNIOSKOWANA ZMIANA PRODUKTU I"]
["Zmieniany produkt kredytowy"]
["Zmiana warunków dotyczy"]
[]
["WNIOSKOWANA ZMIANA PRODUKTU II"]
["Zmieniany produkt kredytowy"]
["Zmiana warunków dotyczy"]
[]
["WNIOSKOWANA ZMIANA PRODUKTU III"]
["Zmieniany produkt kredytowy"]
["Zmiana warunków dotyczy"]
[]
["INFORMACJA O WNIOSKODAWCY"]
[]
[]
["Czy firma działa na bazie koncesji/licencji? "]
["Rodzaj prowadzonej księgowości"]
["Kto prowadzi księgowość"]
["Forma własności głównego miejsca prowadzenia działalności"]
["Wartość nieruchomości firmy\n(w PLN)",null,null,null,null,"Obciążenie\n(w PLN)"]
["Wartość środków transportu firmy\n(w PLN)",null,null,null,null,"Obciążenie\n(w PLN)"]
["Wartość maszyn i urządzeń firmy\n(w PLN)",null,null,null,null,"Obciążenie\n(w PLN)"]
[]
["Liczba współwłaścicieli/wspólników "]
["Liczba odrębnych gospodarstw domowych "]
["Zatrudnienie w przedsiębiorstwie\n(liczba pracowników na umowę o pracę - w pełnych etetach, liczba pozostałych pracowników zatrudnionych na umowy cywilnoprawne)",null,null,"na dzień złożenia wniosku"]
[null,null,null,"na koniec 2020 roku"]
[null,null,null,"na koniec 2019 roku"]
[]
["Opis prowadzonej działalności"]
[]
["Główni dostawcy\n(wymienić 3 najważniejszych - nazwa)",null,null,"Krótka charakterystyka dostawcy, forma rozliczeń, terminy płatności",null,null,null,null,"Udział % w dostawach"]
[]
[]
[]
[]
["Główni odbiorcy\n(wymienić 3 najważniejszych - nazwa)",null,null,"Krótka charakterystyka odbiorcy, forma rozliczeń, terminy płatności",null,null,null,null,"Udział % w sprzedaży"]
[]
[]
[]
[]
["INFORMACJA O PODMIOTACH POWIĄZANYCH"]
["Czy występują podmioty powiązane?"]
["Pełna nazwa podmiotu powiązanego",null,null,"Rodzaj powiązania",null,"REGON",null,"PESEL"]
[]
[]
[]
[]
[]
[]
[]
[]
[]
["Zatrudnienie w podmiotach powiązanych\n(liczba pracowników na umowę o pracę - w pełnych etetach, liczba pozostałych pracowników zatrudnionych na umowy cywilnoprawne)",null,null,"na dzień złożenia wniosku"]
[null,null,null,"na koniec 2020 roku"]
[null,null,null,"na koniec 2019 roku"]
[]
["GŁÓWNA OSOBA ZARZĄDZAJĄCA (lub właściciel jeśli pełni funkcję zarządzającego)"]
["Imię i nazwisko",null,null,null,null,null,"Doświadczenie w branży (w latach)"]
[]
[]
[]
["INFORMACJA O ZOBOWIĄZANIACH PUBLICZNO-PRAWNYCH "]
[]
["Występują zaległości:"]
["1) wobec Urzędu Skarbowego z tytułu podatków lub innych należności publicznoprawnych:",null,null,null,null,"Komentarz\nwypełnić, jeśli TAK"," "]
["2) wobec Zakładu Ubezpieczeń Społecznych/KRUS:",null,null,null,null,"Komentarz\nwypełnić, jeśli TAK"]
["3) wobec innych instytucji finansowych (banki, instytucje leasingowe itp.):",null,null,null,null,"Komentarz\nwypełnić, jeśli TAK"]
["4) czy wobec Pani/Pana/Państwa tyczy się postępowanie cywilne, egzekucyjne, karne, karne, skarbowe lub upadłościowe:",null,null,null,null,"Komentarz\nwypełnić, jeśli TAK"]
[]
["INFORMACJA FINANSOWA "]
[]
["Należności z tytułu dostaw i usług",null,null,null,"Stan na koniec ubiegłego roku obrachunkowego",null,null,"Stan na dzień                          składania Wniosku"]
["Należności ogółem:"]
["W tym przeterminowane:"]
[" od 1 do 30 dni"]
[" od 31 "]
["Należności dochodzone na drodze sądowej"]
["Utworzone rezerwy na należności   przeterminowane"]
[]
["Zobowiązania z tytułu dostaw i usług",null,null,null,"Stan na koniec ubiegłego roku obrachunkowego",null,null,"Stan na dzień składania Wniosku"]
["Zobowiązania ogółem z tytułu dostaw i usług i inne "]
["W tym przeterminowane:",null,null,null,{"$f":"IFERROR((I173/F173),\"nie można wyliczyć\")","v":"nie można wyliczyć"},null,null,{"$f":"IFERROR((G173/F173),\"nie można wyliczyć\")","v":"nie można wyliczyć"}]
[" od 1 do 30 dni"]
[" od 31 "]
[]
[]
[]
[]
[]
[]
["WSPÓŁPRACA Z INNYMI BANKAMI I INSTYTUCJAMI FINANSOWYMI"]
["Zobowiązania w innych bankach i instytucjach finansowych z tytułu prowadzonej działalności gospodarczej \n"]
["1) produkty kredytowe – stan na dzień złożenia wniosku o produkt kredytowy"]
["Nazwa banku/instytucji\nfinansowej",null,"Rodzaj produktu","Kwota przyznanego kredytu/\nlimitu\n(w PLN)","Kwota kapitału pozostająca do spłaty\n(w PLN)","Okres kredytowania do\n(miesiąc, rok)","Miesięczna rata\n(w PLN)\n","Oprocentowa-nie łączne: stawka bazowa + marża","Rodzaj zabezpiecze-\nnia"]
[]
[]
[]
[]
[]
[]
[]
["2) produkty leasingowe – stan na dzień złożenia wniosku o produkt kredytowy"]
["Nazwa firmy leasingowej","Kwota","Aktualne zadłużenie","Waluta","Rodzaj leasingu\n(operacyjny/ finansowy)","Miesięczna rata kapitałowa netto",null,"Miesięczna rata odsetkowa lub miesięczny VAT przy leasingu operacyjnym","Termin spłaty"]
[]
[]
[]
[]
[]
[]
[]
[]
[]
["INFORMACJA NA TEMAT POSIADANYCH RACHUNKOW BANKOWYCH\n"]
[]
["Nazwa Banku",null,null,"średniomiesięczne wpływy z ostatnich 12 miesięcy",null,null,"średnie wpływy z ostatniego miesiąca"]
[]
["Dalsze dane wypełnia Wnioskodawca (Właściciel). W przypadku braku rozdzielności majątkowej ze współmałżonkiem obligatoryjne podanie informacji dotyczących firmy)."]
["2. AKTUALNA SYTUACJA RODZINNA WNIOSKODAWCY:"]
["Ilość osób w gospodarstwie domowym"]
["3. DOCHODY SPOZA FIRMY:"]
["Źródło dochodów:",null,null,"Miesięczny dochód netto (PLN)"]
[]
[]
["4. MAJĄTEK OSOBISTY:"]
["Wyszczególnienie",null,"Rok budowy/produkcji","Aktualna wartość rynkowa (PLN)",null,"Rodzaj obciążenia (np. hipoteka, zastaw, przewła-\nszczenie)","Łączna kwota obciążenia (PLN)","Wierzyciel"]
[]
[]
[]
[]
[]
[]
[]
[]
["5. ZOBOWIĄZANIA OSOBISTE W INNYCH BANKACH I INSTYTUCJACH FINANSOWYCH (np. pożyczek/kredytów hipotecznych dla osób fizycznych, innych kredytów konsumpcyjnych) – stan na dzień złożenia wniosku o produkt kredytowy:"]
["Nazwa banku/instytucji finansowej",null,"Rodzaj produktu","Kwota przyznanego kredytu/limitu (w PLN)","Kwota pozostająca do spłaty (w PLN)","Termin spłaty całkowitej (miesiąc, rok)\n","Suma rat kapitałowo-odsetkowych na najbliższe 12 miesięcy\n(w PLN)","Rodzaj zabezpieczenia"]
[]
[]
[]
[]
[]
[]
[]
[]
[]
["OPIS SYTUACJI UTRATY/ZAGROŻENIA UTRATY PŁYNNOŚCI I HARMONOGRAM DZIAŁAŃ  NAPRAWCZYCH"]
["a) Opis sytuacji dot. prowadzonej działalności przed wystąpieniem COVID – 19 (pozycja na rynku, konkurencja,  zapotrzebowanie na ofertę, zasoby kadrowo-majątkowe):"]
["b) Opis skutków wywołanych wprowadzeniem stanu  pandemii dla przedsiębiorstwa ( Czy nastąpił spadek sprzedaży? Czy ze względu na odgórne zarządzenie pożyczkobiorca nie miał możliwości prowadzenia działalności gospodarczej np. w przypadku zamkniętych placówek żłobków, przedszkoli, szkół, gastronomii, fryzjerów czy zamknięcia granic itp.)"]
["c) Otrzymana/ przyznana/ planowana do uzyskania pomoc z innych źródeł w związku ze stanem pandemii (sektor państwowy, w tym ZUS, sektor samorządowy, sektor prywatny, w tym banki):\n\n"]
["d) Harmonogram działań naprawczych w celu osiągnięcia poprawy płynności i utrzymania działalności gospodarczej:"]
[]
["OŚWIADCZENIA"]
["Zachodniopomorski Bank Spółdzielczy (dalej Bank) informuje, że:\n1) Udostępnienie danych jest dobrowolne, jednakże ich podanie warunkuje zawarcie i realizację umowy;\n2) Podstawa prawna:\na) art. 105 i 105a Ustawy z dnia 29 sierpnia 1997 r. Prawo bankowe; \nb) art. 24 ust. 1 ustawy z dnia 9 kwietnia 2010 r. o udostępnieniu informacji gospodarczych i wymianie danych gospodarczych."]
["wypełniając poniższą tabelę należy wyrbać, zgodnie ze stanem faktycznym odpowiedzi TAK, NIE, NIE DOTYCZY"]
["Oświadczenia i upoważnienia",null,null,null,null,"Wnioskodawca",null,"Współwnioskodawca/\nWspółmałżonek*"]
["1) Wyrażam dobrowolną zgodę na otrzymywanie informacji handlowych i informacji marketingowych, w szczególności o promocjach, konkursach i loteriach oraz nowych i aktualnych produktach Banku za pośrednictwem: "]
["a) poczty elektronicznej na podany przeze mnie adres mailowy "]
["b) kontaktu telefonicznego, wiadomości sms i mms, na podany przeze mnie numer telefonu "]
["2) Wyrażam dobrowolną zgodę na przetwarzanie przez Bank moich danych osobowych w celu prowadzenia marketingu produktów własnych po okresie obowiązywania umowy zawartej przeze mnie z Bankiem.\nPrzyjmuję do wiadomości, że każda z wyżej wymienionych zgód może być przez mnie w dowolnym momencie bezpłatnie cofnięta, bez jakichkolwiek negatywnych konsekwencji. Wycofanie zgody nie wpływa na zgodność z prawem przetwarzania, którego dokonano na podstawie zgody przed jej wycofaniem."]
["3) Upoważniam Bank, na podstawie art. 24 ust. 1 Ustawy z dnia 9 kwietnia 2010 r. o udostępnieniu informacji gospodarczych i wymianie danych gospodarczych do:"]
["a) wystąpienia do Krajowego Rejestru Długów Biura Informacji Gospodarczej S.A. o ujawnienie informacji gospodarczych o moich zobowiązaniach;"]
["b) wystąpienia za pośrednictwem Biura Informacji Kredytowej S.A. z siedzibą w Warszawie do biur informacji gospodarczej o ujawnienie informacji gospodarczych dotyczących moich zobowiązań."]
["4) Upoważniam Bank do bezpośrednich kontaktów z wykonawcą operatu/-ów nieruchomości w celu wyjaśnienia ewentualnych wątpliwości wynikłych w następstwie weryfikacji operatu/-ów przez Bank "]
["5) Oświadczam, iż zostałem poinformowany, że w przypadku przedłożenia fałszywych dokumentów lub informacji, zebrane informacje bank może przekazać do Systemu Dokumenty Zastrzeżone, którego administratorem jest Związek Banków Polskich."]
["6) Oświadczam, iż informacje dostępne w przeglądarkach internetowych mających zastosowanie do mojej sytuacji prawnej CEiDG, GUS (e-Regon), e-KRS są aktualne i zgodne z obecnym stanem faktycznym"]
["7) Oświadczam/y, że na podstawie art. 104 ust. 3 ustawy prawo bankowe, wyrażam/y zgodę na udostępnienie przez bank informacji podanych w niniejszym wniosku oraz załączonych do tego wniosku dokumentów finansowych niżej wymienionym podmiotom. Udostępnione dane będą przetwarzane celem przygotowania oraz złożenia oferty dotyczącej produktów i usług oferowanych przez wskazane podmioty oraz w celu prowadzenia działalności marketingowej przez te podmioty a w przypadku banków spółdzielczych również udzielenia kredytu w konsorcjum z Bankiem. "]
["a) SGB Leasing sp. z o. o. z siedzibą ul. Bolesława Krzywoustego 3, 61-144 Poznań"]
["b) Faktorzy S.A. z siedzibą ul. Zwierzyniecka 14/16, 60-813 Poznań"]
["c) banki Spółdzielczej Grupy Bankowej"]
["d) Concordia Polska TUW, WTUŻiR Concordia Capital S.A. z siedzibą ul. S. Małachowskiego 10, 61-129 Poznań"]
["e) SALTUS Towarzystwo Ubezpieczeń Wzajemnych z siedzibą w Sopocie ul. Władysława IV 22 , 81-743 Sopot"]
["9) Oświadczam, iż zostałem poinformowany o możliwości odwołania w dowolnym czasie zgód, o których mowa w pkt. 8 bez konieczności podawania przyczyny"]
["10) Oświadczam, iż otrzymałam/em klauzulę informacyjną administratora danych osobowych."]
["11) Oświadczam, iż otrzymałam/em klauzulę informacyjną BIK"]
[]
["1. Oświadczam, że jestem/nie jestem* członkiem Banku oraz, że jestem/nie jestem* powiązany kapitałowo lub Organizacyjnie z członkiem Banku, Zarządu, Rady Nadzorczej lub osobą zajmującą stanowisko kierownicze w Banku lub z jednostką powiązaną z nimi kapitałowo lub organizacyjnie.\n\n2. Oświadczam pod rygorem odpowiedzialności przewidzianej w art. 297 Kodeksu karnego, że informacje podane przeze mnie we Wniosku są zgodne z obecnym stanem faktycznym. Wyrażam zgodę na sprawdzenie przez Bank podanych informacji.\n\n3. Wnioskodawca oświadcza, że w przypadku braku możliwości złożenia w Banku oryginału dokumentu wymaganego dla przeprowadzenia analizy kredytowej, prześle niezwłocznie w formie e-maila skan oryginału dokumentu lub przekaże kserokopię dokumentu. Wnioskodawca oświadcza, że skany oraz kserokopie dokumentów przekazane do Banku będą zgodne z oryginałem i aktualne pod rygorem odpowiedzialności karnej wynikającej m. in. z art. 297 § 1 ustawy z dnia 6.04.1997r. Kodeks karny. Na każde żądanie Banku Wnioskodawca zobowiązuje się niezwłocznie złożyć w Banku oryginał dokumentu uprzednio przekazanego w formie skanu. "]
[]
[]
["miejscowość, data",null,null,null,null,"pieczęć i podpis/y wnioskodawcy/ów/współmałżonka"]
[]
[]
[]
[]
[]
[]
["WYPEŁNIA PRACOWNIK BANKU"]
["Oddział Banku"]
["Data złożenia wniosku"]
["Wniosek kompletny",null,null,null,"Komentarz:"]
["Data złożenia kompletnego wniosku"]
["Pieczątka i podpis pracownika przyjmującego wniosek"]
[]
["* niepotrzebne usunąć"]

{"sheet":"Oświadczenia wnioskodawcy","index":5,"n_rows":21,"n_cols":6,"rows_kept":21,"cut":false,"hidden":false,"merged":[[19,0,19,2],[19,5,19,8],[20,0,20,2],[20,5,20,8],[13,0,13,8],[14,0,14,8],[15,0,15,8],[16,0,16,8],[17,0,17,8],[18,0,18,8],[12,0,12,8],[1,0,1,8],[2,0,2,8],[3,0,3,8],[4,0,4,8],[5,0,5,8],[6,0,6,8],[7,0,7,8],[8,0,8,8],[9,0,9,8],[10,0,10,8],[11,0,11,8]]}
[]
["Niniejszym oświadczam, iż środki pochodzące z wnioskowanej pożyczki nie będą przeznaczone na:"]
["1) finansowanie wydatków pokrytych uprzednio ze środków EFSI, z innych funduszy, programów, środków i instrumentów Unii Europejskiej lub innych źródeł pomocy krajowej lub zagranicznej; "]
["2) prefinansowanie wydatków, na które otrzymano dofinansowanie w formie dotacji lub pomocy zwrotnej; "]
["3) refinansowanie całości lub części wydatków, które na dzień 1 lutego 2020 r. zostały już poniesione       ( tj. opłacone) ; "]
["4) refinansowanie jakichkolwiek pożyczek, kredytów lub rat leasingowych; "]
["5) finansowanie zakupu aktywów finansowych przeznaczonych do obrotu; "]
["6) finansowanie zakupu nieruchomości przeznaczonych do obrotu lub stanowiące lokatę kapitału; "]
["7) finansowanie kształcenia, szkolenia, szkolenia zawodowego pracowników lub innych przedsięwzięć bezpośrednio objętych zakresem rozporządzenia Parlamentu Europejskiego i Rady (UE) nr 1304/2013 w sprawie Europejskiego Funduszu Społecznego; "]
["8) finansowanie działalności w zakresie wytwarzania, przetwórstwa lub wprowadzania do obrotu przez producenta lub importera tytoniu i wyrobów tytoniowych;  "]
["9) finansowanie działalności w zakresie produkcji lub wprowadzania do obrotu przez producenta lub importera napojów alkoholowych; "]
["10) finansowanie działalności w zakresie produkcji lub wprowadzania do obrotu przez producenta lub importera treści pornograficznych; "]
["11) finansowanie działalności w zakresie obrotu materiałami wybuchowymi, bronią i amunicją; "]
["12) finansowanie działalności w zakresie gier losowych, zakładów wzajemnych, gier na automatach i gier na automatach o niskich wygranych; "]
["13) finansowanie działalności w zakresie produkcji lub wprowadzania do obrotu przez producenta lub importera środków odurzających, substancji psychotropowych lub prekursorów; "]
["14) finansowanie likwidacji lub budowy elektrowni jądrowych; "]
["15) finansowanie inwestycji na rzecz redukcji emisji gazów cieplarnianych pochodzących  z listy działań wymienionych w załączniku I do dyrektywy 2003/87/WE; "]
["16) finansowanie inwestycji w infrastrukturę portów lotniczych, chyba, że są one związane z ochroną środowiska lub towarzyszą im inwestycje niezbędne do łagodzenia lub ograniczenia ich negatywnego oddziaływania na środowisko. "]
["17) finansowanie inwestycji w infrastrukturę instytucji opiekuńczo-pobytowych (rozumianych zgodnie z Wytycznymi w zakresie realizacji przedsięwzięć w obszarze włączenia społecznego i zwalczania ubóstwa z wykorzystaniem środków EFS i EFRR na lata 2014-2020, a w przypadku instytucji zdrowotnych – zgodnie z Policy Paper dla ochrony zdrowia na lata 2014-2020 Krajowe Strategiczne Ramy) świadczących opiekę dla osób z niepełnosprawnościami, osób z problemami psychicznymi oraz dzieci pozbawionych opieki rodzicielskiej, chyba że rozpoczęty w nich został proces przechodzenia z opieki zinstytucjonalizowanej do opieki świadczonej w społeczności lokalnej lub proces ten zostanie rozpoczęty w okresie realizacji Inwestycji.\n"]
[]
["miejscowość, data",null,null,null,null,"pieczęć i podpis/y Wnioskodawcy/ów"]

{"sheet":"Oświadczenia ","index":6,"n_rows":22,"n_cols":6,"rows_kept":22,"cut":false,"hidden":false,"merged":[[19,5,19,8],[13,0,13,8],[14,0,14,8],[15,0,15,8],[16,0,16,8],[18,0,18,2],[18,5,18,8],[21,0,21,8],[22,0,22,8],[24,0,24,8],[12,0,12,8],[1,0,1,8],[2,0,2,8],[3,0,3,8],[4,0,4,8],[5,0,5,8],[6,0,6,8],[7,0,7,8],[8,0,8,8],[9,0,9,8],[10,0,10,8],[11,0,11,8],[19,0,19,2]]}
[]
["Niniejszym oświadczam, iż:"]
["1) przed 31.12.2019 nie znajdowałem się w trudnej sytuacji, a obecnie:\n- znajduje się w trudnej sytuacji w wyniku wystąpienia COVID-19, lub\n- jestem nią zagrożony; "]
["2) nie ciąży na mnie obowiązek zwrotu pomocy, wynikający z decyzji Komisji Europejskiej uznającej pomoc za niezgodną z prawem oraz ze wspólnym rynkiem lub orzeczenia sądu krajowego lub unijnego; "]
["3) jestem mikro, małym lub średnim przedsiębiorstwem w rozumieniu przepisów załącznika nr I Rozporządzenia Komisji (UE) nr 651/2014 z dnia 17 czerwca 2014 r. uznającego niektóre rodzaje pomocy za zgodne z rynkiem wewnętrznym w zastosowaniu art. 107 i 108 Traktatu; "]
["4) jestem osobą fizyczną/osobą prawną/jednostką organizacyjną niebędącą osobobą prawną, której właściwa ustawa przyznaje zdolność prawną, prowadzącą działalność gospodarczą na terenie województwa zachodniopomorskiego; "]
["a) w przypadku osób fizycznych: nie zostałem prawomocnie skazany za przestępstwo składania fałszywych zeznań, przekupstwa, przeciwnko mieniu, wiarygodności dokumentów, obrotowi pieniężnemu i papierami wartościowymi, obrotowi gospodarczemu, systemowi bankowemu, przestępstwo skarbowe albo inne związane z wykonywaniem działalności gospodarczej lub popełnione w celu osiągnięcia korzyści majątkowych,"]
["b) w przypadku podmiotów niebędących osoba fizyczną: żadna z osób będacych członkami organów zarządzających/wspólnicy nie została/li skazana/ni za przestępstwo składania fałszywych zeznań, przekupstwa, przeciwnko mieniu, wiarygodności dokumentów, obrotowi pieniężnemu i papierami wartościowymi, obrotowi gospodarczemu, systemowi bankowemu, przestępstwo skarbowe albo inne związane z wykonywaniem działalności gospodarczej lub popełnione w celu osiągnięcia korzyści majątkowych;"]
["5) nie jestem wykluczony, stosownie do Rozporządzenia Komisji (UE) nr 1407/2013 z dnia 18 grudnia 2013 r. w sprawie stosowania art. 107 i 108 Traktatu o funkcjonowaniu Unii Europejskiej do pomocy de minimis (jeżeli przedsiębiorstwo ubiega się o pomoc de minimis); "]
["6) nie podlegam wykluczeniu z możliwości dostępu do środków publicznych na podstawie przepisów prawa lub wykluczeniu takiemu nie podlegają osoby uprawnione do mojej reprezentacji, w szczególności na podstawie art. 207 ust. 4 ustawy o finansach publicznych, art. 12 ust. 1 pkt. 1 ustawy o skutkach powierzenia wykonywanej pracy cudzoziemcom przebywającym wbrew przepisom na terenie RP, art. 9, ust. 1 pt. 2 a ustawy o odpowiedzialności podmiotów zbiorowych za czyny zabronione pod groźbą kary, "]
["7) jestem/nie jestem* podmiotem, w stosunku, do którego Zachodniopomorski Bank Spółdzielczy lub osoby upoważnione do jego reprezentacji¹ posiadają, tak bezpośrednio jak i pośrednio, jakiekolwiek powiązania, w tym o charakterze majątkowym, kapitałowym², osobowym³ czy też faktycznym, które wpływają lub mogłyby potencjalnie wpływać na prawidłową realizację Operacji, "]
["8) najpóźniej w dniu zawarcia Umowy Inwestycyjnej będę posiadał w województwie zachodniopomorskim siedzibę , zgodnie z wpisem do rejestru przedsiębiorców w Krajowym Rejestrze Sądowym albo stałe  miejsce wykonywania działalności gospodarczej, zgodnie z wpisem do Centralnej Ewidencji i Informacji o Działalności Gospodarczej;  \n(W przypadku, gdy przedsiębiorca nie posiada ujawnionego w CEIDG stałego lub dodatkowego stałego miejsca wykonywania działalności gospodarczej, taki przedsiębiorca może otrzymać wsparcie, pod warunkiem, że posiada adres zamieszkania na terenie województwa zachodniopomorskiego, co zostanie potwierdzone na podstawie wiarygodnych danych pochodzących np. ze składanych przez przedsiębiorcę deklaracji do Urzędu Skarbowego, Zakładu Ubezpieczeń Społecznych, Kasy Rolniczego Ubezpieczenia Społecznego, lub złożonego wniosku o dokonanie wpisu do CEIDG w których to dokumentach zostało ujawnione miejsce zamieszkania przedsiębiorcy); \n"]
["9) będę prowadził odpowiednią dokumentację i ewidencję księgową związaną z udzieloną Pożyczką;"]
["10) po zapozniau się z Kartą Produktu Pożyczki Płynnościowej w ramach projektu JEREMIE II, wyrażam zgodę na warunki w niej zawarte, ponadto zapewniam, że wszelkie informacje, dokumenty, dane oraz oświadczenia są zgodnie z prawdą oraz kompletne, nie zatajono żadnych informacji mających lub mogących mieć znaczenie dla oceny wniosku o udzielenie Pożyczki;"]
["11) nie będę angażował się w działania lub nie będę podejmował decyzji sprzecznych z prawem i zasadami Unii Europejskiej, w szczególnosci prawem lub zasadami dotyczacymi konkurencji;"]
["12) realizacja operacji nie spowoduje nakładania się finansowania/dofinansowania uzyskanego z innych źródeł finansowania przyznanego z EFSI, z innych funduszy, programów, środków i instrumentów Unii Europejskiej, a także innych źródeł pomocy krajowej lub zagranicznej;"]
["13) przedsięwzięcie, którego pożyczka dotyczy nie jest finansowane/współfinansowane z Unii Europejskiej."]
[]
[]
["miejscowość, data",null,null,null,null,"pieczęć i podpis/y Wnioskodawcy/ów"]
[]
["* niepotrzebne skreślić                                                                                                                                                                                                                                                                                      1) do osób upoważnionych do reprezentowania Zachodniopomorskiego Banku Spółdzielczego zalicza się pracowników Banku, członków Zarządu Banku , członków Rady Nadzorczej ;                                                                                                                                                                                                                                                                            2) powiązania kapitałowe  polegają w szczególności na: pozostawaniu w spółce jako wspólnik spółki cywilnej lub spółki osobowej; pełnieniu funkcji członka organu  nadzorczego lub zarządzającego, prokurenta, pełnomocnika; posiadaniu co najmniej 25% udziałów lub akcji;                                                                                                                                                                                                                                                                                                                 3) powiązania personalne  polegają w szczególności na: pozostawaniu w związku małżeńskim lub partnerskim, w pierwszym i drugim stopniu pokrewieństwa pełnego w linii prostej (ojciec, matka, rodzice,  syn, córka,  dziecko, dziadek, babka, dziadek i babka, wnuk,  wnuczka, wnuk i wnuczka) oraz drugim stopniu pokrewieństwa linii bocznej (  brat, siostra,  rodzeństwo), w pierwszym stopniu powinowactwa rodzinnego w linii prostej ( ojciec męża, ojciec żony, matka męża, matka żony,rodzice męża, rodzice żony, mąż córki,żona syna) oraz drugim stopniu powinowactwa rodzinnego w linii bocznej (  brat męża, siostra męża, brat żony, siostra żony,  żona brata, mąż siostry), w stosunku przysposobienia, opieki lub kurateli."]

{"sheet":"Analiza finansowa Ryczałt","index":7,"n_rows":47,"n_cols":11,"rows_kept":47,"cut":false,"hidden":false,"merged":[[47,0,47,10],[48,0,48,10],[25,0,26,0],[25,1,25,3],[25,4,25,10],[43,0,43,10],[44,0,44,10],[46,0,46,10],[24,0,24,10],[0,4,1,10],[3,0,4,0],[3,1,3,3],[3,4,3,10],[23,0,23,10]]}
["ROK BIEŻĄCY",2020,null,null,"Dla podmiotów rozliczających się w sposób uproszczony \n(karta podatkowa, ryczałt ewidencjonowany)"]
[]
["Przychody i rozchody"]
["Wyszczegónienie","Wykonanie (w zł)",null,null,"Prognoza  (w zł)"]
[null,2018,{"$f":"B5+1","v":2019},"…/2020",{"$f":"C5+1","v":2020},{"$f":"E5+1","v":2021},2022,2023,2024,2025,2026]
["1.Przychody"]
["2. Wydatki ogółem (2a+..+2k)",{"$f":"SUM(B8:B18)","v":0},{"$f":"SUM(C8:C18)","v":0},0,0,0,0,0,0,0,0]
["2a. zakup towarów handlowych i materiałów"]
["2b. wynagrodzenia pracowników z narzutami"]
["2c. czynsze"]
["2d. paliwo"]
["2e. media (woda, ścieki, prąd, gaz, telefon, inne)"]
["2f.  usługi obce "]
["2g. ubezpieczenia"]
["2h. podaki lokalne i opłaty"]
["2i. odsetki od kredytów i pożyczek"]
["2j. raty leasingu operacyjnego"]
["2k. Inne*"]
["3. Wynik na działalności (1-2)",{"$f":"B6-B7","v":0},{"$f":"C6-C7","v":0},0,0,0,0,0,0,0,0]
["4. Składki ZUS właściciela"]
["5. Dochód brutto (3-4)",{"$f":"B19-B20","v":0},{"$f":"C19-C20","v":0},0,0,0,0,0,0,0,0]
["6. Podatek"]
["7. Dochód netto (5-6)",{"$f":"B21-B22","v":0},{"$f":"C21-C22","v":0},0,0,0,0,0,0,0,0]
["* w przypadku wartości \"innych kosztów\" przekraczajacej 50% ogółu struktury kosztów należy szczegółowo opisać w polu \"Inne informacje Wnioskodawcy\" co wchodzi w skład tych kosztów."]
["Informacje dodatkowe"]
["Wyszczegónienie","Wykonanie (w zł)",null,null,"Prognoza  (w zł)"]
[null,{"$f":"B5","v":2018},{"$f":"C5","v":2019},"…/2020",2020,2021,2022,2023,2024,2025,2026]
["A. Majątek trwały"]
["B. Majątek obrotowy",{"$f":"B30+B31+B32","v":0},{"$f":"C30+C31+C32","v":0},0,0,0,0,0,0,0,0]
["1. należności"]
["2. zapasy"]
["3. środki pieniężne"]
["C. Zobowiązania bieżące bez kredytów"]
["D. Kredyty i pożyczki krótkoterminowe"]
["E. Zobowiązania długoterminowe bez kredytów"]
["F. Kredyty i pożyczki długoterminowe"]
["G. Spłata kredytu(ów) w Banku"]
["H. Spłata kredytu(ów) w innych bankach"]
["I. Spłata zobowiązań z tytułu leasingu i innych"]
["J. Zakup środków trwałych – inwestycje"]
["K. Wynagrodzenie dla właściciela"]
["L. Zwiększenia/ zmniejszenia (+/-) kapitałów własnych"]
[]
["Komentarz Wnioskodawcy nt. sytuacji ekonomiczno-finansowej firmy, osiągniętego wyniku finansowego  (informacja podawana fakultatywnie):"]
[]
[]
["Inne informacje Wnioskodawcy:"]

{"sheet":"Analiza fimamsowa PKPiR","index":8,"n_rows":52,"n_cols":11,"rows_kept":52,"cut":false,"hidden":false,"merged":[[48,0,48,10],[49,0,49,10],[51,0,51,10],[52,0,52,10],[26,0,26,10],[28,0,29,0],[28,1,28,3],[28,4,28,10],[30,1,30,10],[41,1,41,10],[5,1,5,10],[1,0,1,10],[2,0,2,10],[3,0,4,0],[3,1,3,3],[3,4,3,10]]}
["ROK BIEŻĄCY",2020]
["Dla podmiotów prowadzących książkę przychodów i rozchodów"]
["Przychody i rozchody"]
["Wyszczegónienie","Wykonanie (w zł)",null,null,"Prognoza  (w zł)"]
[null,2018,2019,"…/2020",2020,{"$f":"E5+1","v":2021},2022,2023,2024,2025,2026]
["Przychody i rozchody"]
["A. Przychody ogółem",{"$f":"B8+B9","v":0},{"$f":"C8+C9","v":0},0,0,0,0,0,0,0,0]
["1.  wartość sprzedanych towarów i usług"]
["2. pozostałe przychody"]
["B. Koszt uzyskania przychodu (B.1-B.2)",{"$f":"B11+B19","v":0},{"$f":"C11+C19","v":0},0,0,0,0,0,0,0,0]
["1. Wydatki ogółem",{"$f":"B12+B13+B14+B15","v":0},{"$f":"C12+C13+C14+C15","v":0},0,0,0,0,0,0,0,0]
["1a. zakup towarów handlowych i materiałów"]
["1b. koszty uboczne zakupu"]
["1c. wynagrodzenia z narzutami"]
["1d. pozostałe wydatki, w tym:",{"$f":"B16+B17+B18","v":0},{"$f":"C16+C17+C18","v":0},0,0,0,0,0,0,0,0]
["-  amortyzacja"]
["-  odsetki od kredytów i pożyczek"]
["-  Inne*"]
["2. Saldo zmiany zapasów (2a-2b)",{"$f":"B20-B21","v":0},{"$f":"C20-C21","v":0},0,0,0,0,0,0,0,0]
["2a. remanent początkowy"]
["2b. remanent końcowy"]
["C. Wynik na działalności (A-B)",{"$f":"B7-B10","v":0},{"$f":"C7-C10","v":0},0,0,0,0,0,0,0,0]
["D. Składki ZUS właścicela/i (jeśli nie ujeto w kosztach uzyskania przychodu)"]
["E. Dochód brutto (C-D)",{"$f":"B22-B23","v":0},{"$f":"C22-C23","v":0},0,0,0,0,0,0,0,0]
["F. Koszt utrzymania właściciela"]
["G. Zysk zatrzymany (E-F)",{"$f":"B24-B25","v":0},{"$f":"C24-C25","v":0},0,0,0,0,0,0,0,0]
["* w przypadku wartości \"innych kosztów\" przekraczajacej 20% ogółu struktury kosztów należy szczegółowo opisać w polu \" Inne informacje Wnioskodawcy\" co wchodzi w skład tych kosztów."]
["Majątek i  źródła fiansowania"]
["Wyszczegónienie","Wykonanie (w zł)",null,null,"Prognoza  (w zł)"]
[null,{"$f":"B5","v":2018},2019,"…/2020",2020,2021,2022,2023,2024,2025,2026]
["Majątek"]
["A. Majątek trwały",{"$f":"B33+B34+B35+B36","v":0},{"$f":"C33+C34+C35+C36","v":0},0,0,0,0,0,0,0,0]
["1. nieruchomości"]
["2. środki transporu"]
["3. maszyny i urządzenia"]
["4. inwestycje rozpoczęte"]
["B. Majątek obrotowy",{"$f":"B38+B39+B40","v":0},{"$f":"C38+C39+C40","v":0},0,0,0,0,0,0,0,0]
["1. należności"]
["2. zapasy"]
["3. środki pieniężne"]
["C. Majątek ogółem (A+B)",{"$f":"B32+B37","v":0},{"$f":"C32+C37","v":0},0,0,0,0,0,0,0,0]
["Zobowiązania i inne pasywa"]
["D. Zobowiązania bieżące bez kredytów"]
["E. Kredyty i pożyczki krótkoterminowe"]
["F. Zobowiązania długoterminowe bez kredytów"]
["G. Kredyty i pożyczki długoterminowe"]
["H. Zobowiązania i inne pasywa ogółem (D+E+F+G)",{"$f":"B43+B44+B45+B46","v":0},{"$f":"C43+C44+C45+C46","v":0},0,0,0,0,0,0,0,0]
[]
["Komentarz Wnioskodawcy nt. sytuacji ekonomiczno-finansowej firmy, osiągniętego wyniku finansowego  (informacja podawana fakultatywnie):"]
[]
[]
["Inne informacje Wnioskodawcy:"]

{"sheet":"Plan przepływów pieniężnych UK","index":9,"n_rows":44,"n_cols":10,"rows_kept":44,"cut":false,"hidden":false,"merged":[[4,0,5,0],[4,1,4,2],[4,3,4,9],[0,0,0,1],[0,3,0,6],[1,0,1,9],[2,0,2,9],[3,0,3,9]]}
["ROK BIEŻĄCY",null,2020]
["Dla podmiotów prowadzących uproszczoną sprawozdawczość finansową"]
["RACHUNEK PRZEPŁYWÓW PIENIĘŻNYCH"]
["Prosimy o wypełnienie poniższego formularza lub przekazania dokumentów własnych. Dane historyczne prosimy przedstawić za okres 2 lat wstecz."]
["Analizowane  okresy",null,null,"Prognoza  (w zł)"]
[null,2019,"…/2020",2020,{"$f":"D6+1","v":2021},2022,2023,2024,2025,2026]
["I. Środki pieniężne w kasie lub na rachunku bankowym na początek okresu"]
["II. Wpływy/ przychody",{"$f":"SUM(B9:B14)","v":0},0,0,0,0,0,0,0,0]
["1. Przychody ze sprzedaży ogółem"]
["2. Amortyzacja"]
["3.Zmiana stanu zapasów "]
["4. Zmiana stanu należności "]
["5. Wypłata kredytów/ pożyczek"]
["6. Inne:.................................."]
["Razem środki finansowe",{"$f":"B8+B7","v":0},0,0,0,0,0,0,0,0]
["III. Rozchody/ wydatki",{"$f":"B17+B19+B20","v":0},0,0,0,0,0,0,0,0]
["1. Koszty uzyskania przychodów, w tym:"]
["- odsetki od kredytów"]
["2. Składki ZUS właścicela/i (jeśli nie ujeto w kosztach uzyskania przychodu)"]
["3. Podatek dochodowy"]
["IV. Dochód dyspozycyjny",{"$f":"B15-B16","v":0},0,0,0,0,0,0,0,0]
["V. Spłaty kredytów/ zobowiązań:",{"$f":"SUM(B23:B39)","v":0},0,0,0,0,0,0,0,0]
["1. Spłata wnioskowanej pożyczki"]
["2. Spłata kredytu nr"]
["3. Spłata kredytu nr"]
["4. Spłata kredytu nr"]
["5. Spłata kredytu nr"]
["6. Spłata kredytu nr"]
["7. Spłata kredytu nr"]
[]
[]
[]
[]
[]
[]
["8. Płatności zobowiązań z tytułu umów leasingu finansowego"]
["9.Wydatki z tytułu innych zobowiązań  finansowych"]
["10. Zmiana stanu zobowiązań"]
["11. Inne wydatki …............................."]
["VI. Dochód po spłacie kredytów/ zobowiązań",{"$f":"B21-B22","v":0},0,0,0,0,0,0,0,0]
["VII. Wyd. inwestycyjne w tym :",{"$f":"B42+B43","v":0},0,0,0,0,0,0,0,0]
[" - ze środków własnych"]
[" - ze środków obcych"]
["VIII. Końcowy stan gotówki",{"$f":"B40-B41","v":0},{"$f":"C40-C41","v":0},0,0,0,0,0,0,0]

{"sheet":"Rachunek przepływów pieniężnych","index":10,"n_rows":64,"n_cols":13,"rows_kept":64,"cut":false,"hidden":false,"merged":[[63,1,63,2],[58,1,58,2],[59,1,59,2],[60,1,60,2],[61,1,61,2],[62,1,62,2],[56,1,56,2],[47,1,47,2],[48,1,48,2],[49,1,49,2],[50,1,50,2],[51,1,51,2],[57,1,57,2],[46,1,46,2],[36,1,36,2],[37,1,37,2],[38,1,38,2],[39,1,39,2],[40,1,40,2],[41,1,41,2],[42,1,42,2],[43,1,43,2],[44,1,44,2],[45,1,45,2],[52,1,52,2],[53,1,53,2],[54,1,54,2],[55,1,55,2],[35,1,35,2],[24,1,24,2],[25,1,25,2],[26,1,26,2],[27,1,27,2],[28,1,28,2],[29,1,29,2],[30,1,30,2],[31,1,31,2],[32,1,32,2],[33,1,33,2],[34,1,34,2],[23,1,23,2],[13,1,13,2],[14,1,14,2],[15,1,15,2],[16,1,16,2],[17,1,17,2],[18,1,18,2],[19,1,19,2],[20,1,20,2],[21,1,21,2],[22,1,22,2],[12,1,12,2],[0,0,0,2],[1,0,1,12],[2,0,2,12],[3,0,3,12],[4,0,4,12],[5,0,6,2],[5,3,5,5],[5,6,5,12],[7,1,7,2],[8,1,8,2],[9,1,9,2],[10,1,10,2],[11,1,11,2]]}
["ROK BIEŻĄCY",null,null,2020]
["Dla podmiotów zobowiązanych do sporządzania rachunku przepływów pieniężnych"]
["RACHUNEK PRZEPŁYWÓW PIENIĘŻNYCH"]
["Prosimy o wypełnienie poniższego formularza lub przekazania dokumentów własnych."]
["Dane historyczne prosimy przedstawić za okres 2 lat wstecz. "]
["Analizowane  okresy",null,null,"Wykonanie (w zł)",null,null,"Prognoza  (w zł)"]
[null,null,null,2018,2019,"…/2020",2020,{"$f":"G7+1","v":2021},{"$f":"H7+1","v":2022},2023,2024,2025,2026]
["A.","Przepływy środków pieniężnych z działalności operacyjnej",null,{"$f":"D9+D10","v":0},{"$f":"E9+E10","v":0},0,0,0,0,0,0,0,0]
["I.","Zysk (strata) netto"]
["II.","Korekty razem:",null,{"$f":"SUM(D11:D20)","v":0},{"$f":"SUM(E11:E20)","v":0},0,0,0,0,0,0,0,0]
[null,"   1. Amortyzacja"]
[null,"   2. Zyski (straty) z tytułu różnic kursowych"]
[null,"   3. Odsetki i udziały w zyskach (dywidendy)"]
[null,"   4. Zysk (strata) z działalności inwestycyjnej"]
[null,"   5. Zmiana stanu rezerw"]
[null,"   6. Zmiana stanu zapasów"]
[null,"   7. Zmiana stanu należności"]
[null,"   8. Zmiana stanu zobowiązań krótkoterminowych, z wyjątkiem pożyczek i kredytów"]
[null,"   9. Zmiana stanu rozliczeń międzyokresowych"]
[null,"   10. Inne korekty"]
["B.","Przepływy środków pieniężnych z działalności inwestycyjnej",null,{"$f":"D22-D34","v":0},{"$f":"E22-E34","v":0},0,0,0,0,0,0,0,0]
["I.","Wpływy",null,{"$f":"D23+D24+D25+D33","v":0},{"$f":"E23+E24+E25+E33","v":0},0,0,0,0,0,0,0,0]
[null,"   1. Zbycie wartości niematerialnych i prawnych oraz rzeczowych aktywów trwałych"]
[null,"   2. Zbycie inwestycji w nieruchomości oraz wartości niematerialne i prawne"]
[null,"   3. Z aktywów finansowych, w tym:",null,{"$f":"D26+D27","v":0},{"$f":"E26+E27","v":0},0,0,0,0,0,0,0,0]
[null,"       a) w jednostkach powiązanych"]
[null,"       b) w pozostałych jednostkach:"]
[null,"            - zbycie aktywów finansowych"]
[null,"            - dywidendy i udziały w zyskach"]
[null,"            - spłata udzielonych pożyczek długoterminowych"]
[null,"            - odsetki"]
[null,"            - inne wpływy z aktywów finansowych"]
[null,"   4. Inne wpływy inwestycyjne"]
["II."," Wydatki",null,{"$f":"D35+D36+D37+D42","v":0},{"$f":"E35+E36+E37+E42","v":0},0,0,0,0,0,0,0,0]
[null,"   1. Nabycie wartości niematerialnych i prawnych oraz rzeczowych aktywów trwałych"]
[null,"   2. Inwestycje w nieruchomości oraz wartości niematerialne i prawne"]
[null,"   3. Na aktywa finansowe, w tym:",null,{"$f":"D38+D39","v":0},{"$f":"E38+E39","v":0},0,0,0,0,0,0,0,0]
[null,"       a) w jednostkach powiązanych"]
[null,"       b) w pozostałych jednostkach:"]
[null,"            - nabycie aktywów finansowych"]
[null,"            - udzielone pożyczki długoterminowe"]
[null,"   4. Inne wydatki inwestycyjne"]
["C.","Przepływy środków pieniężnych z działalności finansowej",null,{"$f":"D44-D49","v":0},{"$f":"E44-E49","v":0},0,0,0,0,0,0,0,0]
["I.","I. Wpływy",null,{"$f":"SUM(D45:D48)","v":0},{"$f":"SUM(E45:E48)","v":0},0,0,0,0,0,0,0,0]
[null,"   1. Wpływy netto z wydania udziałów (emisji akcji) i innych instrumentów kapitałowych oraz dopłat do kapitału"]
[null,"   2. Kredyty i pożyczki"]
[null,"   3. Emisja dłużnych papierów wartościowych"]
[null,"   4. Inne wpływy finansowe"]
["II.","Wydatki",null,{"$f":"SUM(D50:D58)","v":0},{"$f":"SUM(E50:E58)","v":0},0,0,0,0,0,0,0,0]
[null,"   1. Nabycie udziałów (akcji) własnych"]
[null,"   2. Dywidendy i inne wpłaty na rzecz właścicieli"]
[null,"   3. Inne niż wypłaty na rzecz właścicieli wydatki z tytułu podziału zysku"]
[null,"   4. Spłaty kredytów i pożyczek"]
[null,"   5. Wykup dłużnych papierów wartościowych"]
[null,"   6. Z tytułu innych zobowiązań finansowych"]
[null,"   7. Płatności zobowiązań z tytułu umów leasingu finansowego"]
[null,"   8. Odsetki"]
[null,"   9. Inne wydatki finansowe"]
["D.","Przepływy pieniężne netto razem (A.+/-B.+/-C.)",null,{"$f":"D8+D21+D43","v":0},{"$f":"E8+E21+E43","v":0},0,0,0,0,0,0,0,0]
["E.","Bilansowa zmiana stanu środków pieniężnych, w tym:"]
[null,"    - zmiana stanu środków pieniężnych z tytułu różnic kursowych"]
["F.","Środki pieniężne na początek okresu"]
["G.","Środki pieniężne na koniec okresu (F+/-D), w tym:",null,{"$f":"D62+D59","v":0},{"$f":"E62+E59","v":0},0,0,0,0,0,0,0,0]
[null,"    - o ograniczonej możliwości dysponowania"]

{"sheet":"Analiza finansowa PK","index":11,"n_rows":195,"n_cols":13,"rows_kept":195,"cut":false,"hidden":false,"merged":[[194,0,194,2],[188,0,188,2],[189,0,189,2],[190,0,190,2],[191,0,191,2],[192,0,192,2],[193,0,193,2],[182,0,182,2],[183,0,183,2],[184,0,184,2],[185,0,185,2],[186,0,186,2],[187,0,187,2],[176,0,176,2],[177,0,177,2],[178,0,178,2],[179,0,179,2],[180,0,180,2],[181,0,181,2],[170,0,170,2],[171,0,171,2],[172,0,172,2],[173,0,173,2],[174,0,174,2],[175,0,175,2],[164,0,164,2],[165,0,165,2],[166,0,166,2],[167,0,167,2],[168,0,168,2],[169,0,169,2],[158,0,158,2],[159,0,159,2],[160,0,160,2],[161,0,161,2],[162,0,162,2],[163,0,163,2],[152,0,152,2],[153,0,153,2],[154,0,154,2],[155,0,155,2],[156,0,156,2],[157,0,157,2],[146,0,146,2],[147,0,147,2],[148,0,148,2],[149,0,149,2],[150,0,150,2],[151,0,151,2],[141,0,141,12],[142,0,143,2],[142,3,142,5],[142,6,142,12],[144,0,144,2],[145,0,145,2],[134,0,134,2],[135,0,135,2],[136,0,136,2],[137,0,137,2],[138,0,138,2],[139,0,139,2],[128,0,128,2],[129,0,129,2],[130,0,130,2],[131,0,131,2],[132,0,132,2],[133,0,133,2],[122,0,122,2],[123,0,123,2],[124,0,124,2],[125,0,125,2],[126,0,126,2],[127,0,127,2],[116,0,116,2],[117,0,117,2],[118,0,118,2],[119,0,119,2],[120,0,120,2],[121,0,121,2],[110,0,110,2],[111,0,111,2],[112,0,112,2],[113,0,113,2],[114,0,114,2],[115,0,115,2],[104,0,104,2],[105,0,105,2],[106,0,106,2],[107,0,107,2],[108,0,108,2],[109,0,109,2],[98,0,98,2],[99,0,99,2],[100,0,100,2],[101,0,101,2],[102,0,102,2],[103,0,103,2],[92,0,92,2],[93,0,93,2],[94,0,94,2],[95,0,95,2],[96,0,96,2],[97,0,97,2],[86,0,86,2],[87,0,87,2],[88,0,88,2],[89,0,89,2],[90,0,90,2],[91,0,91,2],[80,0,80,2],[81,0,81,2],[82,0,82,2],[83,0,83,2],[84,0,84,2],[85,0,85,2],[74,0,74,2],[75,0,75,2],[76,0,76,2],[77,0,77,2],[78,0,78,2],[79,0,79,2],[68,0,68,2],[69,0,69,2],[70,0,70,2],[71,0,71,2],[72,0,72,2],[73,0,73,2],[63,0,64,2],[63,3,63,5],[63,6,63,12],[65,0,65,2],[66,0,66,2],[67,0,67,2],[56,0,56,2],[57,0,57,2],[58,0,58,2],[59,0,59,2],[60,0,60,3],[62,0,62,12],[49,0,49,2],[50,0,50,2],[51,0,51,2],[52,0,52,2],[53,0,53,2],[55,0,55,2],[43,0,43,2],[44,0,44,2],[45,0,45,2],[46,0,46,2],[47,0,47,2],[48,0,48,2],[37,0,37,2],[38,0,38,2],[39,0,39,2],[40,0,40,2],[41,0,41,2],[42,0,42,2],[31,0,31,2],[32,0,32,2],[33,0,33,2],[34,0,34,2],[35,0,35,2],[36,0,36,2],[25,0,25,2],[26,0,26,2],[27,0,27,2],[28,0,28,2],[29,0,29,2],[30,0,30,2],[19,0,19,2],[20,0,20,2],[21,0,21,2],[22,0,22,2],[23,0,23,2],[24,0,24,2],[13,0,13,2],[14,0,14,2],[15,0,15,2],[16,0,16,2],[17,0,17,2],[18,0,18,2],[7,0,7,2],[8,0,8,2],[9,0,9,2],[10,0,10,2],[11,0,11,2],[12,0,12,2],[0,0,0,2],[1,0,1,12],[2,0,2,12],[3,0,3,12],[4,0,4,12],[5,0,6,2],[5,3,5,5],[5,6,5,12]]}
["ROK BIEŻĄCY",null,null,2020]
["Dla podmiotów prowadzących pełną księgowość"]
["RACHUNEK ZYSKÓW I STRAT"]
["Prosimy o wypełnienie poniższego formularza lub przekazania dokumentów własnych."]
["Dane historyczne prosimy przedstawić za okres 2 lat wstecz. "]
["Analizowane  okresy",null,null,"Wykonanie (w zł)",null,null,"Prognoza  (w zł)"]
[null,null,null,2018,2019,"…/2020",2020,{"$f":"G7+1","v":2021},{"$f":"H7+1","v":2022},2023,2024,2025,2026]
["A. Przychody netto ze sprzedaży",null,null,{"$f":"SUM(D9:D12)","v":0},{"$f":"SUM(E9:E12)","v":0},0,0,0,0,0,0,0,0]
["1. przychody netto ze sprzedaży produktów"]
["2. zmiana stanu produktów (wzrost+/ spadek)"]
["3. koszt wytworzenia produktów na własne potrzeby"]
["4. przychody netto ze sprzedaży towarów i materiałów"]
["B. Koszty działalności operacyjnej",null,null,{"$f":"SUM(D14:D21)","v":0},{"$f":"SUM(E14:E21)","v":0},0,0,0,0,0,0,0,0]
["1. Wartość sprzedanych towarów i materiałów"]
["2. Zużycie materiałów i energii"]
["3. Usługi obce"]
["4. Podatki i opłaty"]
["5. Wynagrodzenia"]
["6. Świadczenia na rzecz pracowników"]
["7. Amortyzacja"]
["8. Pozostałe"]
["C. Zysk/ Strata ze sprzedaży (A-B)",null,null,{"$f":"D8-D13","v":0},{"$f":"E8-E13","v":0},0,0,0,0,0,0,0,0]
["D. Pozostałe przychody operacyjne ",null,null,{"$f":"SUM(D24:D26)","v":0},{"$f":"SUM(E24:E26)","v":0},0,0,0,0,0,0,0,0]
["1. zysk ze zbycia niefinansowych aktywów trwałych"]
["2. dotacje"]
["3. inne przychody operacyjne"]
["E. Pozostałe koszty operacyjne",null,null,{"$f":"SUM(D28:D30)","v":0},{"$f":"SUM(E28:E30)","v":0},0,0,0,0,0,0,0,0]
["1. strata ze zbycia niefinansowych aktywów trwałych"]
["2. aktualizacja wartości aktywów niefinansowych"]
["3. inne koszty operacyjne"]
["F. Zysk/ Strata na działalności operacyjnej (C+D-E)",null,null,{"$f":"D22+D23-D27","v":0},{"$f":"E22+E23-E27","v":0},0,0,0,0,0,0,0,0]
["G. Przychody finansowe",null,null,{"$f":"D33+D35+D37+D38+D39","v":0},{"$f":"E33+E35+E37+E38+E39","v":0},0,0,0,0,0,0,0,0]
["1. dywidendy i udziały w zyskach"]
["    w tym od jednostek powiązanych"]
["2. odsetki"]
["    w tym od jednostek powiązanych"]
["3. zysk ze zbycia inwestycji"]
["4. aktualizacja wartości inwestycji"]
["5. inne"]
["H. Koszty finansowe",null,null,{"$f":"SUM(D41:D45)","v":0},{"$f":"SUM(E41:E45)","v":0},0,0,0,0,0,0,0,0]
["1. odsetki"]
["    w tym dla jednostek powiązanych"]
["2. strata ze zbycia inwestycji"]
["3. aktualizacja wartości inwestycji"]
["4. inne"]
["I. Zysk/ Strata brutto na działalności gosp. (F+G-H)",null,null,{"$f":"D31+D32-D40","v":0},{"$f":"E31+E32-E40","v":0},0,0,0,0,0,0,0,0]
["J1. Zyski nadzwyczajne"]
["J2. Straty nadzwyczajne"]
["K. Zysk/ Strata brutto (I+J1-J2)",null,null,{"$f":"D46+D47-D48","v":0},{"$f":"E46+E47-E48","v":0},0,0,0,0,0,0,0,0]
["L. Podatek dochodowy"]
["1. Część bieżąca"]
["2. Część odroczona"]
["M. Pozostałe obowiązkowe zmniejszenia zysku      (zwiększenia straty)"]
["N. Zysk/ Strata netto (K-L-M)",null,null,{"$f":"D49-D50-D53","v":0},{"$f":"E49-E50-E53","v":0},0,0,0,0,0,0,0,0]
[]
["Informacje uzupełniające"]
["1. Amortyzacja"]
["2. Odsetki od kredytów"]
["3. Dywidenda w roku obrachunkowym"]
["4. Znaczące korekty zysku brutto nie związane z podstawową działalnością"]
[]
[]
["BILANS – AKTYWA"]
["Analizowane  okresy",null,null,"Wykonanie (w zł)",null,null,"Prognoza  (w zł)"]
[null,null,null,{"$f":"D7","v":2018},2019,"…/2020",2020,2021,2022,2023,2024,2025,2026]
["A. Aktywa trwałe",null,null,{"$f":"D67+D72+D81+D84+D99","v":0},{"$f":"E67+E72+E81+E84+E99","v":0},0,0,0,0,0,0,0,0]
["I. Wartości niematerialne i prawne",null,null,{"$f":"SUM(D68:D71)","v":0},{"$f":"SUM(E68:E71)","v":0},0,0,0,0,0,0,0,0]
["1. Koszty zakończonych prac rozwojowych"]
["2. Wartość firmy"]
["3. Inne wartości niematerialne i prawne"]
["4. Zaliczki na wartości niematerialne i prawne"]
["II. Rzeczowe aktywa trwałe",null,null,{"$f":"D73+D79+D80","v":0},{"$f":"E73+E79+E80","v":0},0,0,0,0,0,0,0,0]
["1. Środki trwałe",null,null,{"$f":"D74+D75+D76+D77+D78","v":0},{"$f":"E74+E75+E76+E77+E78","v":0},0,0,0,0,0,0,0,0]
["a) grunty (w tym prawo użytkowania wieczystego gruntu)"]
["b) budynki, lokale i obiekty inżynierii lądowej i wodnej"]
["c) urządzenia techniczne i maszyny"]
["d) środki transportu"]
["e) inne środki trwałe"]
["2. Środki trwałe w budowie"]
["3. Zaliczki na środki trwałe w budowie"]
["III. Należności długoterminowe",null,null,{"$f":"D82+D83","v":0},{"$f":"E82+E83","v":0},0,0,0,0,0,0,0,0]
["1. Od jednostek powiązanych"]
["2. Od pozostałych jednostek"]
["IV. Inwestycje długoterminowe",null,null,{"$f":"D85+D86+D87+D98","v":0},{"$f":"E85+E86+E87+E98","v":0},0,0,0,0,0,0,0,0]
["1. Nieruchomości"]
["2. Wartości niematerialne i prawne"]
["3. Długoterminowe aktywa finansowe"]
["a) w jednostkach powiązanych"]
["- udziały lub akcje"]
["- inne papiery wartościowe"]
["- udzielone pożyczki"]
["- inne długoterminowe aktywa finansowe"]
["b) w pozostałych jednostkach"]
["- udziały lub akcje"]
["- inne papiery wartościowe"]
["- udzielone pożyczki"]
["- inne długoterminowe aktywa finansowe"]
["4. Inne inwestycje długoterminowe"]
["V. Długoterminowe rozliczenie międzyokresowe",null,null,{"$f":"D100+D101","v":0},{"$f":"E100+E101","v":0},0,0,0,0,0,0,0,0]
["1. Aktywa z tytułu odroczonego podatku dochodowego"]
["2. Inne rozliczenia międzyokresowe"]
["B. Aktywa obrotowe",null,null,{"$f":"D103+D109+D122+D139","v":0},{"$f":"E103+E109+E122+E139","v":0},0,0,0,0,0,0,0,0]
["I. Zapasy "]
["1. Materiały"]
["2. Półprodukty i produkty w toku"]
["3. Produkty gotowe"]
["4. Towary"]
["5. Zaliczki na dostawy"]
["II. Należności krótkoterminowe"]
["1. Należności od jednostek powiązanych"]
["a) z tytułu dostaw i usług, o okresie spłaty"]
["- do 12 miesięcy"]
["- powyżej 12 miesięcy"]
["b) inne"]
["2. Należności od pozostałych jednostek"]
["a) z tytułu dostaw i usług, o okresie spłaty"]
["- do 12 miesięcy"]
["- powyżej 12 miesięcy"]
["b) z tytułu podatków, dotacji, ceł, ubezpieczeń społecznych i zdrowotnych oraz innych świadczeń"]
["c) inne"]
["d) dochodzone na drodze sądowej"]
["III. Inwestycje krótkoterminowe"]
["1. Krótkoterminowe aktywa finansowe"]
["a) w jednostkach powiązanych"]
["- udziały lub akcje"]
["- inne papiery wartościowe"]
["- udzielone pożyczki"]
["- inne krótkoterminowe aktywa finansowe"]
["b) w pozostałych jednostkach"]
["- udziały lub akcje"]
["- inne papiery wartościowe"]
["- udzielone pożyczki"]
["- inne krótkoterminowe aktywa finansowe"]
["c) środki pieniężne i inne aktywa pieniężne"]
["- środki pieniężne w kasie i na rachunkach"]
["- inne środki pieniężne"]
["- inne aktywa pieniężne"]
["2. Inne inwestycje krótkoterminowe"]
["IV. Krótkoterminowe rozliczenia międzyokresowe"]
["Aktywa razem",null,null,{"$f":"D66+D102","v":0},{"$f":"E66+E102","v":0},0,0,0,0,0,0,0,0]
[]
["BILANS – PASYWA"]
["Analizowane  okresy",null,null,"Wykonanie (w zł)",null,null,"Prognoza  (w zł)"]
[null,null,null,{"$f":"D65","v":2018},{"$f":"E65","v":2019},"…/2020",2020,2021,2022,2023,2024,2025,2026]
["A. Kapitał (fundusz) własny",null,null,{"$f":"SUM(D146:D154)","v":0},{"$f":"SUM(E146:E154)","v":0},0,0,0,0,0,0,0,0]
["I. Kapitał (fundusz) podstawowy "]
["II. Należne wpłaty na kapitał podstawowy (wielkość ujemna)"]
["III. Udziały (akcje) własne (wielkość ujemna)"]
["IV. Kapitał (fundusz) zapasowy"]
["V. Kapitał (fundusz) z aktualizacji wyceny"]
["VI. Pozostałe kapitały (fundusze rezerwowe)"]
["VII. Zysk (strata) netto z lat ubiegłych "]
["VIII. Zysk (strata) netto"]
["IX. Odpisy z zysku netto w ciągu roku obrotowego (wielkość ujemna)"]
["B. Zobowiązania i rezerwy na zobowiązania",null,null,{"$f":"D156+D164+D171+D190","v":0},{"$f":"E156+E164+E171+E190","v":0},0,0,0,0,0,0,0,0]
["I. Rezerwa na zobowiązania",null,null,{"$f":"D157+D158+D161","v":0},{"$f":"E157+E158+E161","v":0},0,0,0,0,0,0,0,0]
["1. Rezerwa z tytułu odroczonego podatku dochodowego"]
["2. Rezerwa na świadczenia emerytalne i podobne"]
["- długoterminowa"]
["- krótkoterminowa"]
["3. Pozostałe rezerwy"]
["- długoterminowe"]
["- krótkoterminowe"]
["II. Zobowiązania długoterminowe",null,null,{"$f":"D165+D166","v":0},{"$f":"E165+E166","v":0},0,0,0,0,0,0,0,0]
["1. Wobec jednostek powiązanych"]
["2. Wobec pozostałych jednostek",null,null,{"$f":"D167+D168+D169+D170","v":0},{"$f":"E167+E168+E169+E170","v":0},0,0,0,0,0,0,0,0]
["a) kredyty i pożyczki"]
["b) z tytułu emisji dłużnych papierów wartościowych"]
["c) inne zobowiązania finansowe"]
["d) inne"]
["III. Zobowiązania krótkoterminowe",null,null,{"$f":"D172+D177+D189","v":0},{"$f":"E172+E177+E189","v":0},0,0,0,0,0,0,0,0]
["1. Wobec jednostek powiązanych",null,null,{"$f":"D173+D176","v":0},{"$f":"E173+E176","v":0},0,0,0,0,0,0,0,0]
["a) z tytułu dostaw i usług, o okresie wymagalności:"]
["- do 12 miesięcy"]
["- powyżej 12 miesięcy"]
["b) inne"]
["2. Wobec pozostałych jednostek",null,null,{"$f":"D178+D179+D180+D181+D184+D185+D186+D187+D188","v":0},{"$f":"E178+E179+E180+E181+E184+E185+E186+E187+E188","v":0},0,0,0,0,0,0,0,0]
["a) kredyty i pożyczki"]
["b) z tytułu emisji dłużnych papierów wartościowych"]
["c) inne zobowiązania finansowe"]
["d) z tytułu dostaw i usług, o okresie wymagalności:"]
["- do 12 miesięcy"]
["-powyżej 12 miesięcy"]
["e) zaliczki na otrzymane dostawy"]
["f) zobowiązania wekslowe"]
["g) z tytułu podatków, ceł, ubezpieczeń i innych świadczeń"]
["h) z tytułu wynagrodzeń"]
["i) inne"]
["3. Fundusze specjalne"]
["IV. Rozliczenia międzyokresowe",null,null,{"$f":"D191+D192","v":0},{"$f":"E191+E192","v":0},0,0,0,0,0,0,0,0]
["1. Ujemna wartość firmy"]
["2. Inne rozliczenia międzyokresowe"]
["- długoterminowe"]
["- krótkoterminowe"]
["Pasywa razem",null,null,{"$f":"D145+D155","v":0},{"$f":"E145+E155","v":0},0,0,0,0,0,0,0,0]

{"sheet":"Oświadczenie przetw. danych","index":12,"n_rows":11,"n_cols":9,"rows_kept":11,"cut":false,"hidden":false,"merged":[[6,0,6,13],[7,0,7,13],[9,1,9,4],[9,8,9,12],[10,1,10,4],[10,8,10,12],[5,0,5,13],[0,0,0,13],[1,0,1,13],[2,0,2,13],[3,0,3,13],[4,0,4,13]]}
["Oświadczenia:                                                                                                                                                                                                                                                                             Ja/my, niżej podpisana(y):                                                                                                                                                                                                                                                          1. Oświadczam/y, że mam/y wiedzę i świadomość, iz podpisanie i  złożenie niniejszego wniosku do Zachodniopomorskiego Banku Spółdzielczego stanowi samoistne wyrażenie zgody - w rozumieniu przepisów rozporządzenia Parlamentu Europejskiego i Rady (UE) 2016/679 z 27 kwietnia 2016r. w sprawie ochrony osób fizycznych w związku z przetwarzaniem danych osobowych i w sprawie swobodnego przepływu takich danych oraz uchylenia Dyrektywy 95/46/WE ( dalej jako RODO) - w tym zbierania, przekazywanie, przetwarzanie i udostepnianie moich danych osobowych/danych osób fizycznych reprezentujących wnioskodawcę* oraz działających w jego imieniu i na jego rzecz, przez administratora danych: Instytucję Zarządzającą Regionalnym Programem Operacyjnym (RPO) Województwa Zachodniopomorskiego 2014-2020 , oraz Ministerstwo Rozwoju, które powierzyły przetwarzanie tych danych Bankowi Gospodarstwa Krajowego ( Menadżer), Zachodniopomorskiemu Bankowi Spóldzielczemu ( Pośrednik Finansowy) zgodnie z Umową Operacyjną nr 2/RPZP/6120/2020/I/DIF/280 lub 2/RPZP/6120/2020/III/DIF/288 dalej zwana Umowa Operacyjną i przepisami prawa. Wyrażam/y zgodę na przetwarzanie i udostępnianie w/w danych osobowych także dla celów związanych ze złożeniem, analizą, opracowaniem lub realizacja niniejszego wniosku oraz objętej nim Inwestycji, dokumentów z nimi związanych, realizacji projektów pn. Wspieranie przedsiębiorczości poprzez Fundusz Funduszy Pomorza Zachodniego Jeremie 2 (Projekt) oraz Umowy Operacyjnej, w tym również na potrzeby monitorowania oraz ewaluacji RPO, a także realizacją polityki rozwoju."]
["2. Przyjmuję/emy do wiadomości, że:                                                                                                                                                                                                                                      a) podstawy prawne przetwarzania danych osobowych wynikają z przepisów RODO, w szczególności z przepisu art.6 ust. 1 lit. c) RODO, art.6 ust.1 lit. e) RODO oraz art. 6 ust. 1 lit.f) RODO (prawnie uzasadniony interes, na który powołuje się administrator danych jest w tym zakresie wykonywanie obowiązków ustawowych wynikających z prawa krajowego, windykcja nalezności i prowadzenie postępowań sądowych oraz egzekucyjnych);                                                                                                                                                                                                                                                                                                b) dane osobowe wskazane w pkt. 1 będą przechowywane przez okres niezbędny do realizacji celów, dla których dane osobowe zostały uzyskane lub do których są przetwarzane. Podstawowym okresem jest  okres związany z analizą, opracowaniem lub realizacją niniejszego wniosku, , a dalej okres wskazany przepisami prawa powszechnie obowiązującego bądź okres przedawnienia roszczeń z tytułu analizy, opracowania lub realizacji niniejszego wniosku;                                                                                                                                                                                                                                                                     c) odbiorcą danych osobowych mogą być organy administracji publicznej, sądy lub organy egzekucyjne uprawnione na podstawie przepisów prawa celem wykonania ciążących na administratorze danych osobowych obowiązków. Dane te nie będa przekazywane do państwa trzeciego/organizacji organizacji międzynarodowej ani też nie będą profilowane;                                                                                                                                                                                                                                                 d) zgody wyrażone powyżej i w pkt. 1 obejmują również przetwarzanie i udostępniania danych osobowych w przyszłości pod warunkiem, że cel przetworzenia lub udostępnienia nie zostanie zmieniony. "]
["3. Wnioskodawca wyraża zgodę na zbieranie, przetwarzanie i udostępnianie danych objętych tajemnicą bankową przez Bank oraz udostępnianie ich innym podmiotom, w szczególności, Instytucji Zarządzającej, Menadżerowi oraz organom administracji publicznej, w tym ministrowi właściwemu do spraw rozwoju regionalnego zgodnie z Umową Operacyjną i przepisami prawa, jak też w celach związanych ze złożeniem i realizacją niniejszego wniosku oraz objętej nim  Inwestycji oraz realizacji Projektu. "]
["4. Zgody wyrażone w ust. 1-3 obejmują również przetwarzanie i udostępnienia danych osobowych oraz danych objętych tajemnicą bankową Wnioskodawcy oraz osób i podmiotów wskazanych w ust. 1 w przyszłości pod warunkiem, że cel przetworzenia lub udostępnienia nie zostanie zmieniony."]
["5. Wyrażam/y zgodę na udostępnianie, zgodnie z przepisami prawa, Bankowi, Menadżerowi, Instytucji Zarządzającej oraz organom administracji publicznej, w szczególności ministrowi właściwemu do spraw rozwoju regionalnego, danych niezbędnych, m.in. monitoringu realizacji Projektu i jego ewaluacji, jak również w zakresie budowania baz danych, przeprowadzania badań i ewaluacji, sprawozdawczości, wykonywania oraz zamawiania przez powyższe podmioty analiz w zakresie spójności RPO, realizacji polityk, w tym polityk horyzontalnych, oceny skutków RPO, a także oddziaływań makroekonomicznych w kontekście działań w ramach Projektu, monitoringu oraz ewaluacji RPO, oraz realizacji polityki rozwoju i Umowy Inwestycyjnej oraz na przeprowadzanie wizyt w przedsiębiorstwie i badań ankietowych, w związku z korzystaniem z usług świadczonych przez powyższe podmioty. Wnioskodawca wyraża też zgodę na wykorzystanie przez Bank, Menadżera i Instytucję Zarządzającą jego danych teleadresowych na potrzeby promocji i  informacji Projektu."]
["6. Wnioskodawca oraz osoby i podmioty wskazane w ust. 1* oświadcza i potwierdza, że został poinformowany o nazwie i siedzibie administratora danych, celach, w jakich dane te są przetwarzane oraz udostępniane, a także o prawie wglądu i dostępu do nich (ich treści) oraz ich poprawiania, a nadto oświadcza, że w/w dane podano dobrowolnie, jak też iż ma prawo dostępu do treści swoich danych osobowych oraz ich sprostowania, usunięcia, ograniczenia ich przetwarzania, do przenoszenia danych oraz prawo do wniesienia sprzeciwu wobec przetwarzania danych osobowych oraz prawo  wniesienia  skargi  do  Prezesa Urzędu   Ochrony Danych Osobowych (ul. Stawki 2, 00-193 Warszawa), gdy uznają, iż przetwarzanie danych osobowych dotyczących narusza przepisy RODO."]
["7. Odbiorcą danych osobowych mogą być organy administracji publicznej, sądy lub organy egzekucyjne uprawnione na podstawie przepisów prawa celem wykonania ciążących na podmiotach wymienionych w ust. 1 obowiązków. Dane te mogą być przekazywane do państwa trzeciego/organizacji międzynarodowej – z uwagi na charakter i źródło pochodzenia środków w ramach Umowy Operacyjnej oraz Projektu. Dane osobowe nie będą przetwarzane w sposób zautomatyzowany i nie będą profilowane."]
["8. Ja/my, niżej podpisana(y) upoważniam/y do wystapienia do Krajowego Rejestru Długów Biura Informacji Gosporadczej S.A. o ujawnienie informacji gospodarczych dotyczących mnie/nas, zarówno przed, jak i po wejściu ustawy z dnia 9 kwietnia 2010r. o udosiępnianiu informacji gospodarczych i wymianie danych gospodarczych."]
[]
[]
[null,"miejscowość, data",null,null,null,null,null,null,"pieczęć i podpis/y Wnioskodawcy/ów"]

{"sheet":"Pomocnicze","index":13,"n_rows":655,"n_cols":25,"rows_kept":655,"cut":false,"hidden":true,"merged":[]}
["klient nowy",null,null,null,null,null,null,null,null,"Wybierz...","Wybierz...","Wybierz...",null,null,"Wybierz...",null,null,"Wybierz...",null,"Wybierz...",null,"Wybierz...",null,null,"Wybierz..."]
["klient Banku",null,null,null,null,null,"01.11.Z - Uprawa zbóż, roślin strączkowych i roślin oleistych na nasiona, z wyłączeniem ryżu",null,null,"Księga przychodów i rozchodów","Tak","Biuro rachunkowe ",null,null,"własność ",null,null,"TAK ",null,"inwestycyjny",null,"operacyjny",null,null,"Hipoteka"]
[null,null,null,null,null,null,"01.12.Z - Uprawa ryżu",null,null,"Karta podatkowa","Nie","Księgowi zatrudnieni w firmie ",null,null,"wynajem",null,null,"NIE",null,"obrotowo-inwestycyjny",null,"finansowy",null,null,"Hipoteka łączna"]
["Pożyczka płynnościowa nr 280",{"$f":"COUNTIF($K$12:$K$17,A4)","v":0},null,null,null,null,"01.13.Z - Uprawa warzyw, włączając melony oraz uprawa roślin korzeniowych i roślin bulwiastych",null,null,"Ryczałt ewidencjonowany","Nie dotyczy","Właściciel lub osoba spokrewniona z właścicielem ",null,null,"działalność w siedzibie klienta ",null,null,"NIE DOTYCZY",null,"w rachunku bieżącym",null,null,null,null,"Zastaw rejestrowy"]
["Pożyczka płynnościowa nr 288",{"$f":"COUNTIF($K$12:$K$17,A5)","v":0},null,null,null,null,"01.14.Z - Uprawa trzciny cukrowej",null,null,"Pełna księgowość",null,"Inna osoba ",null,null,"działalność nie wymagająca stałego miejsca",null,null,null,null,"obrotowy",null,null,null,null,"Przewłaszczenie"]
[null,6,null,null,null,null,"01.15.Z - Uprawa tytoniu",null,null,null,null,null,null,null,null,null,null,null,null,"inny",null,null,null,null,"Cesja"]
[null,6,null,null,null,null,"01.16.Z - Uprawa roślin włóknistych",null,null,null,null,null,null,null,null,null,null,null,null,null,null,null,null,null,"Blokada środków"]
[null,6,null,null,null,null,"01.19.Z - Pozostałe uprawy rolne inne niż wieloletnie",null,null,null,null,null,null,null,null,null,null,null,null,null,null,null,null,null,"Kaucja"]
[null,6,null,null,null,null,"01.21.Z - Uprawa winogron",null,null,null,null,null,null,null,null,null,"Zabezpieczenia:",null,null,null,null,null,null,null,"Pełnomocnictwo do rachunku bieżącego"]
[null,6,null,null,null,null,"01.22.Z - Uprawa drzew i krzewów owocowych tropikalnych i podzwrotnikowych",null,null,null,null,null,null,null,null,null,null,null,null,null,null,null,null,null,"Weksel"]
[null,6,null,null,null,null,"01.23.Z - Uprawa drzew i krzewów owocowych cytrusowych",null,null,null,"Produkty:",null,null,null,null,null,null,null,null,null,null,null,null,null,"Poręczenie wekslowe"]
[null,6,null,null,null,null,"01.24.Z - Uprawa drzew i krzewów owocowych ziarnkowych i pestkowych",null,null,null,{"$f":"Wniosek!$D$24","v":0},null,null,null,null,null,null,null,null,null,null,null,null,null,"Poręczenie wg prawa cywilnego"]
[null,6,null,null,null,null,"01.25.Z - Uprawa pozostałych drzew i krzewów owocowych oraz orzechów",null,null,null,{"$f":"Wniosek!$D$49","v":0},null,null,null,null,null,null,null,null,null,null,null,null,null,"Inne"]
[null,6,null,null,null,null,"01.26.Z - Uprawa drzew oleistych",null,null,null,{"$f":"Wniosek!$D$74","v":0}]
[null,null,null,null,null,null,"01.27.Z - Uprawa roślin wykorzystywanych do produkcji napojów",null,null,null,{"$f":"Wniosek!$D$100","v":0}]
["Jednorazowo",null,null,null,null,null,"01.28.Z - Uprawa roślin przyprawowych i aromatycznych oraz roślin wykorzystywanych do produkcji leków i wyrobów farmaceutycznych",null,null,null,{"$f":"Wniosek!$D$104","v":0}]
["Miesięcznie",null,null,null,null,null,"01.29.Z - Uprawa pozostałych roślin wieloletnich",null,null,null,{"$f":"Wniosek!$D$108","v":0}]
["Kwartalnie",null,null,null,null,null,"01.30.Z - Rozmnażanie roślin "]
["Inne",null,null,null,null,null,"01.41.Z - Chów i hodowla bydła mlecznego"]
[null,null,null,null,null,null,"01.42.Z - Chów i hodowla pozostałego bydła i bawołów"]
["Jednorazowo",null,null,null,null,null,"01.43.Z - Chów i hodowla koni i pozostałych zwierząt koniowatych",null,null,null,"KRB:",{"$f":"B4","v":0}]
["W transzach",null,null,null,null,null,"01.44.Z - Chów i hodowla wielbłądów i zwierząt wielbłądowatych",null,null,null,"Inne:",{"$f":"SUM(B4:B14)-L21","v":54}]
[null,null,null,null,null,null,"01.45.Z - Chów i hodowla owiec i kóz"]
[null,null,null,null,null,null,"01.46.Z - Chów i hodowla świń"]
["TAK ",null,null,null,null,null,"01.47.Z - Chów i hodowla drobiu"]
["NIE",null,null,null,null,null,"01.49.Z - Chów i hodowla pozostałych zwierząt"]
["TAK / NIE",null,null,null,null,null,"01.50.Z - Uprawy rolne połączone z chowem i hodowlą zwierząt (działalność mieszana) "]
[null,null,null,null,null,null,"01.61.Z - Działalność usługowa wspomagająca produkcję roślinną"]
[null,null,null,null,null,null,"01.62.Z - Działalność usługowa wspomagająca chów i hodowlę zwierząt gospodarskich"]
["Rekomendacja negatywna/ pozytywna, Decyzja negatywna/ pozytywna",null,null,null,null,null,"01.63.Z - Działalność usługowa następująca po zbiorach"]
["Rekomendacja negatywna",null,null,null,null,null,"01.64.Z - Obróbka nasion dla celów rozmnażania roślin"]
["Rekomendacja pozytywna",null,null,null,null,null,"01.70.Z - Łowiectwo i pozyskiwanie zwierząt łownych, włączając działalność usługową "]
["Decyzja negatywna",null,null,null,null,null,"02.10.Z - Gospodarka leśna i pozostała działalność leśna, z wyłączeniem pozyskiwania produktów leśnych "]
["Decyzja pozytywna",null,null,null,null,null,"02.20.Z - Pozyskiwanie drewna "]
[null,null,null,null,null,null,"02.30.Z - Pozyskiwanie dziko rosnących produktów leśnych, z wyłączeniem drewna "]
[null,null,null,null,null,null,"02.40.Z - Działalność usługowa związana z leśnictwem "]
["Grupa ryzyka:",null,"Forma prawna:",null,null,null,"03.11.Z - Rybołówstwo w wodach morskich"]
["Normalne",null,"jednoosobowa działalnośc gospodarcza",null,null,null,"03.12.Z - Rybołówstwo w wodach śródlądowych"]
["Pod obserwacją",null,"przedsiębiorstwo państwowe",null,null,null,"03.21.Z - Chów i hodowla ryb oraz pozostałych organizmów wodnych w wodach morskich"]
["Poniżej standardu",null,"spółdzielnia",null,null,null,"03.22.Z - Chów i hodowla ryb oraz pozostałych organizmów wodnych w wodach śródlądowych"]
["Wątpliwe",null,"spółka akcyjna",null,null,null,"05.10.Z - Wydobywanie węgla kamiennego "]
["Stracone",null,"spółka cywilna",null,null,null,"05.20.Z - Wydobywanie węgla brunatnego (lignitu)"]
[null,null,"spółka jawna",null,null,null,"06.10.Z - Górnictwo ropy naftowej "]
["Powiązania:",null,"spółka komandytowa",null,null,null,"06.20.Z - Górnictwo gazu ziemnego "]
["kapitałowe",null,"spółka komandytowo-akcyjna",null,null,null,"07.10.Z - Górnictwo rud żelaza "]
["organizacyjne",null,"spółka partnerska",null,null,null,"07.21.Z - Górnictwo rud uranu i toru"]
["na podstawie gwarancji/poręczeń",null,"spółka z o.o.",null,null,null,"07.29.Z - Górnictwo pozostałych rud metali nieżelaznych"]
["gospodarcze",null,"wolny zawód",null,null,null,"08.11.Z - Wydobywanie kamieni ozdobnych oraz kamienia dla potrzeb budownictwa, skał wapiennych, gipsu, kredy i łupków"]
["wspólność majątkowa",null,"inna",null,null,null,"08.12.Z - Wydobywanie żwiru i piasku; wydobywanie gliny i kaolinu"]
[null,null,null,null,null,null,"08.91.Z - Wydobywanie minerałów dla przemysłu chemicznego oraz do produkcji nawozów"]
[null,null,null,null,null,null,"08.92.Z - Wydobywanie torfu"]
[null,null,null,null,null,null,"08.93.Z - Wydobywanie soli"]
[null,null,null,null,null,null,"08.99.Z - Pozostałe górnictwo i wydobywanie, gdzie indziej niesklasyfikowane"]
[null,null,null,null,null,null,"09.10.Z - Działalność usługowa wspomagająca eksploatację złóż ropy naftowej i gazu ziemnego "]
[null,null,null,null,null,null,"09.90.Z - Działalność usługowa wspomagająca pozostałe górnictwo i wydobywanie "]
[null,null,null,null,null,null,"10.11.Z - Przetwarzanie i konserwowanie mięsa, z wyłączeniem mięsa z drobiu"]
[null,null,null,null,null,null,"10.12.Z - Przetwarzanie i konserwowanie mięsa z drobiu"]
[null,null,null,null,null,null,"10.13.Z - Produkcja wyrobów z mięsa, włączając wyroby z mięsa drobiowego"]
[null,null,null,null,null,null,"10.20.Z - Przetwarzanie i konserwowanie ryb, skorupiaków i mięczaków"]
[null,null,null,null,null,null,"10.31.Z - Przetwarzanie i konserwowanie ziemniaków"]
[null,null,null,null,null,null,"10.32.Z - Produkcja soków z owoców i warzyw"]
[null,null,null,null,null,null,"10.39.Z - Pozostałe przetwarzanie i konserwowanie owoców i warzyw"]
[null,null,null,null,null,null,"10.41.Z - Produkcja olejów i pozostałych tłuszczów płynnych"]
[null,null,null,null,null,null,"10.42.Z - Produkcja margaryny i podobnych tłuszczów jadalnych"]
[null,null,null,null,null,null,"10.51.Z - Przetwórstwo mleka i wyrób serów"]
[null,null,null,null,null,null,"10.52.Z - Produkcja lodów"]
[null,null,null,null,null,null,"10.61.Z - Wytwarzanie produktów przemiału zbóż"]
[null,null,null,null,null,null,"10.62.Z - Wytwarzanie skrobi i wyrobów skrobiowych"]
[null,null,null,null,null,null,"10.71.Z - Produkcja pieczywa; produkcja świeżych wyrobów ciastkarskich i ciastek "]
[null,null,null,null,null,null,"10.72.Z - Produkcja sucharów i herbatników; produkcja konserwowanych wyrobów ciastkarskich i ciastek "]
[null,null,null,null,null,null,"10.73.Z - Produkcja makaronów, klusek, kuskusu i podobnych wyrobów mącznych"]
[null,null,null,null,null,null,"10.81.Z - Produkcja cukru"]
[null,null,null,null,null,null,"10.82.Z - Produkcja kakao, czekolady i wyrobów cukierniczych"]
[null,null,null,null,null,null,"10.83.Z - Przetwórstwo herbaty i kawy"]
[null,null,null,null,null,null,"10.84.Z - Produkcja przypraw"]
[null,null,null,null,null,null,"10.85.Z - Wytwarzanie gotowych posiłków i dań"]
[null,null,null,null,null,null,"10.86.Z - Produkcja artykułów spożywczych homogenizowanych i żywności dietetycznej"]
[null,null,null,null,null,null,"10.89.Z - Produkcja pozostałych artykułów spożywczych, gdzie indziej niesklasyfikowana"]
[null,null,null,null,null,null,"10.91.Z - Produkcja gotowej paszy dla zwierząt gospodarskich"]
[null,null,null,null,null,null,"10.92.Z - Produkcja gotowej karmy dla zwierząt domowych"]
[null,null,null,null,null,null,"11.01.Z - Destylowanie, rektyfikowanie i mieszanie alkoholi"]
[null,null,null,null,null,null,"11.02.Z - Produkcja win gronowych"]
[null,null,null,null,null,null,"11.03.Z - Produkcja cydru i pozostałych win owocowych"]
[null,null,null,null,null,null,"11.04.Z - Produkcja pozostałych niedestylowanych napojów fermentowanych"]
[null,null,null,null,null,null,"11.05.Z - Produkcja piwa"]
[null,null,null,null,null,null,"11.06.Z - Produkcja słodu"]
[null,null,null,null,null,null,"11.07.Z - Produkcja napojów bezalkoholowych; produkcja wód mineralnych i pozostałych wód butelkowanych"]
[null,null,null,null,null,null,"12.00.Z - PRODUKCJA WYROBÓW TYTONIOWYCH "]
[null,null,null,null,null,null,"13.10.A - Produkcja przędzy bawełnianej"]
[null,null,null,null,null,null,"13.10.B - Produkcja przędzy wełnianej"]
[null,null,null,null,null,null,"13.10.C - Produkcja przędzy z włókien chemicznych"]
[null,null,null,null,null,null,"13.10.D - Produkcja przędzy z pozostałych włókien tekstylnych, włączając produkcję nici"]
[null,null,null,null,null,null,"13.20.A - Produkcja tkanin bawełnianych"]
[null,null,null,null,null,null,"13.20.B - Produkcja tkanin wełnianych"]
[null,null,null,null,null,null,"13.20.C - Produkcja tkanin z włókien chemicznych"]
[null,null,null,null,null,null,"13.20.D - Produkcja pozostałych tkanin"]
[null,null,null,null,null,null,"13.30.Z - Wykończanie wyrobów włókienniczych"]
[null,null,null,null,null,null,"13.91.Z - Produkcja dzianin metrażowych"]
[null,null,null,null,null,null,"13.92.Z - Produkcja gotowych wyrobów tekstylnych"]
[null,null,null,null,null,null,"13.93.Z - Produkcja dywanów i chodników"]
[null,null,null,null,null,null,"13.94.Z - Produkcja wyrobów powroźniczych, lin, szpagatów i wyrobów sieciowych"]
[null,null,null,null,null,null,"13.95.Z - Produkcja włóknin i wyrobów wykonanych z włóknin, z wyłączeniem odzieży"]
[null,null,null,null,null,null,"13.96.Z - Produkcja pozostałych technicznych i przemysłowych wyrobów tekstylnych"]
[null,null,null,null,null,null,"13.99.Z - Produkcja pozostałych wyrobów tekstylnych, gdzie indziej niesklasyfikowana"]
[null,null,null,null,null,null,"14.11.Z - Produkcja odzieży skórzanej"]
[null,null,null,null,null,null,"14.12.Z - Produkcja odzieży roboczej"]
[null,null,null,null,null,null,"14.13.Z - Produkcja pozostałej odzieży wierzchniej"]
[null,null,null,null,null,null,"14.14.Z - Produkcja bielizny"]
[null,null,null,null,null,null,"14.19.Z - Produkcja pozostałej odzieży i dodatków do odzieży"]
[null,null,null,null,null,null,"14.20.Z - Produkcja wyrobów futrzarskich"]
[null,null,null,null,null,null,"14.31.Z - Produkcja wyrobów pończoszniczych"]
[null,null,null,null,null,null,"14.39.Z - Produkcja pozostałej odzieży dzianej"]
[null,null,null,null,null,null,"15.11.Z - Wyprawa skór, garbowanie; wyprawa i barwienie skór futerkowych "]
[null,null,null,null,null,null,"15.12.Z - Produkcja toreb bagażowych, toreb ręcznych i podobnych wyrobów kaletniczych; produkcja wyrobów rymarskich"]
[null,null,null,null,null,null,"15.20.Z - Produkcja obuwia"]
[null,null,null,null,null,null,"16.10.Z - Produkcja wyrobów tartacznych"]
[null,null,null,null,null,null,"16.21.Z - Produkcja arkuszy fornirowych i płyt wykonanych na bazie drewna"]
[null,null,null,null,null,null,"16.22.Z - Produkcja gotowych parkietów podłogowych"]
[null,null,null,null,null,null,"16.23.Z - Produkcja pozostałych wyrobów stolarskich i ciesielskich dla budownictwa"]
[null,null,null,null,null,null,"16.24.Z - Produkcja opakowań drewnianych"]
[null,null,null,null,null,null,"16.29.Z - Produkcja pozostałych wyrobów z drewna; produkcja wyrobów z korka, słomy i materiałów używanych do wyplatania"]
[null,null,null,null,null,null,"17.11.Z - Produkcja masy włóknistej"]
[null,null,null,null,null,null,"17.12.Z - Produkcja papieru i tektury"]
[null,null,null,null,null,null,"17.21.Z - Produkcja papieru falistego i tektury falistej oraz opakowań z papieru i tektury"]
[null,null,null,null,null,null,"17.22.Z - Produkcja artykułów gospodarstwa domowego, toaletowych i sanitarnych"]
[null,null,null,null,null,null,"17.23.Z - Produkcja artykułów piśmiennych"]
[null,null,null,null,null,null,"17.24.Z - Produkcja tapet"]
[null,null,null,null,null,null,"17.29.Z - Produkcja pozostałych wyrobów z papieru i tektury"]
[null,null,null,null,null,null,"18.11.Z - Drukowanie gazet"]
[null,null,null,null,null,null,"18.12.Z - Pozostałe drukowanie"]
[null,null,null,null,null,null,"18.13.Z - Działalność usługowa związana z przygotowywaniem do druku"]
[null,null,null,null,null,null,"18.14.Z - Introligatorstwo i podobne usługi"]
[null,null,null,null,null,null,"18.20.Z - Reprodukcja zapisanych nośników informacji"]
[null,null,null,null,null,null,"19.10.Z - Wytwarzanie i przetwarzanie koksu"]
[null,null,null,null,null,null,"19.20.Z - Wytwarzanie i przetwarzanie produktów rafinacji ropy naftowej"]
[null,null,null,null,null,null,"20.11.Z - Produkcja gazów technicznych"]
[null,null,null,null,null,null,"20.12.Z - Produkcja barwników i pigmentów"]
[null,null,null,null,null,null,"20.13.Z - Produkcja pozostałych podstawowych chemikaliów nieorganicznych"]
[null,null,null,null,null,null,"20.14.Z - Produkcja pozostałych podstawowych chemikaliów organicznych"]
[null,null,null,null,null,null,"20.15.Z - Produkcja nawozów i związków azotowych"]
[null,null,null,null,null,null,"20.16.Z - Produkcja tworzyw sztucznych w formach podstawowych"]
[null,null,null,null,null,null,"20.17.Z - Produkcja kauczuku syntetycznego w formach podstawowych"]
[null,null,null,null,null,null,"20.20.Z - Produkcja pestycydów i pozostałych środków agrochemicznych"]
[null,null,null,null,null,null,"20.30.Z - Produkcja farb, lakierów i podobnych powłok, farb drukarskich i mas uszczelniających"]
[null,null,null,null,null,null,"20.41.Z - Produkcja mydła i detergentów, środków myjących i czyszczących"]
[null,null,null,null,null,null,"20.42.Z - Produkcja wyrobów kosmetycznych i toaletowych"]
[null,null,null,null,null,null,"20.51.Z - Produkcja materiałów wybuchowych"]
[null,null,null,null,null,null,"20.52.Z - Produkcja klejów"]
[null,null,null,null,null,null,"20.53.Z - Produkcja olejków eterycznych"]
[null,null,null,null,null,null,"20.59.Z - Produkcja pozostałych wyrobów chemicznych, gdzie indziej niesklasyfikowana"]
[null,null,null,null,null,null,"20.60.Z - Produkcja włókien chemicznych"]
[null,null,null,null,null,null,"21.10.Z - Produkcja podstawowych substancji farmaceutycznych"]
[null,null,null,null,null,null,"21.20.Z - Produkcja leków i pozostałych wyrobów farmaceutycznych"]
[null,null,null,null,null,null,"22.11.Z - Produkcja opon i dętek z gumy; bieżnikowanie i regenerowanie opon z gumy "]
[null,null,null,null,null,null,"22.19.Z - Produkcja pozostałych wyrobów z gumy"]
[null,null,null,null,null,null,"22.21.Z - Produkcja płyt, arkuszy, rur i kształtowników z tworzyw sztucznych"]
[null,null,null,null,null,null,"22.22.Z - Produkcja opakowań z tworzyw sztucznych"]
[null,null,null,null,null,null,"22.23.Z - Produkcja wyrobów dla budownictwa z tworzyw sztucznych"]
[null,null,null,null,null,null,"22.29.Z - Produkcja pozostałych wyrobów z tworzyw sztucznych"]
[null,null,null,null,null,null,"23.11.Z - Produkcja szkła płaskiego"]
[null,null,null,null,null,null,"23.12.Z - Kształtowanie i obróbka szkła płaskiego"]
[null,null,null,null,null,null,"23.13.Z - Produkcja szkła gospodarczego"]
[null,null,null,null,null,null,"23.14.Z - Produkcja włókien szklanych"]
[null,null,null,null,null,null,"23.19.Z - Produkcja i obróbka pozostałego szkła, włączając szkło techniczne"]
[null,null,null,null,null,null,"23.20.Z - Produkcja wyrobów ogniotrwałych"]
[null,null,null,null,null,null,"23.31.Z - Produkcja ceramicznych kafli i płytek"]
[null,null,null,null,null,null,"23.32.Z - Produkcja cegieł, dachówek i materiałów budowlanych, z wypalanej gliny"]
[null,null,null,null,null,null,"23.41.Z - Produkcja ceramicznych wyrobów stołowych i ozdobnych"]
[null,null,null,null,null,null,"23.42.Z - Produkcja ceramicznych wyrobów sanitarnych"]
[null,null,null,null,null,null,"23.43.Z - Produkcja ceramicznych izolatorów i osłon izolacyjnych"]
[null,null,null,null,null,null,"23.44.Z - Produkcja pozostałych technicznych wyrobów ceramicznych"]
[null,null,null,null,null,null,"23.49.Z - Produkcja pozostałych wyrobów ceramicznych"]
[null,null,null,null,null,null,"23.51.Z - Produkcja cementu"]
[null,null,null,null,null,null,"23.52.Z - Produkcja wapna i gipsu"]
[null,null,null,null,null,null,"23.61.Z - Produkcja wyrobów budowlanych z betonu"]
[null,null,null,null,null,null,"23.62.Z - Produkcja wyrobów budowlanych z gipsu"]
[null,null,null,null,null,null,"23.63.Z - Produkcja masy betonowej prefabrykowanej"]
[null,null,null,null,null,null,"23.64.Z - Produkcja zaprawy murarskiej"]
[null,null,null,null,null,null,"23.65.Z - Produkcja cementu wzmocnionego włóknem"]
[null,null,null,null,null,null,"23.69.Z - Produkcja pozostałych wyrobów z betonu, gipsu i cementu"]
[null,null,null,null,null,null,"23.70.Z - Cięcie, formowanie i wykańczanie kamienia"]
[null,null,null,null,null,null,"23.91.Z - Produkcja wyrobów ściernych"]
[null,null,null,null,null,null,"23.99.Z - Produkcja pozostałych wyrobów z mineralnych surowców niemetalicznych, gdzie indziej niesklasyfikowana"]
[null,null,null,null,null,null,"24.10.Z - Produkcja surówki, żelazostopów, żeliwa i stali oraz wyrobów hutniczych"]
[null,null,null,null,null,null,"24.20.Z - Produkcja rur, przewodów, kształtowników zamkniętych i łączników, ze stali "]
[null,null,null,null,null,null,"24.31.Z - Produkcja prętów ciągnionych na zimno"]
[null,null,null,null,null,null,"24.32.Z - Produkcja wyrobów płaskich walcowanych na zimno"]
[null,null,null,null,null,null,"24.33.Z - Produkcja wyrobów formowanych na zimno"]
[null,null,null,null,null,null,"24.34.Z - Produkcja drutu"]
[null,null,null,null,null,null,"24.41.Z - Produkcja metali szlachetnych"]
[null,null,null,null,null,null,"24.42.A - Produkcja aluminium hutniczego"]
[null,null,null,null,null,null,"24.42.B - Produkcja wyrobów z aluminium i stopów aluminium"]
[null,null,null,null,null,null,"24.43.Z - Produkcja ołowiu, cynku i cyny"]
[null,null,null,null,null,null,"24.44.Z - Produkcja miedzi"]
[null,null,null,null,null,null,"24.45.Z - Produkcja pozostałych metali nieżelaznych"]
[null,null,null,null,null,null,"24.46.Z - Wytwarzanie paliw jądrowych"]
[null,null,null,null,null,null,"24.51.Z - Odlewnictwo żeliwa"]
[null,null,null,null,null,null,"24.52.Z - Odlewnictwo staliwa"]
[null,null,null,null,null,null,"24.53.Z - Odlewnictwo metali lekkich"]
[null,null,null,null,null,null,"24.54.A - Odlewnictwo miedzi i stopów miedzi"]
[null,null,null,null,null,null,"24.54.B - Odlewnictwo pozostałych metali nieżelaznych, gdzie indziej niesklasyfikowane"]
[null,null,null,null,null,null,"25.11.Z  - Produkcja konstrukcji metalowych i ich części"]
[null,null,null,null,null,null,"25.12.Z - Produkcja metalowych elementów stolarki budowlanej"]
[null,null,null,null,null,null,"25.21.Z - Produkcja grzejników i kotłów centralnego ogrzewania"]
[null,null,null,null,null,null,"25.29.Z - Produkcja pozostałych zbiorników, cystern i pojemników metalowych"]
[null,null,null,null,null,null,"25.30.Z - Produkcja wytwornic pary, z wyłączeniem kotłów do centralnego ogrzewania gorącą wodą"]
[null,null,null,null,null,null,"25.40.Z - Produkcja broni i amunicji"]
[null,null,null,null,null,null,"25.50.Z - Kucie, prasowanie, wytłaczanie i walcowanie metali; metalurgia proszków"]
[null,null,null,null,null,null,"25.61.Z - Obróbka metali i nakładanie powłok na metale"]
[null,null,null,null,null,null,"25.62.Z - Obróbka mechaniczna elementów metalowych"]
[null,null,null,null,null,null,"25.71.Z - Produkcja wyrobów nożowniczych i sztućców"]
[null,null,null,null,null,null,"25.72.Z - Produkcja zamków i zawiasów"]
[null,null,null,null,null,null,"25.73.Z - Produkcja narzędzi"]
[null,null,null,null,null,null,"25.91.Z - Produkcja pojemników metalowych"]
[null,null,null,null,null,null,"25.92.Z - Produkcja opakowań z metali"]
[null,null,null,null,null,null,"25.93.Z - Produkcja wyrobów z drutu, łańcuchów i sprężyn"]
[null,null,null,null,null,null,"25.94.Z - Produkcja złączy i śrub"]
[null,null,null,null,null,null,"25.99.Z - Produkcja pozostałych gotowych wyrobów metalowych, gdzie indziej niesklasyfikowana"]
[null,null,null,null,null,null,"26.11.Z - Produkcja elementów elektronicznych"]
[null,null,null,null,null,null,"26.12.Z - Produkcja elektronicznych obwodów drukowanych"]
[null,null,null,null,null,null,"26.20.Z - Produkcja komputerów i urządzeń peryferyjnych"]
[null,null,null,null,null,null,"26.30.Z - Produkcja sprzętu (tele)komunikacyjnego"]
[null,null,null,null,null,null,"26.40.Z - Produkcja elektronicznego sprzętu powszechnego użytku"]
[null,null,null,null,null,null,"26.51.Z - Produkcja instrumentów i przyrządów pomiarowych, kontrolnych i nawigacyjnych"]
[null,null,null,null,null,null,"26.52.Z - Produkcja zegarków i zegarów"]
[null,null,null,null,null,null,"26.60.Z - Produkcja urządzeń napromieniowujących, sprzętu elektromedycznego i elektroterapeutycznego"]
[null,null,null,null,null,null,"26.70.Z - Produkcja instrumentów optycznych i sprzętu fotograficznego"]
[null,null,null,null,null,null,"26.80.Z - Produkcja magnetycznych i optycznych niezapisanych nośników informacji"]
[null,null,null,null,null,null,"27.11.Z - Produkcja elektrycznych silników, prądnic i transformatorów"]
[null,null,null,null,null,null,"27.12.Z - Produkcja aparatury rozdzielczej i sterowniczej energii elektrycznej"]
[null,null,null,null,null,null,"27.20.Z - Produkcja baterii i akumulatorów"]
[null,null,null,null,null,null,"27.31.Z - Produkcja kabli światłowodowych"]
[null,null,null,null,null,null,"27.32.Z - Produkcja pozostałych elektronicznych i elektrycznych przewodów i kabli"]
[null,null,null,null,null,null,"27.33.Z - Produkcja sprzętu instalacyjnego"]
[null,null,null,null,null,null,"27.40.Z - Produkcja elektrycznego sprzętu oświetleniowego"]
[null,null,null,null,null,null,"27.51.Z - Produkcja elektrycznego sprzętu gospodarstwa domowego"]
[null,null,null,null,null,null,"27.52.Z - Produkcja nieelektrycznego sprzętu gospodarstwa domowego"]
[null,null,null,null,null,null,"27.90.Z - Produkcja pozostałego sprzętu elektrycznego"]
[null,null,null,null,null,null,"28.11.Z - Produkcja silników i turbin, z wyłączeniem silników lotniczych, samochodowych i motocyklowych"]
[null,null,null,null,null,null,"28.12.Z - Produkcja sprzętu i wyposażenia do napędu hydraulicznego i pneumatycznego"]
[null,null,null,null,null,null,"28.13.Z - Produkcja pozostałych pomp i sprężarek"]
[null,null,null,null,null,null,"28.14.Z - Produkcja pozostałych kurków i zaworów"]
[null,null,null,null,null,null,"28.15.Z - Produkcja łożysk, kół zębatych, przekładni zębatych i elementów napędowych"]
[null,null,null,null,null,null,"28.21.Z - Produkcja pieców, palenisk i palników piecowych"]
[null,null,null,null,null,null,"28.22.Z - Produkcja urządzeń dźwigowych i chwytaków"]
[null,null,null,null,null,null,"28.23.Z - Produkcja maszyn i sprzętu biurowego, z wyłączeniem komputerów i urządzeń peryferyjnych"]
[null,null,null,null,null,null,"28.24.Z - Produkcja narzędzi ręcznych mechanicznych"]
[null,null,null,null,null,null,"28.25.Z - Produkcja przemysłowych urządzeń chłodniczych i wentylacyjnych"]
[null,null,null,null,null,null,"28.29.Z - Produkcja pozostałych maszyn ogólnego przeznaczenia, gdzie indziej niesklasyfikowana"]
[null,null,null,null,null,null,"28.30.Z - Produkcja maszyn dla rolnictwa i leśnictwa"]
[null,null,null,null,null,null,"28.41.Z - Produkcja maszyn do obróbki metalu"]
[null,null,null,null,null,null,"28.49.Z - Produkcja pozostałych narzędzi mechanicznych"]
[null,null,null,null,null,null,"28.91.Z - Produkcja maszyn dla metalurgii"]
[null,null,null,null,null,null,"28.92.Z - Produkcja maszyn dla górnictwa i do wydobywania oraz budownictwa"]
[null,null,null,null,null,null,"28.93.Z - Produkcja maszyn stosowanych w przetwórstwie żywności, tytoniu i produkcji napojów"]
[null,null,null,null,null,null,"28.94.Z - Produkcja maszyn dla przemysłu tekstylnego, odzieżowego i skórzanego"]
[null,null,null,null,null,null,"28.95.Z - Produkcja maszyn dla przemysłu papierniczego"]
[null,null,null,null,null,null,"28.96.Z - Produkcja maszyn do obróbki gumy lub tworzyw sztucznych oraz wytwarzania wyrobów z tych materiałów"]
[null,null,null,null,null,null,"28.99.Z - Produkcja pozostałych maszyn specjalnego przeznaczenia, gdzie indziej niesklasyfikowana"]
[null,null,null,null,null,null,"29.10.A - Produkcja silników do pojazdów samochodowych (z wyłączeniem motocykli) oraz do ciągników rolniczych"]
[null,null,null,null,null,null,"29.10.B - Produkcja samochodów osobowych"]
[null,null,null,null,null,null,"29.10.C - Produkcja autobusów"]
[null,null,null,null,null,null,"29.10.D - Produkcja pojazdów samochodowych przeznaczonych do przewozu towarów"]
[null,null,null,null,null,null,"29.10.E - Produkcja pozostałych pojazdów samochodowych, z wyłączeniem motocykli"]
[null,null,null,null,null,null,"29.20.Z - Produkcja nadwozi do pojazdów silnikowych; produkcja przyczep i naczep"]
[null,null,null,null,null,null,"29.31.Z - Produkcja wyposażenia elektrycznego i elektronicznego do pojazdów silnikowych"]
[null,null,null,null,null,null,"29.32.Z - Produkcja pozostałych części i akcesoriów do pojazdów silnikowych, z wyłączeniem motocykli"]
[null,null,null,null,null,null,"30.11.Z - Produkcja statków i konstrukcji pływających"]
[null,null,null,null,null,null,"30.12.Z - Produkcja łodzi wycieczkowych i sportowych"]
[null,null,null,null,null,null,"30.20.Z - Produkcja lokomotyw kolejowych oraz taboru szynowego"]
[null,null,null,null,null,null,"30.30.Z - Produkcja statków powietrznych, statków kosmicznych i podobnych maszyn"]
[null,null,null,null,null,null,"30.40.Z - Produkcja wojskowych pojazdów bojowych"]
[null,null,null,null,null,null,"30.91.Z - Produkcja motocykli"]
[null,null,null,null,null,null,"30.92.Z - Produkcja rowerów i wózków inwalidzkich"]
[null,null,null,null,null,null,"30.99.Z - Produkcja pozostałego sprzętu transportowego, gdzie indziej niesklasyfikowana"]
[null,null,null,null,null,null,"31.01.Z - Produkcja mebli biurowych i sklepowych"]
[null,null,null,null,null,null,"31.02.Z - Produkcja mebli kuchennych"]
[null,null,null,null,null,null,"31.03.Z - Produkcja materaców"]
[null,null,null,null,null,null,"31.09.Z - Produkcja pozostałych mebli"]
[null,null,null,null,null,null,"32.11.Z - Produkcja monet"]
[null,null,null,null,null,null,"32.12.Z - Produkcja wyrobów jubilerskich i podobnych"]
[null,null,null,null,null,null,"32.13.Z - Produkcja sztucznej biżuterii i wyrobów podobnych"]
[null,null,null,null,null,null,"32.20.Z - Produkcja instrumentów muzycznych"]
[null,null,null,null,null,null,"32.30.Z - Produkcja sprzętu sportowego"]
[null,null,null,null,null,null,"32.40.Z - Produkcja gier i zabawek"]
[null,null,null,null,null,null,"32.50.Z - Produkcja urządzeń, instrumentów oraz wyrobów medycznych, włączając dentystyczne"]
[null,null,null,null,null,null,"32.91.Z - Produkcja mioteł, szczotek i pędzli"]
[null,null,null,null,null,null,"32.99.Z - Produkcja pozostałych wyrobów, gdzie indziej niesklasyfikowana"]
[null,null,null,null,null,null,"33.11.Z - Naprawa i konserwacja metalowych wyrobów gotowych"]
[null,null,null,null,null,null,"33.12.Z - Naprawa i konserwacja maszyn"]
[null,null,null,null,null,null,"33.13.Z - Naprawa i konserwacja urządzeń elektronicznych i optycznych"]
[null,null,null,null,null,null,"33.14.Z - Naprawa i konserwacja urządzeń elektrycznych"]
[null,null,null,null,null,null,"33.15.Z - Naprawa i konserwacja statków i łodzi"]
[null,null,null,null,null,null,"33.16.Z - Naprawa i konserwacja statków powietrznych i statków kosmicznych"]
[null,null,null,null,null,null,"33.17.Z - Naprawa i konserwacja pozostałego sprzętu transportowego"]
[null,null,null,null,null,null,"33.19.Z - Naprawa i konserwacja pozostałego sprzętu i wyposażenia"]
[null,null,null,null,null,null,"33.20.Z - Instalowanie maszyn przemysłowych, sprzętu i wyposażenia"]
[null,null,null,null,null,null,"35.11.Z - Wytwarzanie energii elektrycznej"]
[null,null,null,null,null,null,"35.12.Z - Przesyłanie energii elektrycznej"]
[null,null,null,null,null,null,"35.13.Z - Dystrybucja energii elektrycznej"]
[null,null,null,null,null,null,"35.14.Z - Handel energią elektryczną"]
[null,null,null,null,null,null,"35.21.Z - Wytwarzanie paliw gazowych"]
[null,null,null,null,null,null,"35.22.Z - Dystrybucja paliw gazowych w systemie sieciowym"]
[null,null,null,null,null,null,"35.23.Z - Handel paliwami gazowymi w systemie sieciowym"]
[null,null,null,null,null,null,"35.30.Z - Wytwarzanie i zaopatrywanie w parę wodną, gorącą wodę i powietrze do układów klimatyzacyjnych"]
[null,null,null,null,null,null,"36.00.Z - POBÓR, UZDATNIANIE I DOSTARCZANIE WODY "]
[null,null,null,null,null,null,"37.00.Z - ODPROWADZANIE I OCZYSZCZANIE ŚCIEKÓW"]
[null,null,null,null,null,null,"38.11.Z - Zbieranie odpadów innych niż niebezpieczne"]
[null,null,null,null,null,null,"38.12.Z - Zbieranie odpadów niebezpiecznych"]
[null,null,null,null,null,null,"38.21.Z - Obróbka i usuwanie odpadów innych niż niebezpieczne"]
[null,null,null,null,null,null,"38.22.Z - Przetwarzanie i unieszkodliwianie odpadów niebezpiecznych"]
[null,null,null,null,null,null,"38.31.Z - Demontaż wyrobów zużytych"]
[null,null,null,null,null,null,"38.32.Z - Odzysk surowców z materiałów segregowanych"]
[null,null,null,null,null,null,"39.00.Z - DZIAŁALNOŚĆ ZWIĄZANA Z REKULTYWACJĄ I POZOSTAŁA DZIAŁALNOŚĆ USŁUGOWA ZWIĄZANA Z GOSPODARKĄ ODPADAMI"]
[null,null,null,null,null,null,"41.10.Z - Realizacja projektów budowlanych związanych ze wznoszeniem budynków"]
[null,null,null,null,null,null,"41.20.Z - Roboty budowlane związane ze wznoszeniem budynków mieszkalnych i niemieszkalnych"]
[null,null,null,null,null,null,"42.11.Z - Roboty związane z budową dróg i autostrad"]
[null,null,null,null,null,null,"42.12.Z - Roboty związane z budową dróg szynowych i kolei podziemnej"]
[null,null,null,null,null,null,"42.13.Z - Roboty związane z budową mostów i tuneli"]
[null,null,null,null,null,null,"42.21.Z - Roboty związane z budową rurociągów przesyłowych i sieci rozdzielczych"]
[null,null,null,null,null,null,"42.22.Z - Roboty związane z budową linii telekomunikacyjnych i elektroenergetycznych"]
[null,null,null,null,null,null,"42.91.Z - Roboty związane z budową obiektów inżynierii wodnej"]
[null,null,null,null,null,null,"42.99.Z - Roboty związane z budową pozostałych obiektów inżynierii lądowej i wodnej, gdzie indziej niesklasyfikowane"]
[null,null,null,null,null,null,"43.11.Z - Rozbiórka i burzenie obiektów budowlanych"]
[null,null,null,null,null,null,"43.12.Z - Przygotowanie terenu pod budowę"]
[null,null,null,null,null,null,"43.13.Z - Wykonywanie wykopów i wierceń geologiczno-inżynierskich"]
[null,null,null,null,null,null,"43.21.Z - Wykonywanie instalacji elektrycznych"]
[null,null,null,null,null,null,"43.22.Z - Wykonywanie instalacji wodno-kanalizacyjnych, cieplnych, gazowych i klimatyzacyjnych"]
[null,null,null,null,null,null,"43.29.Z - Wykonywanie pozostałych instalacji budowlanych"]
[null,null,null,null,null,null,"43.31.Z - Tynkowanie"]
[null,null,null,null,null,null,"43.32.Z - Zakładanie stolarki budowlanej"]
[null,null,null,null,null,null,"43.33.Z - Posadzkarstwo; tapetowanie i oblicowywanie ścian"]
[null,null,null,null,null,null,"43.34.Z - Malowanie i szklenie"]
[null,null,null,null,null,null,"43.39.Z - Wykonywanie pozostałych robót budowlanych wykończeniowych"]
[null,null,null,null,null,null,"43.91.Z - Wykonywanie konstrukcji i pokryć dachowych"]
[null,null,null,null,null,null,"43.99.Z - Pozostałe specjalistyczne roboty budowlane, gdzie indziej niesklasyfikowane"]
[null,null,null,null,null,null,"45.11.Z - Sprzedaż hurtowa i detaliczna samochodów osobowych i furgonetek"]
[null,null,null,null,null,null,"45.19.Z - Sprzedaż hurtowa i detaliczna pozostałych pojazdów samochodowych, z wyłączeniem motocykli"]
[null,null,null,null,null,null,"45.20.Z - Konserwacja i naprawa pojazdów samochodowych, z wyłączeniem motocykli"]
[null,null,null,null,null,null,"45.31.Z - Sprzedaż hurtowa części i akcesoriów do pojazdów samochodowych, z wyłączeniem motocykli"]
[null,null,null,null,null,null,"45.32.Z - Sprzedaż detaliczna części i akcesoriów do pojazdów samochodowych, z wyłączeniem motocykli"]
[null,null,null,null,null,null,"45.40.Z - Sprzedaż hurtowa i detaliczna motocykli, ich naprawa i konserwacja  oraz sprzedaż hurtowa i detaliczna części i akcesoriów do nich"]
[null,null,null,null,null,null,"46.11.Z - Działalność agentów zajmujących się sprzedażą płodów rolnych, żywych zwierząt, surowców dla przemysłu tekstylnego i półproduktów"]
[null,null,null,null,null,null,"46.12.Z - Działalność agentów zajmujących się sprzedażą paliw, rud, metali i chemikaliów przemysłowych"]
[null,null,null,null,null,null,"46.13.Z - Działalność agentów zajmujących się sprzedażą drewna i materiałów budowlanych"]
[null,null,null,null,null,null,"46.14.Z - Działalność agentów zajmujących się sprzedażą maszyn, urządzeń przemysłowych, statków i samolotów"]
[null,null,null,null,null,null,"46.15.Z - Działalność agentów zajmujących się sprzedażą mebli, artykułów gospodarstwa domowego i drobnych wyrobów metalowych"]
[null,null,null,null,null,null,"46.16.Z - Działalność agentów zajmujących się sprzedażą wyrobów tekstylnych, odzieży, wyrobów futrzarskich, obuwia i artykułów skórzanych"]
[null,null,null,null,null,null,"46.17.Z - Działalność agentów zajmujących się sprzedażą żywności, napojów i wyrobów tytoniowych"]
[null,null,null,null,null,null,"46.18.Z - Działalność agentów specjalizujących się w sprzedaży pozostałych określonych towarów"]
[null,null,null,null,null,null,"46.19.Z - Działalność agentów zajmujących się sprzedażą towarów różnego rodzaju"]
[null,null,null,null,null,null,"46.21.Z - Sprzedaż hurtowa zboża, nieprzetworzonego tytoniu, nasion i pasz dla zwierząt"]
[null,null,null,null,null,null,"46.22.Z - Sprzedaż hurtowa kwiatów i roślin"]
[null,null,null,null,null,null,"46.23.Z - Sprzedaż hurtowa żywych zwierząt"]
[null,null,null,null,null,null,"46.24.Z - Sprzedaż hurtowa skór"]
[null,null,null,null,null,null,"46.31.Z - Sprzedaż hurtowa owoców i warzyw"]
[null,null,null,null,null,null,"46.32.Z - Sprzedaż hurtowa mięsa i wyrobów z mięsa"]
[null,null,null,null,null,null,"46.33.Z - Sprzedaż hurtowa mleka, wyrobów mleczarskich, jaj, olejów i tłuszczów jadalnych"]
[null,null,null,null,null,null,"46.34.A - Sprzedaż hurtowa napojów alkoholowych"]
[null,null,null,null,null,null,"46.34.B - Sprzedaż hurtowa napojów bezalkoholowych"]
[null,null,null,null,null,null,"46.35.Z - Sprzedaż hurtowa wyrobów tytoniowych"]
[null,null,null,null,null,null,"46.36.Z - Sprzedaż hurtowa cukru, czekolady, wyrobów cukierniczych i piekarskich"]
[null,null,null,null,null,null,"46.37.Z - Sprzedaż hurtowa herbaty, kawy, kakao i przypraw"]
[null,null,null,null,null,null,"46.38.Z - Sprzedaż hurtowa pozostałej żywności, włączając ryby, skorupiaki i mięczaki"]
[null,null,null,null,null,null,"46.39.Z - Sprzedaż hurtowa niewyspecjalizowana żywności, napojów i wyrobów tytoniowych"]
[null,null,null,null,null,null,"46.41.Z - Sprzedaż hurtowa wyrobów tekstylnych"]
[null,null,null,null,null,null,"46.42.Z - Sprzedaż hurtowa odzieży i obuwia"]
[null,null,null,null,null,null,"46.43.Z - Sprzedaż hurtowa elektrycznych artykułów użytku domowego"]
[null,null,null,null,null,null,"46.44.Z - Sprzedaż hurtowa wyrobów porcelanowych, ceramicznych i szklanych oraz środków czyszczących"]
[null,null,null,null,null,null,"46.45.Z - Sprzedaż hurtowa perfum i kosmetyków"]
[null,null,null,null,null,null,"46.46.Z - Sprzedaż hurtowa wyrobów farmaceutycznych i medycznych"]
[null,null,null,null,null,null,"46.47.Z - Sprzedaż hurtowa mebli, dywanów i sprzętu oświetleniowego"]
[null,null,null,null,null,null,"46.48.Z - Sprzedaż hurtowa zegarków, zegarów i biżuterii"]
[null,null,null,null,null,null,"46.49.Z - Sprzedaż hurtowa pozostałych artykułów użytku domowego"]
[null,null,null,null,null,null,"46.51.Z - Sprzedaż hurtowa komputerów, urządzeń peryferyjnych i oprogramowania"]
[null,null,null,null,null,null,"46.52.Z - Sprzedaż hurtowa sprzętu elektronicznego i telekomunikacyjnego oraz części do niego"]
[null,null,null,null,null,null,"46.61.Z - Sprzedaż hurtowa maszyn i urządzeń rolniczych oraz dodatkowego wyposażenia"]
[null,null,null,null,null,null,"46.62.Z - Sprzedaż hurtowa obrabiarek"]
[null,null,null,null,null,null,"46.63.Z - Sprzedaż hurtowa maszyn wykorzystywanych w górnictwie, budownictwie oraz inżynierii lądowej i wodnej"]
[null,null,null,null,null,null,"46.64.Z - Sprzedaż hurtowa maszyn dla przemysłu tekstylnego oraz maszyn do szycia i maszyn dziewiarskich"]
[null,null,null,null,null,null,"46.65.Z - Sprzedaż hurtowa mebli biurowych"]
[null,null,null,null,null,null,"46.66.Z - Sprzedaż hurtowa pozostałych maszyn i urządzeń biurowych"]
[null,null,null,null,null,null,"46.69.Z - Sprzedaż hurtowa pozostałych maszyn i urządzeń"]
[null,null,null,null,null,null,"46.71.Z - Sprzedaż hurtowa paliw i produktów pochodnych"]
[null,null,null,null,null,null,"46.72.Z - Sprzedaż hurtowa metali i rud metali"]
[null,null,null,null,null,null,"46.73.Z - Sprzedaż hurtowa drewna, materiałów budowlanych i wyposażenia sanitarnego"]
[null,null,null,null,null,null,"46.74.Z - Sprzedaż hurtowa wyrobów metalowych oraz sprzętu i dodatkowego wyposażenia hydraulicznego i grzejnego"]
[null,null,null,null,null,null,"46.75.Z - Sprzedaż hurtowa wyrobów chemicznych"]
[null,null,null,null,null,null,"46.76.Z - Sprzedaż hurtowa pozostałych półproduktów"]
[null,null,null,null,null,null,"46.77.Z - Sprzedaż hurtowa odpadów i złomu"]
[null,null,null,null,null,null,"46.90.Z - Sprzedaż hurtowa niewyspecjalizowana"]
[null,null,null,null,null,null,"47.11.Z - Sprzedaż detaliczna prowadzona w niewyspecjalizowanych sklepach z przewagą żywności, napojów i wyrobów tytoniowych"]
[null,null,null,null,null,null,"47.19.Z - Pozostała sprzedaż detaliczna prowadzona w niewyspecjalizowanych sklepach"]
[null,null,null,null,null,null,"47.21.Z - Sprzedaż detaliczna owoców i warzyw prowadzona w wyspecjalizowanych sklepach"]
[null,null,null,null,null,null,"47.22.Z - Sprzedaż detaliczna mięsa i wyrobów z mięsa prowadzona w wyspecjalizowanych sklepach"]
[null,null,null,null,null,null,"47.23.Z - Sprzedaż detaliczna ryb, skorupiaków i mięczaków prowadzona w wyspecjalizowanych sklepach"]
[null,null,null,null,null,null,"47.24.Z - Sprzedaż detaliczna pieczywa, ciast, wyrobów ciastkarskich i cukierniczych prowadzona w wyspecjalizowanych sklepach"]
[null,null,null,null,null,null,"47.25.Z - Sprzedaż detaliczna napojów alkoholowych i bezalkoholowych prowadzona w wyspecjalizowanych sklepach"]
[null,null,null,null,null,null,"47.26.Z - Sprzedaż detaliczna wyrobów tytoniowych prowadzona i cukierniczych prowadzona w wyspecjalizowanych sklepach"]
[null,null,null,null,null,null,"47.29.Z - Sprzedaż detaliczna pozostałej żywności prowadzona w wyspecjalizowanych sklepach"]
[null,null,null,null,null,null,"47.30.Z - Sprzedaż detaliczna paliw do pojazdów silnikowych na stacjach paliw"]
[null,null,null,null,null,null,"47.41.Z - Sprzedaż detaliczna komputerów, urządzeń peryferyjnych i oprogramowania prowadzona w wyspecjalizowanych sklepach"]
[null,null,null,null,null,null,"47.42.Z - Sprzedaż detaliczna sprzętu telekomunikacyjnego prowadzona w wyspecjalizowanych sklepach"]
[null,null,null,null,null,null,"47.43.Z - Sprzedaż detaliczna sprzętu audiowizualnego prowadzona w wyspecjalizowanych sklepach"]
[null,null,null,null,null,null,"47.51.Z - Sprzedaż detaliczna wyrobów tekstylnych prowadzona w wyspecjalizowanych sklepach"]
[null,null,null,null,null,null,"47.52.Z - Sprzedaż detaliczna drobnych wyrobów metalowych, farb i szkła prowadzona w wyspecjalizowanych sklepach"]
[null,null,null,null,null,null,"47.53.Z - Sprzedaż detaliczna dywanów, chodników i innych pokryć podłogowych oraz pokryć ściennych prowadzona w wyspecjalizowanych sklepach"]
[null,null,null,null,null,null,"47.54.Z - Sprzedaż detaliczna elektrycznego sprzętu gospodarstwa domowego prowadzona w wyspecjalizowanych sklepach"]
[null,null,null,null,null,null,"47.59.Z - Sprzedaż detaliczna mebli, sprzętu oświetleniowego i pozostałych artykułów użytku domowego prowadzona w wyspecjalizowanych sklepach"]
[null,null,null,null,null,null,"47.61.Z - Sprzedaż detaliczna książek prowadzona w wyspecjalizowanych sklepach"]
[null,null,null,null,null,null,"47.62.Z - Sprzedaż detaliczna gazet i artykułów piśmiennych prowadzona w wyspecjalizowanych sklepach"]
[null,null,null,null,null,null,"47.63.Z - Sprzedaż detaliczna nagrań dźwiękowych i audiowizualnych prowadzona w wyspecjalizowanych sklepach"]
[null,null,null,null,null,null,"47.64.Z - Sprzedaż detaliczna sprzętu sportowego prowadzona w wyspecjalizowanych sklepach"]
[null,null,null,null,null,null,"47.65.Z - Sprzedaż detaliczna gier i zabawek prowadzona w wyspecjalizowanych sklepach"]
[null,null,null,null,null,null,"47.71.Z - Sprzedaż detaliczna odzieży prowadzona w wyspecjalizowanych sklepach"]
[null,null,null,null,null,null,"47.72.Z - Sprzedaż detaliczna obuwia i wyrobów skórzanych prowadzona w wyspecjalizowanych sklepach"]
[null,null,null,null,null,null,"47.73.Z - Sprzedaż detaliczna wyrobów farmaceutycznych prowadzona w wyspecjalizowanych sklepach"]
[null,null,null,null,null,null,"47.74.Z - Sprzedaż detaliczna wyrobów medycznych, włączając ortopedyczne, prowadzona w wyspecjalizowanych sklepach"]
[null,null,null,null,null,null,"47.75.Z - Sprzedaż detaliczna kosmetyków i artykułów toaletowych prowadzona w wyspecjalizowanych sklepach"]
[null,null,null,null,null,null,"47.76.Z - Sprzedaż detaliczna kwiatów, roślin, nasion, nawozów, żywych zwierząt domowych, karmy dla zwierząt domowych prowadzona w wyspecjalizowanych sklepach"]
[null,null,null,null,null,null,"47.77.Z - Sprzedaż detaliczna zegarków, zegarów i biżuterii prowadzona w wyspecjalizowanych sklepach"]
[null,null,null,null,null,null,"47.78.Z - Sprzedaż detaliczna pozostałych nowych wyrobów prowadzona w wyspecjalizowanych sklepach"]
[null,null,null,null,null,null,"47.79.Z - Sprzedaż detaliczna artykułów używanych prowadzona w wyspecjalizowanych sklepach"]
[null,null,null,null,null,null,"47.81.Z - Sprzedaż detaliczna żywności, napojów i wyrobów tytoniowych prowadzona na straganach i targowiskach"]
[null,null,null,null,null,null,"47.82.Z - Sprzedaż detaliczna wyrobów tekstylnych, odzieży i obuwia prowadzona na straganach i targowiskach"]
[null,null,null,null,null,null,"47.89.Z - Sprzedaż detaliczna pozostałych wyrobów prowadzona na straganach i targowiskach"]
[null,null,null,null,null,null,"47.91.Z - Sprzedaż detaliczna prowadzona przez domy sprzedaży wysyłkowej lub Internet"]
[null,null,null,null,null,null,"47.99.Z - Pozostała sprzedaż detaliczna prowadzona poza siecią sklepową, straganami i targowiskami"]
[null,null,null,null,null,null,"49.10.Z - Transport kolejowy pasażerski międzymiastowy"]
[null,null,null,null,null,null,"49.20.Z - Transport kolejowy towarów"]
[null,null,null,null,null,null,"49.31.Z - Transport lądowy pasażerski, miejski i podmiejski"]
[null,null,null,null,null,null,"49.32.Z - Działalność taksówek osobowych"]
[null,null,null,null,null,null,"49.39.Z - Pozostały transport lądowy pasażerski, gdzie indziej niesklasyfikowany"]
[null,null,null,null,null,null,"49.41.Z - Transport drogowy towarów"]
[null,null,null,null,null,null,"49.42.Z - Działalność usługowa związana z przeprowadzkami"]
[null,null,null,null,null,null,"49.50.A - Transport rurociągami paliw gazowych"]
[null,null,null,null,null,null,"49.50.B - Transport rurociągowy pozostałych towarów"]
[null,null,null,null,null,null,"50.10.Z - Transport morski i przybrzeżny pasażerski "]
[null,null,null,null,null,null,"50.20.Z - Transport morski i  przybrzeżny towarów"]
[null,null,null,null,null,null,"50.30.Z - Transport wodny śródlądowy pasażerski "]
[null,null,null,null,null,null,"50.40.Z - Transport wodny śródlądowy towarów"]
[null,null,null,null,null,null,"51.10.Z - Transport lotniczy pasażerski"]
[null,null,null,null,null,null,"51.21.Z - Transport lotniczy towarów"]
[null,null,null,null,null,null,"51.22.Z - Transport kosmiczny"]
[null,null,null,null,null,null,"52.10.A - Magazynowanie i przechowywanie paliw gazowych"]
[null,null,null,null,null,null,"52.10.B - Magazynowanie i przechowywanie pozostałych towarów"]
[null,null,null,null,null,null,"52.21.Z - Działalność usługowa wspomagająca transport lądowy"]
[null,null,null,null,null,null,"52.22.A - Działalność usługowa wspomagająca transport morski"]
[null,null,null,null,null,null,"52.22.B - Działalność usługowa wspomagająca transport śródlądowy"]
[null,null,null,null,null,null,"52.23.Z - Działalność usługowa wspomagająca transport lotniczy"]
[null,null,null,null,null,null,"52.24.A - Przeładunek towarów w portach morskich"]
[null,null,null,null,null,null,"52.24.B - Przeładunek towarów w portach śródlądowych"]
[null,null,null,null,null,null,"52.24.C - Przeładunek towarów w pozostałych punktach przeładunkowych"]
[null,null,null,null,null,null,"52.29.A - Działalność morskich agencji transportowych"]
[null,null,null,null,null,null,"52.29.B - Działalność śródlądowych agencji transportowych"]
[null,null,null,null,null,null,"52.29.C - Działalność pozostałych agencji transportowych"]
[null,null,null,null,null,null,"53.10.Z - Działalność pocztowa objęta obowiązkiem świadczenia usług powszechnych (operatora publicznego)"]
[null,null,null,null,null,null,"53.20.Z - Pozostała działalność pocztowa  i kurierska"]
[null,null,null,null,null,null,"55.10.Z - Hotele i podobne obiekty zakwaterowania"]
[null,null,null,null,null,null,"55.20.Z - Obiekty noclegowe turystyczne i miejsca krótkotrwałego zakwaterowania  "]
[null,null,null,null,null,null,"55.30.Z - Pola kempingowe (włączając pola dla pojazdów kempingowych) i pola namiotowe"]
[null,null,null,null,null,null,"55.90.Z - Pozostałe zakwaterowanie"]
[null,null,null,null,null,null,"56.10.A - Restauracje i inne stałe placówki gastronomiczne"]
[null,null,null,null,null,null,"56.10.B - Ruchome placówki gastronomiczne"]
[null,null,null,null,null,null,"56.21.Z - Przygotowywanie i dostarczanie żywności dla odbiorców zewnętrznych (katering)"]
[null,null,null,null,null,null,"56.29.Z - Pozostała usługowa działalność gastronomiczna"]
[null,null,null,null,null,null,"56.30.Z - Przygotowywanie i podawanie napojów"]
[null,null,null,null,null,null,"58.11.Z - Wydawanie książek"]
[null,null,null,null,null,null,"58.12.Z - Wydawanie wykazów oraz list (np. adresowych, telefonicznych)"]
[null,null,null,null,null,null,"58.13.Z - Wydawanie gazet"]
[null,null,null,null,null,null,"58.14.Z - Wydawanie czasopism i pozostałych periodyków"]
[null,null,null,null,null,null,"58.19.Z - Pozostała działalność wydawnicza"]
[null,null,null,null,null,null,"58.21.Z - Działalność wydawnicza w zakresie gier komputerowych"]
[null,null,null,null,null,null,"58.29.Z - Działalność wydawnicza w zakresie pozostałego oprogramowania"]
[null,null,null,null,null,null,"59.11.Z - Działalność związana z produkcją filmów, nagrań wideo, i programów telewizyjnych"]
[null,null,null,null,null,null,"59.12.Z - Działalność postprodukcyjna związana z filmami, nagraniami wideo i programami telewizyjnymi"]
[null,null,null,null,null,null,"59.13.Z - Działalność związana z dystrybucją filmów, nagrań wideo i programów telewizyjnych"]
[null,null,null,null,null,null,"59.14.Z - Działalność związana z projekcją filmów"]
[null,null,null,null,null,null,"59.20.Z - Działalność w zakresie nagrań dźwiękowych i muzycznych"]
[null,null,null,null,null,null,"60.10.Z - Nadawanie programów radiofonicznych"]
[null,null,null,null,null,null,"60.20.Z - Nadawanie programów telewizyjnych ogólnodostępnych i abonamentowych"]
[null,null,null,null,null,null,"61.10.Z - Działalność w zakresie telekomunikacji przewodowej"]
[null,null,null,null,null,null,"61.20.Z - Działalność w zakresie telekomunikacji bezprzewodowej, z wyłączeniem telekomunikacji satelitarnej"]
[null,null,null,null,null,null,"61.30.Z - Działalność w zakresie telekomunikacji satelitarnej"]
[null,null,null,null,null,null,"61.90.Z - Działalność w zakresie pozostałej telekomunikacji"]
[null,null,null,null,null,null,"62.01.Z - Działalność związana z oprogramowaniem"]
[null,null,null,null,null,null,"62.02.Z - Działalność związana z doradztwem w zakresie informatyki"]
[null,null,null,null,null,null,"62.03.Z - Działalność związana z zarządzaniem urządzeniami informatycznymi"]
[null,null,null,null,null,null,"62.09.Z - Pozostała działalność usługowa w zakresie technologii informatycznych i komputerowych"]
[null,null,null,null,null,null,"63.11.Z - Przetwarzanie danych; zarządzanie stronami internetowymi (hosting) i podobna działalność "]
[null,null,null,null,null,null,"63.12.Z - Działalność portali internetowych"]
[null,null,null,null,null,null,"63.91.Z - Działalność agencji informacyjnych"]
[null,null,null,null,null,null,"63.99.Z - Pozostała działalność usługowa w zakresie informacji, gdzie indziej niesklasyfikowana"]
[null,null,null,null,null,null,"64.11.Z - Działalność banku centralnego"]
[null,null,null,null,null,null,"64.19.Z - Pozostałe pośrednictwo pieniężne"]
[null,null,null,null,null,null,"64.20.Z - Działalność holdingów finansowych"]
[null,null,null,null,null,null,"64.30.Z - Działalność trustów, funduszów i podobnych instytucji finansowych"]
[null,null,null,null,null,null,"64.91.Z - Leasing finansowy"]
[null,null,null,null,null,null,"64.92.Z - Pozostałe formy udzielania kredytów"]
[null,null,null,null,null,null,"64.99.Z - Pozostała finansowa działalność usługowa, gdzie indziej niesklasyfikowana, z wyłączeniem ubezpieczeń i funduszów emerytalnych"]
[null,null,null,null,null,null,"65.11.Z - Ubezpieczenia na życie"]
[null,null,null,null,null,null,"65.12.Z - Pozostałe ubezpieczenia osobowe oraz ubezpieczenia majątkowe"]
[null,null,null,null,null,null,"65.20.Z - Reasekuracja"]
[null,null,null,null,null,null,"65.30.Z - Fundusze emerytalne"]
[null,null,null,null,null,null,"66.11.Z - Zarządzanie rynkami finansowymi"]
[null,null,null,null,null,null,"66.12.Z - Działalność maklerska związana z rynkiem papierów wartościowych i towarów giełdowych"]
[null,null,null,null,null,null,"66.19.Z - Pozostała działalność wspomagająca usługi finansowe, z wyłączeniem ubezpieczeń i funduszów emerytalnych"]
[null,null,null,null,null,null,"66.21.Z - Działalność związana z oceną ryzyka i szacowaniem poniesionych strat"]
[null,null,null,null,null,null,"66.22.Z - Działalność agentów i brokerów ubezpieczeniowych"]
[null,null,null,null,null,null,"66.29.Z - Pozostała działalność wspomagająca ubezpieczenia i fundusze emerytalne"]
[null,null,null,null,null,null,"66.30.Z - Działalność związana z zarządzaniem funduszami"]
[null,null,null,null,null,null,"68.10.Z - Kupno i sprzedaż nieruchomości na własny rachunek"]
[null,null,null,null,null,null,"68.20.Z - Wynajem i zarządzanie nieruchomościami własnymi lub dzierżawionymi"]
[null,null,null,null,null,null,"68.31.Z - Pośrednictwo w obrocie nieruchomościami"]
[null,null,null,null,null,null,"68.32.Z - Zarządzanie nieruchomościami wykonywane na zlecenie"]
[null,null,null,null,null,null,"69.10.Z - Działalność prawnicza"]
[null,null,null,null,null,null,"69.20.Z - Działalność rachunkowo-księgowa; doradztwo podatkowe"]
[null,null,null,null,null,null,"70.10.Z - Działalność firm centralnych (head offices) i holdingów, z wyłączeniem holdingów finansowych"]
[null,null,null,null,null,null,"70.21.Z - Stosunki międzyludzkie (public relations) i komunikacja"]
[null,null,null,null,null,null,"70.22.Z - Pozostałe doradztwo w zakresie prowadzenia działalności gospodarczej i zarządzania"]
[null,null,null,null,null,null,"71.11.Z - Działalność w zakresie architektury"]
[null,null,null,null,null,null,"71.12.Z - Działalność w zakresie inżynierii i związane z nią doradztwo techniczne"]
[null,null,null,null,null,null,"71.20.A - Badania i analizy związane z jakością żywności"]
[null,null,null,null,null,null,"71.20.B - Pozostałe badania i analizy techniczne"]
[null,null,null,null,null,null,"72.11.Z - Badania naukowe i prace rozwojowe w dziedzinie biotechnologii"]
[null,null,null,null,null,null,"72.19.Z - Badania naukowe i prace rozwojowe w dziedzinie pozostałych nauk przyrodniczych i technicznych"]
[null,null,null,null,null,null,"72.20.Z - Badania naukowe i prace rozwojowe w dziedzinie nauk społecznych i humanistycznych"]
[null,null,null,null,null,null,"73.11.Z - Działalność agencji reklamowych"]
[null,null,null,null,null,null,"73.12.A - Pośrednictwo w sprzedaży czasu i miejsca na cele reklamowe w radio i telewizji"]
[null,null,null,null,null,null,"73.12.B - Pośrednictwo w sprzedaży miejsca na cele reklamowe w mediach drukowanych"]
[null,null,null,null,null,null,"73.12.C - Pośrednictwo w sprzedaży miejsca na cele reklamowe w mediach elektronicznych (Internet)"]
[null,null,null,null,null,null,"73.12.D - Pośrednictwo w sprzedaży miejsca na cele reklamowe w pozostałych mediach"]
[null,null,null,null,null,null,"73.20.Z - Badanie rynku i opinii publicznej"]
[null,null,null,null,null,null,"74.10.Z - Działalność w zakresie specjalistycznego projektowania"]
[null,null,null,null,null,null,"74.20.Z - Działalność fotograficzna"]
[null,null,null,null,null,null,"74.30.Z - Działalność związana z tłumaczeniami"]
[null,null,null,null,null,null,"74.90.Z - Pozostała działalność profesjonalna, naukowa i techniczna, gdzie indziej niesklasyfikowana"]
[null,null,null,null,null,null,"75.00.Z - DZIAŁALNOŚĆ WETERYNARYJNA"]
[null,null,null,null,null,null,"77.11.Z - Wynajem i dzierżawa samochodów osobowych i furgonetek"]
[null,null,null,null,null,null,"77.12.Z - Wynajem i dzierżawa pozostałych pojazdów samochodowych, z wyłączeniem motocykli"]
[null,null,null,null,null,null,"77.21.Z - Wypożyczanie i dzierżawa sprzętu rekreacyjnego i sportowego"]
[null,null,null,null,null,null,"77.22.Z - Wypożyczanie kaset wideo, płyt CD, DVD itp."]
[null,null,null,null,null,null,"77.29.Z - Wypożyczanie i dzierżawa pozostałych artykułów użytku osobistego i domowego"]
[null,null,null,null,null,null,"77.31.Z - Wynajem i dzierżawa maszyn i urządzeń rolniczych"]
[null,null,null,null,null,null,"77.32.Z - Wynajem i dzierżawa maszyn i urządzeń budowlanych"]
[null,null,null,null,null,null,"77.33.Z - Wynajem i dzierżawa maszyn i urządzeń biurowych, włączając komputery"]
[null,null,null,null,null,null,"77.34.Z - Wynajem i dzierżawa środków transportu wodnego"]
[null,null,null,null,null,null,"77.35.Z - Wynajem i dzierżawa środków transportu lotniczego"]
[null,null,null,null,null,null,"77.39.Z - Wynajem i dzierżawa pozostałych maszyn, urządzeń oraz dóbr materialnych, gdzie indziej niesklasyfikowane"]
[null,null,null,null,null,null,"77.40.Z - Dzierżawa własności intelektualnej i podobnych produktów, z wyłączeniem prac chronionych prawem autorskim"]
[null,null,null,null,null,null,"78.10.Z - Działalność związana z wyszukiwaniem miejsc pracy i pozyskiwaniem pracowników"]
[null,null,null,null,null,null,"78.20.Z - Działalność agencji pracy tymczasowej"]
[null,null,null,null,null,null,"78.30.Z - Pozostała działalność związana z udostępnianiem pracowników"]
[null,null,null,null,null,null,"79.11.A - Działalność agentów turystycznych"]
[null,null,null,null,null,null,"79.11.B - Działalność pośredników turystycznych"]
[null,null,null,null,null,null,"79.12.Z - Działalność organizatorów turystyki"]
[null,null,null,null,null,null,"79.90.A - Działalność pilotów wycieczek i przewodników turystycznych"]
[null,null,null,null,null,null,"79.90.B - Działalność w zakresie informacji turystycznej"]
[null,null,null,null,null,null,"79.90.C - Pozostała działalność usługowa w zakresie rezerwacji, gdzie indziej niesklasyfikowana"]
[null,null,null,null,null,null,"80.10.Z - Działalność ochroniarska, z wyłączeniem obsługi systemów bezpieczeństwa"]
[null,null,null,null,null,null,"80.20.Z - Działalność ochroniarska w zakresie obsługi systemów bezpieczeństwa"]
[null,null,null,null,null,null,"80.30.Z - Działalność detektywistyczna"]
[null,null,null,null,null,null,"81.10.Z - Działalność pomocnicza związana z utrzymaniem porządku w budynkach"]
[null,null,null,null,null,null,"81.21.Z - Niespecjalistyczne sprzątanie budynków i obiektów przemysłowych"]
[null,null,null,null,null,null,"81.22.Z - Specjalistyczne sprzątanie budynków i obiektów przemysłowych"]
[null,null,null,null,null,null,"81.29.Z - Pozostałe sprzątanie"]
[null,null,null,null,null,null,"81.30.Z - Działalność usługowa związana z zagospodarowaniem terenów zieleni"]
[null,null,null,null,null,null,"82.11.Z - Działalność usługowa związana z administracyjną obsługą biura"]
[null,null,null,null,null,null,"82.19.Z - Wykonywanie fotokopii, przygotowywanie dokumentów i pozostała specjalistyczna działalność wspomagająca prowadzenie biura"]
[null,null,null,null,null,null,"82.20.Z - Działalność centrów telefonicznych (call center)"]
[null,null,null,null,null,null,"82.30.Z - Działalność związana z organizacją targów, wystaw i kongresów"]
[null,null,null,null,null,null,"82.91.Z - Działalność świadczona przez agencje inkasa i biura kredytowe"]
[null,null,null,null,null,null,"82.92.Z - Działalność związana z pakowaniem"]
[null,null,null,null,null,null,"82.99.Z - Pozostała działalność wspomagająca prowadzenie działalności gospodarczej, gdzie indziej niesklasyfikowana"]
[null,null,null,null,null,null,"84.11.Z - Kierowanie podstawowymi rodzajami działalności publicznej"]
[null,null,null,null,null,null,"84.12.Z - Kierowanie w zakresie działalności związanej z ochroną zdrowia, edukacją, kulturą oraz pozostałymi usługami społecznymi, z wyłączeniem zabezpieczeń społecznych"]
[null,null,null,null,null,null,"84.13.Z - Kierowanie w zakresie efektywności gospodarowania"]
[null,null,null,null,null,null,"84.21.Z - Sprawy zagraniczne"]
[null,null,null,null,null,null,"84.22.Z - Obrona narodowa"]
[null,null,null,null,null,null,"84.23.Z - Wymiar sprawiedliwości"]
[null,null,null,null,null,null,"84.24.Z - Bezpieczeństwo państwa, porządek i bezpieczeństwo publiczne"]
[null,null,null,null,null,null,"84.25.Z - Ochrona przeciwpożarowa"]
[null,null,null,null,null,null,"84.30.Z - Obowiązkowe zabezpieczenia społeczne"]
[null,null,null,null,null,null,"85.10.Z - Wychowanie przedszkolne"]
[null,null,null,null,null,null,"85.20.Z - Szkoły podstawowe"]
[null,null,null,null,null,null,"85.31.A - Gimnazja"]
[null,null,null,null,null,null,"85.31.B - Licea ogólnokształcące"]
[null,null,null,null,null,null,"85.31.C - Licea profilowane"]
[null,null,null,null,null,null,"85.32.A - Technika"]
[null,null,null,null,null,null,"85.32.B - Zasadnicze szkoły zawodowe"]
[null,null,null,null,null,null,"85.32.C - Szkoły specjalne przysposabiające do pracy"]
[null,null,null,null,null,null,"85.41.Z - Szkoły policealne"]
[null,null,null,null,null,null,"85.42.A - Zakłady kształcenia nauczycieli i kolegia pracowników służb społecznych"]
[null,null,null,null,null,null,"85.42.B - Szkoły wyższe"]
[null,null,null,null,null,null,"85.51.Z - Pozaszkolne formy edukacji sportowej oraz zajęć sportowych i rekreacyjnych"]
[null,null,null,null,null,null,"85.52.Z - Pozaszkolne formy edukacji artystycznej"]
[null,null,null,null,null,null,"85.53.Z - Pozaszkolne formy edukacji z zakresu nauki jazdy i pilotażu"]
[null,null,null,null,null,null,"85.59.A - Nauka języków obcych"]
[null,null,null,null,null,null,"85.59.B - Pozostałe pozaszkolne formy edukacji, gdzie indziej niesklasyfikowane"]
[null,null,null,null,null,null,"85.60.Z - Działalność wspomagająca edukację"]
[null,null,null,null,null,null,"86.10.Z - Działalność szpitali"]
[null,null,null,null,null,null,"86.21.Z - Praktyka lekarska ogólna"]
[null,null,null,null,null,null,"86.22.Z - Praktyka lekarska specjalistyczna"]
[null,null,null,null,null,null,"86.23.Z - Praktyka lekarska dentystyczna"]
[null,null,null,null,null,null,"86.90.A - Działalność fizjoterapeutyczna"]
[null,null,null,null,null,null,"86.90.B - Działalność pogotowia ratunkowego"]
[null,null,null,null,null,null,"86.90.C - Praktyka pielęgniarek i położnych"]
[null,null,null,null,null,null,"86.90.D - Działalność paramedyczna"]
[null,null,null,null,null,null,"86.90.E - Pozostała działalność w zakresie opieki zdrowotnej, gdzie indziej niesklasyfikowana"]
[null,null,null,null,null,null,"87.10.Z - Pomoc społeczna z zakwaterowaniem zapewniająca opiekę pielęgniarską"]
[null,null,null,null,null,null,"87.20.Z - Pomoc społeczna z zakwaterowaniem dla osób z zaburzeniami psychicznymi"]
[null,null,null,null,null,null,"87.30.Z - Pomoc społeczna z zakwaterowaniem dla osób w podeszłym wieku i osób niepełnosprawnych"]
[null,null,null,null,null,null,"87.90.Z - Pozostała pomoc społeczna z zakwaterowaniem"]
[null,null,null,null,null,null,"88.10.Z - Pomoc społeczna bez zakwaterowania dla osób w podeszłym wieku i osób niepełnosprawnych"]
[null,null,null,null,null,null,"88.91.Z - Opieka dzienna nad dziećmi"]
[null,null,null,null,null,null,"88.99.Z - Pozostała pomoc społeczna bez zakwaterowania, gdzie indziej niesklasyfikowana"]
[null,null,null,null,null,null,"90.01.Z - Działalność związana z wystawianiem przedstawień artystycznych"]
[null,null,null,null,null,null,"90.02.Z - Działalność wspomagająca wystawianie przedstawień artystycznych"]
[null,null,null,null,null,null,"90.03.Z - Artystyczna i literacka działalność twórcza"]
[null,null,null,null,null,null,"90.04.Z - Działalność obiektów kulturalnych"]
[null,null,null,null,null,null,"91.01.A - Działalność bibliotek"]
[null,null,null,null,null,null,"91.01.B - Działalność archiwów"]
[null,null,null,null,null,null,"91.02.Z - Działalność muzeów"]
[null,null,null,null,null,null,"91.03.Z - Działalność historycznych miejsc i budynków oraz podobnych atrakcji turystycznych"]
[null,null,null,null,null,null,"91.04.Z - Działalność ogrodów botanicznych i zoologicznych oraz obszarów i obiektów ochrony przyrody"]
[null,null,null,null,null,null,"92.00.Z - DZIAŁALNOŚĆ ZWIĄZANA Z GRAMI LOSOWYMI I ZAKŁADAMI WZAJEMNYMI"]
[null,null,null,null,null,null,"93.11.Z - Działalność obiektów sportowych"]
[null,null,null,null,null,null,"93.12.Z - Działalność klubów sportowych"]
[null,null,null,null,null,null,"93.13.Z - Działalność obiektów służących poprawie kondycji fizycznej"]
[null,null,null,null,null,null,"93.19.Z - Pozostała działalność związana ze sportem"]
[null,null,null,null,null,null,"93.21.Z - Działalność wesołych miasteczek i parków rozrywki"]
[null,null,null,null,null,null,"93.29.Z - Pozostała działalność rozrywkowa i rekreacyjna"]
[null,null,null,null,null,null,"94.11.Z - Działalność organizacji komercyjnych i pracodawców"]
[null,null,null,null,null,null,"94.12.Z - Działalność organizacji profesjonalnych"]
[null,null,null,null,null,null,"94.20.Z - Działalność związków zawodowych"]
[null,null,null,null,null,null,"94.91.Z - Działalność organizacji religijnych"]
[null,null,null,null,null,null,"94.92.Z - Działalność organizacji politycznych"]
[null,null,null,null,null,null,"94.99.Z - Działalność pozostałych organizacji członkowskich, gdzie indziej niesklasyfikowana"]
[null,null,null,null,null,null,"95.11.Z - Naprawa i konserwacja komputerów i urządzeń peryferyjnych"]
[null,null,null,null,null,null,"95.12.Z - Naprawa i konserwacja sprzętu (tele)komunikacyjnego"]
[null,null,null,null,null,null,"95.21.Z - Naprawa i konserwacja elektronicznego sprzętu powszechnego użytku"]
[null,null,null,null,null,null,"95.22.Z - Naprawa i konserwacja urządzeń gospodarstwa domowego oraz sprzętu użytku domowego i ogrodniczego"]
[null,null,null,null,null,null,"95.23.Z - Naprawa obuwia i wyrobów skórzanych"]
[null,null,null,null,null,null,"95.24.Z - Naprawa i konserwacja mebli i wyposażenia domowego"]
[null,null,null,null,null,null,"95.25.Z - Naprawa zegarów, zegarków oraz biżuterii"]
[null,null,null,null,null,null,"95.29.Z - Naprawa pozostałych artykułów użytku osobistego i domowego"]
[null,null,null,null,null,null,"96.01.Z - Pranie i czyszczenie wyrobów włókienniczych i futrzarskich"]
[null,null,null,null,null,null,"96.02.Z - Fryzjerstwo i pozostałe zabiegi kosmetyczne"]
[null,null,null,null,null,null,"96.03.Z - Pogrzeby i działalność pokrewna"]
[null,null,null,null,null,null,"96.04.Z - Działalność usługowa związana z poprawą kondycji fizycznej"]
[null,null,null,null,null,null,"96.09.Z - Pozostała działalność usługowa, gdzie indziej niesklasyfikowana"]
[null,null,null,null,null,null,"97.00.Z - GOSPODARSTWA DOMOWE ZATRUDNIAJĄCE PRACOWNIKÓW"]
[null,null,null,null,null,null,"98.10.Z - Gospodarstwa domowe produkujące wyroby na własne potrzeby"]
[null,null,null,null,null,null,"98.20.Z - Gospodarstwa domowe świadczące usługi na własne potrzeby"]
[null,null,null,null,null,null,"99.00.Z - ORGANIZACJE I ZESPOŁY EKSTERYTORIALNE"]